Workbook

Sheet B4_Hinweise
A1: ='B4_Allgemeine Angaben'!A1:N1 -> Vereinfachtes Verfahren der Aufforderung zum Abschluss einer Pflegesatzvereinbarung gemäß § 84, 85 SGB XI
A54: =A1 -> Vereinfachtes Verfahren der Aufforderung zum Abschluss einer Pflegesatzvereinbarung gemäß § 84, 85 SGB XI
A107: =A54 -> Vereinfachtes Verfahren der Aufforderung zum Abschluss einer Pflegesatzvereinbarung gemäß § 84, 85 SGB XI
A160: =A107 -> Vereinfachtes Verfahren der Aufforderung zum Abschluss einer Pflegesatzvereinbarung gemäß § 84, 85 SGB XI
A213: =A160 -> Vereinfachtes Verfahren der Aufforderung zum Abschluss einer Pflegesatzvereinbarung gemäß § 84, 85 SGB XI
A266: =A213 -> Vereinfachtes Verfahren der Aufforderung zum Abschluss einer Pflegesatzvereinbarung gemäß § 84, 85 SGB XI
A319: =A266 -> Vereinfachtes Verfahren der Aufforderung zum Abschluss einer Pflegesatzvereinbarung gemäß § 84, 85 SGB XI
A372: =A319 -> Vereinfachtes Verfahren der Aufforderung zum Abschluss einer Pflegesatzvereinbarung gemäß § 84, 85 SGB XI
A425: =A372 -> Vereinfachtes Verfahren der Aufforderung zum Abschluss einer Pflegesatzvereinbarung gemäß § 84, 85 SGB XI
A478: =A425 -> Vereinfachtes Verfahren der Aufforderung zum Abschluss einer Pflegesatzvereinbarung gemäß § 84, 85 SGB XI

Sheet B4_Allgemeine Angaben
A1: Vereinfachtes Verfahren der Aufforderung zum Abschluss einer Pflegesatzvereinbarung gemäß § 84, 85 SGB XI
A2: Allgemeine Angaben
A3: =IF(D12>0,CONCATENATE(D12,", ",D16),"") -> 
A4: =IF(L6>0,CONCATENATE("IK"," ",L6),"") ->  | K4: Antrag vom:
A5: 2023-12-18
B6: Art der Einrichtung: | D6: Kurzzeitpflege | K6: Institutionskennzeichen (IK):
D7: =IF(D6>0,IF(D6="teilstationäre Pflege","tst",IF(D6="Kurzzeitpflege","kzp","vst")),"") -> kzp | E7: =IF(D6>0,IF(D6="Wohnpflegeheim","WPH","")) ->  | F7: =IF(D6="4. Generation","4.","") ->  | G7: =IF(OR(D6="teilstationäre Pflege",D6="4. Generation",D6="Kurzzeitpflege"),1,"") -> 1 | K7: IK angebundene KZP:
D8: Form der Kurzzeitpflege: | H8: solitär
J9: =IF(AND(D7="kzp",H8=""),"Bitte Form der Kurzzeitpflege angeben.","") -> 
B10: Allgemeine Angaben zur Pflegeeinrichtung und zum Träger
D11: =IF(AND(D6=0,D12<>0),"bitte wählen Sie noch die Art der Einrichtung aus","") -> 
B12: Pflegeeinrichtung:
D13: Name der Einrichtung
D15: Straße
D17: PLZ, Ort
D19: Telefon | J19: Fax
D21: E-Mail | J21: Web-Adresse
D23: Einrichtungsleitung | J23: PDL
B26: In Trägerschaft von:
D27: Name des Trägers
D29: Straße
D31: PLZ, Ort
D33: Telefon | J33: Fax
D35: E-Mail | J35: Web-Adresse
D37: Ansprechpartner/ Funktion
B39: Zugehörigkeit zu einer Vereinigung von Trägern von stationären Pflegeeinrichtungen im Land
G41: Wenn ja, welche?
B43: Hiermit erteilen wir o.g. Vereinigung Verhandlungsmandat
B45: Zulassungsdatum der Pflegeeinrichtung: | K45: =DATEDIF(H45,H52,"m") -> 0
K46: =IF(AND(H45="",H52<>""),"Bitte Erfassung des Zulassungsdatums!","") -> 
B47: Platzzahl der Pflegeeinrichtung entsprechend des Versorgungsvertrages:
B48: Platzzahl der angebundenen / integrierte Kurzzeitpflege lt. Versorgungsvertrag
H49: =IF(AND(L48>0,D7<>"vst"),"Erfassung nur bei vst. Einrichtungen möglich.","") -> 
B50: Pflegeeinrichtungskonzeption Stand: | L50: ist als Anlage beigefügt
B52: Vereinbarungszeitraum prospektiv | F52: von | J52: bis
L53: =IF(H52<DATEVALUE("01.01.2025"),1,2) -> 1
B54: letzter Vereinbarungszeitraum: | F54: von | J54: bis
B56: Parteien der Pflegesatzvereinbarung (gem. § 85 Abs. 2 SGB XI)
C58: Pflegekassen
C59: AOK PLUS | H59: Anteil in %
C60: vdek | H60: Anteil in %
C61: BKK | H61: Anteil in %
C62: IKK | H62: Anteil in %
C63: Knappschaft | H63: Anteil in %
C64: PKV | H64: Anteil in %
C65: Sonstige Sozialversicherungsträger | H65: Anteil in %
H67: davon Träger der Sozialhilfe in %
K68: =IF(AND(H52>0,K67<=5),"Mappe 'B2_Allgemeine Angaben' und Mappe 'B2_Kalkulation' an den KSV senden!","") -> 
B69: Nachrichtliche Angaben zum Zeitpunkt der Antragstellung und nicht Gegenstand dieses Antrages
B71: Ausbildungsbetrieb und/oder Praktikumsbetrieb nach dem Pflegeberufegesetz
B73: Angebot gesundheitliche Versorgungsplanung in der letzten Lebensphase (§132g SGB V)
D76: gehe weiter zu B4_Kalkulation

Sheet B4_Kalkulation
A1: ='B4_Allgemeine Angaben'!A1:N1 -> Vereinfachtes Verfahren der Aufforderung zum Abschluss einer Pflegesatzvereinbarung gemäß § 84, 85 SGB XI | U1: B4:
A2: Kalkulation | U2: ermöglicht:
B3: Einrichtung: | C3: ='B4_Allgemeine Angaben'!D12:D12 -> 0 | K3: IK anbebundene KZP: | L3: =IFERROR('B4_Allgemeine Angaben'!L7:L7,"") -> 0 | O3: Institutionskennzeichen: | Q3: ='B4_Allgemeine Angaben'!L6:L6 -> 0 | U3: * eine differenzierte Anpassung der Personalkosten (PK) nach GVWG +
B4: PLZ Ort: | C4: ='B4_Allgemeine Angaben'!D16:D16 -> 0 | O4: Antrag vom: | Q4: ='B4_Allgemeine Angaben'!L4:L4 -> 00:00:00 | U4: * eine pauschale Anpassung der PK unter Berücksichtigung des Mindestlöhne +
B6: kalkulatorischer Auslastungsgrad: | H6: jährliche Öffnungstage: | K6: Art der Einrichtung: | L6: =IF('B4_Allgemeine Angaben'!D6>0,'B4_Allgemeine Angaben'!D6,"") -> Kurzzeitpflege | U6: * eine pauschale Steigerung der SK, der FL + Fahrtkosten
B7: Belegungstage - letzte | C7: =IF('B4_Allgemeine Angaben'!K45-3>24,24,'B4_Allgemeine Angaben'!K45-3) -> -3 Kalendermonate | E7: Auslastungsgrad IST: | F7: =D7/('B4_Allgemeine Angaben'!L47*365/12*C7) -> 
B8: Verhandelte Kostenkalkulation der aktuellen Pflegesatzvereinbarung | H8: Vergütungsforderung | U8: * eine Anpassung der Belegung, der Personalausstattung im Bereich der Pflege, Betreuung und sonstigen Stellen sowie der FKQ Pflege
B10: Laufzeit | C10: vom: | D10: =IFERROR('B4_Allgemeine Angaben'!H54,"") -> 00:00:00 | E10: bis: | F10: =IFERROR('B4_Allgemeine Angaben'!K54,"") -> 00:00:00 | H10: Laufzeit: | I10: vom: | J10: =IF('B4_Allgemeine Angaben'!H52=0,"",'B4_Allgemeine Angaben'!H52) ->  | K10: bis: | L10: =IF('B4_Allgemeine Angaben'!K52=0,"",'B4_Allgemeine Angaben'!K52) ->  | N10: =IF(Q12>'B4_Allgemeine Angaben'!H52,"Stichtag bitte prüfen.","") -> 
N11: =IFERROR(IF(Q12<DATE(YEAR('B4_Allgemeine Angaben'!H52),MONTH('B4_Allgemeine Angaben'!H52)-3,DAY('B4_Allgemeine Angaben'!H52)),"Stichtag, max. 3 Kalendermonate vor Laufzeitbeginn wählen.",""),"") -> 
B12: Belegung: | E12: gesamt: | F12: =SUM(B14:F14) -> 0 | H12: Belegung: | K12: gesamt: | L12: =SUM(H14:L14) -> 0 | M12: =IF(L12<>'B4_Allgemeine Angaben'!L47,"Prognose entspricht nicht Platzzahl!","") ->  | N12: Belegung zum Stichtag vom:
B13: Pflegegrad 1 | C13: Pflegegrad 2 | D13: Pflegegrad 3 | E13: Pflegegrad 4 | F13: Pflegegrad 5 | H13: Pflegegrad 1 | I13: Pflegegrad 2 | J13: Pflegegrad 3 | K13: Pflegegrad 4 | L13: Pflegegrad 5 | N13: Pflegegrad 1 | O13: Pflegegrad 2 | P13: Pflegegrad 3 | Q13: Pflegegrad 4 | R13: Pflegegrad 5
B16: Belegung für angebundene / integrierte KZP: | E16: gesamt: | F16: =SUM(B17:F17) -> 0 | H16: Belegung für angebundene / integrierte KZP: | K16: gesamt: | L16: =SUM(H17:L17) -> 0 | M16: =IF(L16<>'B4_Allgemeine Angaben'!L48,"Prognose entspricht nicht Platzzahl!","") -> 
M18: Steigerungsrate: | P18: Begründungen für:
B19: Personalausstattung: | C19: Relationen | D19: Stellen | E19: Beförderung (Preis): | H19: Personalausstattung: | I19: Relationen | J19: Stellen | K19: Beförderung (Preis): | L19: =IF(AND(M19<>0,F19*(100%+M19)>KAT!L108),KAT!L108,F19*(100%+M19)) -> 0 | O19: Relationen angebundene / integrierte KZP | P19: - die veränderte Personalausstattung -
B20: Pflegegrad 1 | D20: =IFERROR(ROUND(B14/C20,3),"") ->  | H20: Pflegegrad 1 | J20: =IFERROR(ROUND(H14/I20,3),"") ->  | L20: =IF((F19*M19+F19)>KAT!L108,"Beförderung bis max. 17,90 € vereinbar.","") ->  | O20: =KAT!G81 -> 1 : 0.00
B21: Pflegegrad 2 | D21: =IFERROR(ROUND(C14/C21,3),"") ->  | H21: Pflegegrad 2 | J21: =IFERROR(ROUND(I14/I21,3),"") ->  | O21: =KAT!G82 -> 1 : 0.00 | U21: Herleitung der Personalkosten, differenziert nach Einrichtungsform
B22: Pflegegrad 3 | D22: =IFERROR(ROUND(D14/C22,3),"") ->  | H22: Pflegegrad 3 | J22: =IFERROR(ROUND(J14/I22,3),"") ->  | O22: =KAT!G83 -> 1 : 0.00 | U22: a) = Tages- oder Kurzzeitpflege, 4. Generation
B23: Pflegegrad 4 | D23: =IFERROR(ROUND(E14/C23,3),"") ->  | E23: Personalkosten: | H23: Pflegegrad 4 | J23: =IFERROR(ROUND(K14/I23,3),"") ->  | K23: Personalkosten: | M23: Steigerungsrate: | O23: =KAT!G84 -> 1 : 0.00
B24: Pflegegrad 5 | D24: =IFERROR(ROUND(F14/C24,3),"") ->  | E24: Funktionsbereich: | F24: €/VK / €/Stelle | H24: Pflegegrad 5 | J24: =IFERROR(ROUND(L14/I24,3),"") ->  | K24: Funktionsbereich: | L24: €/VK / €/Stelle | O24: =KAT!G85 -> 1 : 0.00 | U24: => im Bereich Pflege, Betreuung, 43b SGB XI PLUS HW + Kü
B25: PDL/stellv. PDL | C25: =IF(D25<>J25,"PDL VK entspricht nicht RV","") ->  | H25: PDL/stellv. PDL | J25: =IF('B4_Allgemeine Angaben'!L47=0,"",KAT!D62) ->  | U25: Abbildung der Personalkosten je Mitarbeiter in der Personalkostenübersicht (Grund: funktionsübergreifender Einsatz von Pflege- und Betreuungsmitarbeitern nach GVWG)
B26: Fachkraftquote Pflege: | D26: =SUM(D20:D25) -> 0.000 VK | E26: Pflege gesamt: | H26: Fachkraftquote Pflege: | J26: =IF('B4_Allgemeine Angaben'!D7<>"vst",SUM(J20:J24),SUM(J20:J25)) -> 0.000 VK | K26: Pflege gesamt: | L26: =B4_Personalkostenübersicht!T248 -> 0.00 €/VK | M26: => Ergebnis aus Mappe Personalkostenübersicht | O26: =I26 -> 0.00% | U26: Sobald in PKL Werte für den Bereich HW + Kü erfasst werden, ist eine Angabe der prozentualen Steigerung im TAB Kalkulation für je HW + Kü nicht möglich
B27: Betreuung: | D27: =IFERROR(ROUND($F$12/C27,3),0) -> 0.000 VK | E27: =B27 -> Betreuung: | H27: Betreuung: | J27: =IFERROR(ROUND($L$12/I27,3),0) -> 0.000 VK | K27: =H27 -> Betreuung: | L27: =B4_Personalkostenübersicht!T266 -> 0.00 €/VK | M27: => Ergebnis aus Mappe Personalkostenübersicht | O27: =I27 -> 1 : 0.00 | P27: - Personalkostensteigerungen - (nicht für Funktionsbereich Pflege, Betreuung, zusätzliche Betreuung notwendig) | U27: => für Leitung/Verwaltung, HAT = pauschale Steigerung der bisher geeinten PK um x% aber mindestens um x% auf den Mindestlohn
B28: Leitung/Verwaltung: | D28: =IFERROR(ROUND($F$12/C28,3),0) -> 0.000 VK | E28: Leitung/Verwaltung: | H28: Leitung/Verwaltung: | I28: =C28 -> 1 : 0.00 | J28: =IFERROR(ROUND($L$12/I28,3),0) -> 0.000 VK | K28: Leitung/Verwaltung: | L28: =IF(F28=0,0,IF(F28<KAT!E126,KAT!E126*B4_Kalkulation!M28+KAT!E126,IF(F28>KAT!E126,F28*M28+F28))) -> 0.00 €/VK | O28: =I28 -> 1 : 0.00 | U28: => sonstige Stellen = pauschale Steigerung der bisher geeinten PK um x%
B29: Hauswirtschaft: | D29: =IFERROR(ROUND($F$12/C29,3),0) -> 0.000 VK | E29: Hauswirtschaft: | H29: Hauswirtschaft: | I29: 1 : 0.00 | J29: 0.000 VK | K29: Hauswirtschaft: | L29: =IF(AND('B4_Allgemeine Angaben'!G7=1,B4_Personalkostenübersicht!T328>0),B4_Personalkostenübersicht!T328,KAT!D136) -> 0.00 €/VK | O29: 1 : 0.00 | U29: b) = vst. Einrichtung
B30: Küche: | D30: =IFERROR(ROUND($F$12/C30,3),0) -> 0.000 VK | E30: Küche: | H30: Küche: | I30: 1 : 0.00 | J30: 0.000 VK | K30: Küche: | L30: =IF(AND('B4_Allgemeine Angaben'!G7=1,B4_Personalkostenübersicht!T361>0),B4_Personalkostenübersicht!T361,KAT!D137) -> 0.00 €/VK | O30: 1 : 0.00 | U30: => im Bereich Pflege, Betreuung, 43b SGB XI
B31: Haustechnik: | D31: =IFERROR(ROUND($F$12/C31,3),0) -> 0.000 VK | E31: =B31 -> Haustechnik: | H31: Haustechnik: | I31: 1 : 0.00 | J31: 0.000 VK | K31: =H31 -> Haustechnik: | L31: =IF(F31=0,0,IF(F31<KAT!E173,KAT!E173*B4_Kalkulation!M31+KAT!E173,IF(F31>KAT!E173,F31*M31+F31))) -> 0.00 €/VK | O31: 1 : 0.00 | U31: Abbildung der Personalkosten je Mitarbeiter in der Personalkostenübersicht wg. GVWG
B32: Freiwillige Dienste/ FSJ Einsatz: | E32: =B32 -> Freiwillige Dienste/ FSJ Einsatz: | H32: Freiwillige Dienste/FSJ Einsatz: | K32: =H32 -> Freiwillige Dienste/FSJ Einsatz: | L32: =IF(F32=0,0,F32*B4_Kalkulation!M32+F32) -> 0.00 €/Stelle | U32: => für Leitung/Verwaltung, HW, Kü, HAT = pauschale Steigerung der bisher geeinten PK um x% aber mindestens um x% auf den Mindestlohn
B33: zusätzliche Betreuung und Aktivierung nach § 43 b SGB XI: | C33: 1 : 20.00 | D33: =$F$12/C33 -> 0.000 VK | E33: zusätzliche Betreuung und Aktivierung nach § 43 b SGB XI: | H33: zusätzliche Betreuung und Aktivierung nach § 43 b SGB XI: | I33: 1 : 20.00 | J33: =IFERROR(ROUND($L$12/I33,3),"") -> 0.000 VK | K33: zusätzliche Betreuung und Aktivierung nach § 43 b SGB XI: | L33: =B4_Personalkostenübersicht!T295 -> 0.00 €/VK | M33: => Ergebnis aus Mappe Personalkostenübersicht | O33: =I33 -> 1 : 20.00 | U33: => sonstige Stellen = pauschale Steigerung der bisher geeitnen PK um x%
B35: Sachaufwendungen | H35: Sachaufwendungen | P35: - Sachkostensteigerungen - | U35: Grundsatz:
B36: 2.1. | C36: Lebensmittel | H36: 2.1. | I36: Lebensmittel | L36: =IF($M$35>KAT!$L$109,B4_Kalkulation!F36*KAT!$L$109+B4_Kalkulation!F36,IF(B4_Kalkulation!$M$35=0,F36,IF(B4_Kalkulation!$M$35<(KAT!$L$109+0.0001%),B4_Kalkulation!F36*B4_Kalkulation!$M$35+B4_Kalkulation!F36))) -> 0 | M36: =IFERROR(L36/B4_Gesamtkalkulation!$N$6,"") ->  | U36: Wenn die Einrichtung = TP oder KZP o. 4. Gen. ist und die bisher geeinten PK größer 0 € sind und PK in der PKL größer 0 € sind, dann gilt für die Prognose der Wert aus der PKL
B37: 2.2. | C37: pflegerischer Sachbedarf | H37: 2.2. | I37: pflegerischer Sachbedarf | L37: =IF($M$35>KAT!$L$109,B4_Kalkulation!F37*KAT!$L$109+B4_Kalkulation!F37,IF(B4_Kalkulation!$M$35=0,F37,IF(B4_Kalkulation!$M$35<(KAT!$L$109+0.0001%),B4_Kalkulation!F37*B4_Kalkulation!$M$35+B4_Kalkulation!F37))) -> 0 | M37: =IFERROR(L37/B4_Gesamtkalkulation!$N$6,"") -> 
B38: 2.3. | C38: Wasser, Energie, Brenntstoffe | H38: 2.3. | I38: Wasser, Energie, Brennstoffe | L38: =IF($M$35>KAT!$L$109,B4_Kalkulation!F38*KAT!$L$109+B4_Kalkulation!F38,IF(B4_Kalkulation!$M$35=0,F38,IF(B4_Kalkulation!$M$35<(KAT!$L$109+0.0001%),B4_Kalkulation!F38*B4_Kalkulation!$M$35+B4_Kalkulation!F38))) -> 0 | M38: =IFERROR(L38/B4_Gesamtkalkulation!$N$6,"") ->  | U38: Wenn in der PKL keine Werte erfasst werden, erfolgt die Herleitung der prognostischen PK immer auf Basis der geeinten PK.
B39: 2.4. | C39: Verwaltungsbedarf | H39: 2.4. | I39: Verwaltungsbedarf | L39: =IF($M$35>KAT!$L$109,B4_Kalkulation!F39*KAT!$L$109+B4_Kalkulation!F39,IF(B4_Kalkulation!$M$35=0,F39,IF(B4_Kalkulation!$M$35<(KAT!$L$109+0.0001%),B4_Kalkulation!F39*B4_Kalkulation!$M$35+B4_Kalkulation!F39))) -> 0 | M39: =IFERROR(L39/B4_Gesamtkalkulation!$N$6,"") -> 
B40: 2.5. | C40: Zentrale Verwaltungsdienste | H40: 2.5. | I40: Zentrale Verwaltungsdienste | L40: =IF($M$35>KAT!$L$109,B4_Kalkulation!F40*KAT!$L$109+B4_Kalkulation!F40,IF(B4_Kalkulation!$M$35=0,F40,IF(B4_Kalkulation!$M$35<(KAT!$L$109+0.0001%),B4_Kalkulation!F40*B4_Kalkulation!$M$35+B4_Kalkulation!F40))) -> 0 | M40: =IFERROR(L40/B4_Gesamtkalkulation!$N$6,"") ->  | U40: Die Berechnungen gehen immer von der korrekten Erfassung und der Wiedergabe der geeinten Werte vom Ergebnisblatt aus!
B41: 2.6. | C41: Betreuungsaufwand | H41: 2.6. | I41: Betreuungsaufwand | L41: =IF($M$35>KAT!$L$109,B4_Kalkulation!F41*KAT!$L$109+B4_Kalkulation!F41,IF(B4_Kalkulation!$M$35=0,F41,IF(B4_Kalkulation!$M$35<(KAT!$L$109+0.0001%),B4_Kalkulation!F41*B4_Kalkulation!$M$35+B4_Kalkulation!F41))) -> 0 | M41: =IFERROR(L41/B4_Gesamtkalkulation!$N$6,"") -> 
B42: 2.7. | C42: Wirtschaftsbedarf | H42: 2.7. | I42: Wirtschaftsbedarf | L42: =IF($M$35>KAT!$L$109,B4_Kalkulation!F42*KAT!$L$109+B4_Kalkulation!F42,IF(B4_Kalkulation!$M$35=0,F42,IF(B4_Kalkulation!$M$35<(KAT!$L$109+0.0001%),B4_Kalkulation!F42*B4_Kalkulation!$M$35+B4_Kalkulation!F42))) -> 0 | M42: =IFERROR(L42/B4_Gesamtkalkulation!$N$6,"") ->  | U42: Berechnung der progn. PK auf Basis der geeinten PK
B43: 2.8. | C43: Steuern/Abgaben/Versicherungen | H43: 2.8. | I43: Steuern/Abgaben/Versicherungen | L43: =IF($M$35>KAT!$L$109,B4_Kalkulation!F43*KAT!$L$109+B4_Kalkulation!F43,IF(B4_Kalkulation!$M$35=0,F43,IF(B4_Kalkulation!$M$35<(KAT!$L$109+0.0001%),B4_Kalkulation!F43*B4_Kalkulation!$M$35+B4_Kalkulation!F43))) -> 0 | M43: =IFERROR(L43/B4_Gesamtkalkulation!$N$6,"") ->  | U43: bisher geeinten Personalkosten => | Y43: pauschale Herleitung der Prognose
B44: 2.9. | C44: Wartung (keine Instandhaltung) | H44: 2.9. | I44: Wartung (keine Instandhaltung) | L44: =IF($M$35>KAT!$L$109,B4_Kalkulation!F44*KAT!$L$109+B4_Kalkulation!F44,IF(B4_Kalkulation!$M$35=0,F44,IF(B4_Kalkulation!$M$35<(KAT!$L$109+0.0001%),B4_Kalkulation!F44*B4_Kalkulation!$M$35+B4_Kalkulation!F44))) -> 0 | M44: =IFERROR(L44/B4_Gesamtkalkulation!$N$6,"") ->  | V44: 0 € | X44: => | Y44: 0 €
B45: 2.10. | C45: sonstige Aufwendungen | H45: 2.10. | I45: sonstige Aufwendungen | L45: =IF($M$35>KAT!$L$109,B4_Kalkulation!F45*KAT!$L$109+B4_Kalkulation!F45,IF(B4_Kalkulation!$M$35=0,F45,IF(B4_Kalkulation!$M$35<(KAT!$L$109+0.0001%),B4_Kalkulation!F45*B4_Kalkulation!$M$35+B4_Kalkulation!F45))) -> 0 | M45: =IFERROR(L45/B4_Gesamtkalkulation!$N$6,"") ->  | V45: unter Mindestlohn => | Y45: Mindestlohn +x %
C46: Gesamtsumme: | F46: =SUM(F36:F45) -> 0 | I46: Gesamtsumme: | L46: =SUM(L36:L45) -> 0 | M46: =SUM(M36:M45) -> 0.00 €/Tag | V46: über Mindestlohn => | Y46: geeint + x%
B48: Fremdleistungen/ Leistungen des Trägers | H48: Fremdleistungen/ Leistungen des Trägers | P48: - Fremdleistungen - | U48: (25.05.2022/Bi)
B49: 3.1. | C49: Küche | H49: 3.1. | I49: Küche | L49: =IF($M$48>KAT!$L$110,B4_Kalkulation!F49*KAT!$L$110+B4_Kalkulation!F49,IF(B4_Kalkulation!$M$48=0,F49,IF(B4_Kalkulation!$M$48<(KAT!$L$110+0.0001%),B4_Kalkulation!F49*B4_Kalkulation!$M$48+B4_Kalkulation!F49))) -> 0 | M49: =IFERROR(L49/B4_Gesamtkalkulation!$N$6,"") -> 
B50: 3.2. | C50: Wäscherei | H50: 3.2. | I50: Wäscherei | L50: =IF($M$48>KAT!$L$110,B4_Kalkulation!F50*KAT!$L$110+B4_Kalkulation!F50,IF(B4_Kalkulation!$M$48=0,F50,IF(B4_Kalkulation!$M$48<(KAT!$L$110+0.0001%),B4_Kalkulation!F50*B4_Kalkulation!$M$48+B4_Kalkulation!F50))) -> 0 | M50: =IFERROR(L50/B4_Gesamtkalkulation!$N$6,"") -> 
B51: 3.3. | C51: Wäschekennzeichnung | H51: 3.3. | I51: Wäschekennzeichnung | L51: =IF('B4_Allgemeine Angaben'!D7<>"vst",0,IF($M$48>KAT!$L$110,B4_Kalkulation!F51*KAT!$L$110+B4_Kalkulation!F51,IF(B4_Kalkulation!$M$48=0,F51,IF(B4_Kalkulation!$M$48<(KAT!$L$110+0.0001%),B4_Kalkulation!F51*B4_Kalkulation!$M$48+B4_Kalkulation!F51)))) -> 0 | M51: =IFERROR(L51/B4_Gesamtkalkulation!$N$6,"") -> 
B52: 3.4. | C52: Reinigung | H52: 3.4. | I52: Reinigung | L52: =IF($M$48>KAT!$L$110,B4_Kalkulation!F52*KAT!$L$110+B4_Kalkulation!F52,IF(B4_Kalkulation!$M$48=0,F52,IF(B4_Kalkulation!$M$48<(KAT!$L$110+0.0001%),B4_Kalkulation!F52*B4_Kalkulation!$M$48+B4_Kalkulation!F52))) -> 0 | M52: =IFERROR(L52/B4_Gesamtkalkulation!$N$6,"") -> 
B53: 3.5. | C53: Verwaltung | H53: 3.5. | I53: Verwaltung | L53: =IF($M$48>KAT!$L$110,B4_Kalkulation!F53*KAT!$L$110+B4_Kalkulation!F53,IF(B4_Kalkulation!$M$48=0,F53,IF(B4_Kalkulation!$M$48<(KAT!$L$110+0.0001%),B4_Kalkulation!F53*B4_Kalkulation!$M$48+B4_Kalkulation!F53))) -> 0 | M53: =IFERROR(L53/B4_Gesamtkalkulation!$N$6,"") -> 
B54: 3.6. | C54: Haustechnik | H54: 3.6. | I54: Haustechnik | L54: =IF($M$48>KAT!$L$110,B4_Kalkulation!F54*KAT!$L$110+B4_Kalkulation!F54,IF(B4_Kalkulation!$M$48=0,F54,IF(B4_Kalkulation!$M$48<(KAT!$L$110+0.0001%),B4_Kalkulation!F54*B4_Kalkulation!$M$48+B4_Kalkulation!F54))) -> 0 | M54: =IFERROR(L54/B4_Gesamtkalkulation!$N$6,"") -> 
B55: 3.7. | C55: sonstiges | H55: 3.7. | I55: sonstiges | L55: =IF($M$48>KAT!$L$110,B4_Kalkulation!F55*KAT!$L$110+B4_Kalkulation!F55,IF(B4_Kalkulation!$M$48=0,F55,IF(B4_Kalkulation!$M$48<(KAT!$L$110+0.0001%),B4_Kalkulation!F55*B4_Kalkulation!$M$48+B4_Kalkulation!F55))) -> 0 | M55: =IFERROR(L55/B4_Gesamtkalkulation!$N$6,"") -> 
C56: Gesamtsumme: | F56: =IF('B4_Allgemeine Angaben'!D7<>"vst",SUM(B4_Kalkulation!F49:F50,B4_Kalkulation!F52:F55),SUM(F49:F55)) -> 0 | I56: Gesamtsumme: | L56: =SUM(L49:L55) -> 0 | M56: =SUM(M49:M55) -> 0.00 €/Tag
B58: geforderte Pflegesätze: | I58: Vergütungszuschlag für: | P58: - Beförderung -
B59: Pflegegrad 1 | C59: Pflegegrad 2 | D59: Pflegegrad 3 | E59: Pflegegrad 4 | F59: Pflegegrad 5 | H59: Eigenanteil: | I59: Unterkunft | J59: Verpflegung: | K59: 43 b SGB XI | L59: Beförderung:
B60: =IFERROR(B4_Gesamtkalkulation!H51,0) -> 0 | C60: =IFERROR(B4_Gesamtkalkulation!J51,0) -> 0 | D60: =IFERROR(B4_Gesamtkalkulation!L51,0) -> 0 | E60: =IFERROR(B4_Gesamtkalkulation!N51,0) -> 0 | F60: =IFERROR(B4_Gesamtkalkulation!P51,0) -> 0 | H60: =IFERROR(B4_Gesamtkalkulation!J49,"") ->  | I60: =IFERROR(B4_Gesamtkalkulation!R51,0) -> 0 | J60: =IFERROR(B4_Gesamtkalkulation!T51,0) -> 0 | K60: =IFERROR(B4_Gesamtkalkulation!V51,0) -> 0 | L60: =L19 -> 0
B62: geforderte Pflegesätze für die angebundene / integrierte Kurzzeitpflege (KZP): | I62: Vergütungszuschlag für angebundene / integrierte KZP:
B63: Pflegegrad 1 | C63: Pflegegrad 2 | D63: Pflegegrad 3 | E63: Pflegegrad 4 | F63: Pflegegrad 5 | I63: Unterkunft | J63: Verpflegung: | K63: 43 b SGB XI
B64: =IFERROR(B4_Gesamtkalkulation!H53,0) -> 0 | C64: =IFERROR(B4_Gesamtkalkulation!J53,0) ->  | D64: =IFERROR(B4_Gesamtkalkulation!L53,0) ->  | E64: =IFERROR(B4_Gesamtkalkulation!N53,0) ->  | F64: =IFERROR(B4_Gesamtkalkulation!P53,0) ->  | I64: =IFERROR(B4_Gesamtkalkulation!R53,0) ->  | J64: =IFERROR(B4_Gesamtkalkulation!T53,0) ->  | K64: =IFERROR(B4_Gesamtkalkulation!V53,0) -> 
B66: Die Richtigkeit der in der Aufforderung enthaltenen Angaben wird bestätigt:
B68: Datum | H68: Unterschrift
H71: gehe weiter zu B4_Personalkostenübersicht

Sheet B4_Personalkostenübersicht
A1: ='B4_Allgemeine Angaben'!A1:N1 -> Vereinfachtes Verfahren der Aufforderung zum Abschluss einer Pflegesatzvereinbarung gemäß § 84, 85 SGB XI | V1: SPERREN UND AUSBLENDEN
A2: Personalkostenaufstellung nach Tätigkeit und Vergütungsgruppe
A3: Name der Einrichtung: | B3: =IFERROR('B4_Allgemeine Angaben'!D12:D12,"") -> 0 | AQ3: ja
A4: Ort der Einrichtung: | B4: =IFERROR('B4_Allgemeine Angaben'!D16:D16,"") -> 0
A5: Institutionskennzeichen: | B5: =IFERROR('B4_Allgemeine Angaben'!L6:L6,"") -> 0 | C5: IK angebundene KZP: | N5: ='B4_Allgemeine Angaben'!K4 -> Antrag vom: | O5: ='B4_Allgemeine Angaben'!L4 -> 00:00:00
A6: Angaben für den Prognosezeitraum
E7: unmittelbare Bindung Tarif/ AVR: | G7: ja
E8: Entlohnung nach: | Q8: Personalnebenkosten: | S8: 2.00 %
E9: Welche/r Tarif/AVR | Q9: Unternehmerrisiko: | S9: 2.00 %
E10: Fassung vom: | AQ10: nein
F12: Arbeitgeberanteile zur Sozialversicherung: | K12: % | N12: Folgenden Personalkostensteigerungen wurden in die Prognose eingearbeitet:
F13: Beiträge zur Altersvorsorge: | K13: % | N13: Steigerung ab: | AS13: PDL | AT13: PHK
N14: Prozent: | AS14: stellv. PDL | AT14: Präsenzkraft (4.Generation)
F15: Sozialversicherungsbeitrag "geringfügig Beschäftigte" | K15: % | AS15: WBL
AS16: QM
A17: Pseudonym Nummer (bei geringfügig Beschäftigten bitte GfB eingeben) | C17: Stellenanteil VK | D17: Entgelt-gruppe | E17: Stufe | F17: Grundlohn/-gehalt in € je VK/Monat | G17: monatliche Zahlungen (AN-Brutto) in € je Stellenanteil | N17: jährliche Einmalzahlungen in € je Stellenanteil | P17: monatliche Zahlungen (AN-Brutto) in € je Stellenanteil | S17: durchschnittliche Arbeitgeber-bruttopersonalkosten (inkl. SV-AG) in € je Stellenanteil | T17: durchschnittliche Gesamt-bruttopersonalkosten in € je VK | AS17: PFK
B18: Differenzierung nach Beschäftigungs-gruppen | G18: Grundlohn/-gehalt | H18: Besitzstand | I18: VWL | J18: regelmäßige und fixe pflegetypische Zulagen | L18: variable pflegetypische Zuschläge | N18: Urlaubsgeld | O18: Jahressonder- zahlung/ Weihnachts- geld | P18: weitere zusätzliche Zuschläge/Zulagen / betriebliche Altersversorgung | R18: Inflationsausgleichs-prämie (IAP) - AUSZAHLBAR bis 31.12.2024 | U18: HILFSSPALTEN_AUSBLENDEN_SPERREN
J19: sv-pflichtig | K19: sv-frei | L19: sv-pflichtig | M19: sv-frei | P19: sv-pflichtig | Q19: sv-frei | R19: sv-frei | V19: mtl. Grundgehalt inkl. Besitzstand | W19: mtl. VWL | X19: mtl. pflegetypische fixe Zulagen | Y19: mtl. Einmalzahlungen | Z19: mtl. Grundgehalt | AA19: mtl. VWL | AB19: mtl. pflegetypische fixe Zulagen | AC19: mtl. Einmalzahlungen | AD19: mtl. Grundgehalt | AE19: mtl. VWL | AF19: mtl. pflegetypische fixe Zulagen | AG19: mtl. Einmalzahlungen | AH19: VK je Beschäftigungsgruppe | AK19: durchschnittliche Gesamtbruttopersonalkosten je Stellenumfang | AN19: Abbildung IAP je Stellenumfang
E20: Im "Registerblatt Start" auf Einfügen oder Löschen klicken (Gruppe Zellen) | AS20: Leiter
A21: 1.1. Pflegefachkräfte | V21: PFK/BFK | W21: PFK/BFK | X21: PFK/BFK | Y21: PFK/BFK | Z21: PK/BK | AA21: PK/BK | AB21: PK/BK | AC21: PK/BK | AD21: PK/BK o. | AE21: PK/BK o. | AF21: PK/BK o. | AG21: PK/BK o. | AH21: PFK/BFK | AI21: PK/BK | AJ21: PK/BK o. | AK21: PFK/BFK | AL21: PK/BK | AM21: PK/BK o. | AN21: PFK/BFK | AO21: PK/BK | AP21: PK/BK o. | AS21: Präsenzkraft (4.Generation)
G22: =IFERROR(F22*C22,"") -> 0.00 | S22: =IFERROR(IF(A22<>"GfB",(SUM(G22:J22,L22,P22)*12+(N22+O22))*(100+$J$12+$J$13)%+((K22+M22+Q22+R22*('B4_Allgemeine Angaben'!$L$53=1))*12),(SUM(G22:J22,L22,P22)*12+(N22+O22))*(100+$J$15+$J$13)%+((K22+M22+Q22+R22*('B4_Allgemeine Angaben'!$L$53=1))*12)),0) -> 0.00 | T22: =IF(ISERROR(S22/C22),0,(S22/C22)) -> 0.00 | V22: =(IF(AND($B22="PFK/BFK",$C22>0,$F22>0),($G22+$H22),0)) -> 0.00 | W22: =(IF(AND($B22="PFK/BFK",$C22>0,$F22>0),$I22,0)) -> 0.00 | X22: =(IF(AND($B22="PFK/BFK",$C22>0,$F22>0),($J22+$K22),0)) -> 0.00 | Y22: =(IF(AND($B22="PFK/BFK",$C22>0,$F22>0),(($N22+$O22)/12),0)) -> 0.00 | Z22: =(IF(AND($B22="PK/BK",$C22>0,$F22>0),($G22+$H22),0)) -> 0.00 | AA22: =(IF(AND($B22="PK/BK",$C22>0,$F22>0),$I22,0)) -> 0.00 | AB22: =(IF(AND($B22="PK/BK",$C22>0,$F22>0),($J22+$K22),0)) -> 0.00 | AC22: =(IF(AND($B22="PK/BK",$C22>0,$F22>0),(($N22+$O22)/12),0)) -> 0.00 | AD22: =(IF(AND($B22="PK/BK o.",$C22>0,$F22>0),($G22+$H22),0)) -> 0.00 | AE22: =(IF(AND($B22="PK/BK o.",$C22>0,$F22>0),$I22,0)) -> 0.00 | AF22: =(IF(AND($B22="PK/BK o.",$C22>0,$F22>0),($J22+$K22),0)) -> 0.00 | AG22: =(IF(AND($B22="PK/BK o.",$C22>0,$F22>0),(($N22+$O22)/12),0)) -> 0.00 | AH22: =IF(AND($B22="PFK/BFK",$C22>0,$F22>0),$C22,0) -> 0.00 | AI22: =IF(AND($B22="PK/BK",$C22>0,$F22>0),$C22,0) -> 0.00 | AJ22: =IF(AND($B22="PK/BK o.",$C22>0,$F22>0),$C22,0) -> 0.00 | AK22: =IF(AND($B22="PFK/BFK",$C22>0,$F22>0),$S22,0) -> 0.00 | AL22: =IF(AND($B22="PK/BK",$C22>0,$F22>0),$S22,0) -> 0.00 | AM22: =IF(AND($B22="PK/BK o.",$C22>0,$F22>0),$S22,0) -> 0.00 | AN22: =IF(AND($B22="PFK/BFK",$C22>0,$F22>0),$R22,0) -> 0.00 | AO22: =IF(AND($B22="PK/BK",$C22>0,$F22>0),$R22,0) -> 0.00 | AP22: =IF(AND($B22="PK/BK o.",$C22>0,$F22>0),$R22,0) -> 0.00 | AS22: Koch
G23: =IFERROR(F23*C23,"") -> 0.00 | S23: =IFERROR(IF(A23<>"GfB",(SUM(G23:J23,L23,P23)*12+(N23+O23))*(100+$J$12+$J$13)%+((K23+M23+Q23+R23*('B4_Allgemeine Angaben'!$L$53=1))*12),(SUM(G23:J23,L23,P23)*12+(N23+O23))*(100+$J$15+$J$13)%+((K23+M23+Q23+R23*('B4_Allgemeine Angaben'!$L$53=1))*12)),0) -> 0.00 | T23: =IF(ISERROR(S23/C23),0,(S23/C23)) -> 0.00 | V23: =(IF(AND($B23="PFK/BFK",$C23>0,$F23>0),($G23+$H23),0)) -> 0.00 | W23: =(IF(AND($B23="PFK/BFK",$C23>0,$F23>0),$I23,0)) -> 0.00 | X23: =(IF(AND($B23="PFK/BFK",$C23>0,$F23>0),($J23+$K23),0)) -> 0.00 | Y23: =(IF(AND($B23="PFK/BFK",$C23>0,$F23>0),(($N23+$O23)/12),0)) -> 0.00 | Z23: =(IF(AND($B23="PK/BK",$C23>0,$F23>0),($G23+$H23),0)) -> 0.00 | AA23: =(IF(AND($B23="PK/BK",$C23>0,$F23>0),$I23,0)) -> 0.00 | AB23: =(IF(AND($B23="PK/BK",$C23>0,$F23>0),($J23+$K23),0)) -> 0.00 | AC23: =(IF(AND($B23="PK/BK",$C23>0,$F23>0),(($N23+$O23)/12),0)) -> 0.00 | AD23: =(IF(AND($B23="PK/BK o.",$C23>0,$F23>0),($G23+$H23),0)) -> 0.00 | AE23: =(IF(AND($B23="PK/BK o.",$C23>0,$F23>0),$I23,0)) -> 0.00 | AF23: =(IF(AND($B23="PK/BK o.",$C23>0,$F23>0),($J23+$K23),0)) -> 0.00 | AG23: =(IF(AND($B23="PK/BK o.",$C23>0,$F23>0),(($N23+$O23)/12),0)) -> 0.00 | AH23: =IF(AND($B23="PFK/BFK",$C23>0,$F23>0),$C23,0) -> 0.00 | AI23: =IF(AND($B23="PK/BK",$C23>0,$F23>0),$C23,0) -> 0.00 | AJ23: =IF(AND($B23="PK/BK o.",$C23>0,$F23>0),$C23,0) -> 0.00 | AK23: =IF(AND($B23="PFK/BFK",$C23>0,$F23>0),$S23,0) -> 0.00 | AL23: =IF(AND($B23="PK/BK",$C23>0,$F23>0),$S23,0) -> 0.00 | AM23: =IF(AND($B23="PK/BK o.",$C23>0,$F23>0),$S23,0) -> 0.00 | AN23: =IF(AND($B23="PFK/BFK",$C23>0,$F23>0),$R23,0) -> 0.00 | AO23: =IF(AND($B23="PK/BK",$C23>0,$F23>0),$R23,0) -> 0.00 | AP23: =IF(AND($B23="PK/BK o.",$C23>0,$F23>0),$R23,0) -> 0.00
G24: 0.00 | S24: =IFERROR(IF(A24<>"GfB",(SUM(G24:J24,L24,P24)*12+(N24+O24))*(100+$J$12+$J$13)%+((K24+M24+Q24+R24*('B4_Allgemeine Angaben'!$L$53=1))*12),(SUM(G24:J24,L24,P24)*12+(N24+O24))*(100+$J$15+$J$13)%+((K24+M24+Q24+R24*('B4_Allgemeine Angaben'!$L$53=1))*12)),0) -> 0.00 | T24: 0.00 | V24: 0.00 | W24: 0.00 | X24: 0.00 | Y24: 0.00 | Z24: 0.00 | AA24: 0.00 | AB24: 0.00 | AC24: 0.00 | AD24: 0.00 | AE24: 0.00 | AF24: 0.00 | AG24: 0.00 | AH24: 0.00 | AI24: 0.00 | AJ24: 0.00 | AK24: 0.00 | AL24: 0.00 | AM24: 0.00 | AN24: 0.00 | AO24: 0.00 | AP24: 0.00
G25: 0.00 | S25: =IFERROR(IF(A25<>"GfB",(SUM(G25:J25,L25,P25)*12+(N25+O25))*(100+$J$12+$J$13)%+((K25+M25+Q25+R25*('B4_Allgemeine Angaben'!$L$53=1))*12),(SUM(G25:J25,L25,P25)*12+(N25+O25))*(100+$J$15+$J$13)%+((K25+M25+Q25+R25*('B4_Allgemeine Angaben'!$L$53=1))*12)),0) -> 0.00 | T25: 0.00 | V25: 0.00 | W25: 0.00 | X25: 0.00 | Y25: 0.00 | Z25: 0.00 | AA25: 0.00 | AB25: 0.00 | AC25: 0.00 | AD25: 0.00 | AE25: 0.00 | AF25: 0.00 | AG25: 0.00 | AH25: 0.00 | AI25: 0.00 | AJ25: 0.00 | AK25: 0.00 | AL25: 0.00 | AM25: 0.00 | AN25: 0.00 | AO25: 0.00 | AP25: 0.00
G26: 0.00 | S26: =IFERROR(IF(A26<>"GfB",(SUM(G26:J26,L26,P26)*12+(N26+O26))*(100+$J$12+$J$13)%+((K26+M26+Q26+R26*('B4_Allgemeine Angaben'!$L$53=1))*12),(SUM(G26:J26,L26,P26)*12+(N26+O26))*(100+$J$15+$J$13)%+((K26+M26+Q26+R26*('B4_Allgemeine Angaben'!$L$53=1))*12)),0) -> 0.00 | T26: 0.00 | V26: 0.00 | W26: 0.00 | X26: 0.00 | Y26: 0.00 | Z26: 0.00 | AA26: 0.00 | AB26: 0.00 | AC26: 0.00 | AD26: 0.00 | AE26: 0.00 | AF26: 0.00 | AG26: 0.00 | AH26: 0.00 | AI26: 0.00 | AJ26: 0.00 | AK26: 0.00 | AL26: 0.00 | AM26: 0.00 | AN26: 0.00 | AO26: 0.00 | AP26: 0.00
G27: 0.00 | S27: =IFERROR(IF(A27<>"GfB",(SUM(G27:J27,L27,P27)*12+(N27+O27))*(100+$J$12+$J$13)%+((K27+M27+Q27+R27*('B4_Allgemeine Angaben'!$L$53=1))*12),(SUM(G27:J27,L27,P27)*12+(N27+O27))*(100+$J$15+$J$13)%+((K27+M27+Q27+R27*('B4_Allgemeine Angaben'!$L$53=1))*12)),0) -> 0.00 | T27: 0.00 | V27: 0.00 | W27: 0.00 | X27: 0.00 | Y27: 0.00 | Z27: 0.00 | AA27: 0.00 | AB27: 0.00 | AC27: 0.00 | AD27: 0.00 | AE27: 0.00 | AF27: 0.00 | AG27: 0.00 | AH27: 0.00 | AI27: 0.00 | AJ27: 0.00 | AK27: 0.00 | AL27: 0.00 | AM27: 0.00 | AN27: 0.00 | AO27: 0.00 | AP27: 0.00
G28: 0.00 | S28: =IFERROR(IF(A28<>"GfB",(SUM(G28:J28,L28,P28)*12+(N28+O28))*(100+$J$12+$J$13)%+((K28+M28+Q28+R28*('B4_Allgemeine Angaben'!$L$53=1))*12),(SUM(G28:J28,L28,P28)*12+(N28+O28))*(100+$J$15+$J$13)%+((K28+M28+Q28+R28*('B4_Allgemeine Angaben'!$L$53=1))*12)),0) -> 0.00 | T28: 0.00 | V28: 0.00 | W28: 0.00 | X28: 0.00 | Y28: 0.00 | Z28: 0.00 | AA28: 0.00 | AB28: 0.00 | AC28: 0.00 | AD28: 0.00 | AE28: 0.00 | AF28: 0.00 | AG28: 0.00 | AH28: 0.00 | AI28: 0.00 | AJ28: 0.00 | AK28: 0.00 | AL28: 0.00 | AM28: 0.00 | AN28: 0.00 | AO28: 0.00 | AP28: 0.00
G29: 0.00 | S29: =IFERROR(IF(A29<>"GfB",(SUM(G29:J29,L29,P29)*12+(N29+O29))*(100+$J$12+$J$13)%+((K29+M29+Q29+R29*('B4_Allgemeine Angaben'!$L$53=1))*12),(SUM(G29:J29,L29,P29)*12+(N29+O29))*(100+$J$15+$J$13)%+((K29+M29+Q29+R29*('B4_Allgemeine Angaben'!$L$53=1))*12)),0) -> 0.00 | T29: 0.00 | V29: 0.00 | W29: 0.00 | X29: 0.00 | Y29: 0.00 | Z29: 0.00 | AA29: 0.00 | AB29: 0.00 | AC29: 0.00 | AD29: 0.00 | AE29: 0.00 | AF29: 0.00 | AG29: 0.00 | AH29: 0.00 | AI29: 0.00 | AJ29: 0.00 | AK29: 0.00 | AL29: 0.00 | AM29: 0.00 | AN29: 0.00 | AO29: 0.00 | AP29: 0.00
G30: 0.00 | S30: =IFERROR(IF(A30<>"GfB",(SUM(G30:J30,L30,P30)*12+(N30+O30))*(100+$J$12+$J$13)%+((K30+M30+Q30+R30*('B4_Allgemeine Angaben'!$L$53=1))*12),(SUM(G30:J30,L30,P30)*12+(N30+O30))*(100+$J$15+$J$13)%+((K30+M30+Q30+R30*('B4_Allgemeine Angaben'!$L$53=1))*12)),0) -> 0.00 | T30: 0.00 | V30: 0.00 | W30: 0.00 | X30: 0.00 | Y30: 0.00 | Z30: 0.00 | AA30: 0.00 | AB30: 0.00 | AC30: 0.00 | AD30: 0.00 | AE30: 0.00 | AF30: 0.00 | AG30: 0.00 | AH30: 0.00 | AI30: 0.00 | AJ30: 0.00 | AK30: 0.00 | AL30: 0.00 | AM30: 0.00 | AN30: 0.00 | AO30: 0.00 | AP30: 0.00
G31: 0.00 | S31: =IFERROR(IF(A31<>"GfB",(SUM(G31:J31,L31,P31)*12+(N31+O31))*(100+$J$12+$J$13)%+((K31+M31+Q31+R31*('B4_Allgemeine Angaben'!$L$53=1))*12),(SUM(G31:J31,L31,P31)*12+(N31+O31))*(100+$J$15+$J$13)%+((K31+M31+Q31+R31*('B4_Allgemeine Angaben'!$L$53=1))*12)),0) -> 0.00 | T31: 0.00 | V31: 0.00 | W31: 0.00 | X31: 0.00 | Y31: 0.00 | Z31: 0.00 | AA31: 0.00 | AB31: 0.00 | AC31: 0.00 | AD31: 0.00 | AE31: 0.00 | AF31: 0.00 | AG31: 0.00 | AH31: 0.00 | AI31: 0.00 | AJ31: 0.00 | AK31: 0.00 | AL31: 0.00 | AM31: 0.00 | AN31: 0.00 | AO31: 0.00 | AP31: 0.00
G32: 0.00 | S32: =IFERROR(IF(A32<>"GfB",(SUM(G32:J32,L32,P32)*12+(N32+O32))*(100+$J$12+$J$13)%+((K32+M32+Q32+R32*('B4_Allgemeine Angaben'!$L$53=1))*12),(SUM(G32:J32,L32,P32)*12+(N32+O32))*(100+$J$15+$J$13)%+((K32+M32+Q32+R32*('B4_Allgemeine Angaben'!$L$53=1))*12)),0) -> 0.00 | T32: 0.00 | V32: 0.00 | W32: 0.00 | X32: 0.00 | Y32: 0.00 | Z32: 0.00 | AA32: 0.00 | AB32: 0.00 | AC32: 0.00 | AD32: 0.00 | AE32: 0.00 | AF32: 0.00 | AG32: 0.00 | AH32: 0.00 | AI32: 0.00 | AJ32: 0.00 | AK32: 0.00 | AL32: 0.00 | AM32: 0.00 | AN32: 0.00 | AO32: 0.00 | AP32: 0.00
G33: 0.00 | S33: =IFERROR(IF(A33<>"GfB",(SUM(G33:J33,L33,P33)*12+(N33+O33))*(100+$J$12+$J$13)%+((K33+M33+Q33+R33*('B4_Allgemeine Angaben'!$L$53=1))*12),(SUM(G33:J33,L33,P33)*12+(N33+O33))*(100+$J$15+$J$13)%+((K33+M33+Q33+R33*('B4_Allgemeine Angaben'!$L$53=1))*12)),0) -> 0.00 | T33: 0.00 | V33: 0.00 | W33: 0.00 | X33: 0.00 | Y33: 0.00 | Z33: 0.00 | AA33: 0.00 | AB33: 0.00 | AC33: 0.00 | AD33: 0.00 | AE33: 0.00 | AF33: 0.00 | AG33: 0.00 | AH33: 0.00 | AI33: 0.00 | AJ33: 0.00 | AK33: 0.00 | AL33: 0.00 | AM33: 0.00 | AN33: 0.00 | AO33: 0.00 | AP33: 0.00
G34: 0.00 | S34: =IFERROR(IF(A34<>"GfB",(SUM(G34:J34,L34,P34)*12+(N34+O34))*(100+$J$12+$J$13)%+((K34+M34+Q34+R34*('B4_Allgemeine Angaben'!$L$53=1))*12),(SUM(G34:J34,L34,P34)*12+(N34+O34))*(100+$J$15+$J$13)%+((K34+M34+Q34+R34*('B4_Allgemeine Angaben'!$L$53=1))*12)),0) -> 0.00 | T34: 0.00 | V34: 0.00 | W34: 0.00 | X34: 0.00 | Y34: 0.00 | Z34: 0.00 | AA34: 0.00 | AB34: 0.00 | AC34: 0.00 | AD34: 0.00 | AE34: 0.00 | AF34: 0.00 | AG34: 0.00 | AH34: 0.00 | AI34: 0.00 | AJ34: 0.00 | AK34: 0.00 | AL34: 0.00 | AM34: 0.00 | AN34: 0.00 | AO34: 0.00 | AP34: 0.00
G35: 0.00 | S35: =IFERROR(IF(A35<>"GfB",(SUM(G35:J35,L35,P35)*12+(N35+O35))*(100+$J$12+$J$13)%+((K35+M35+Q35+R35*('B4_Allgemeine Angaben'!$L$53=1))*12),(SUM(G35:J35,L35,P35)*12+(N35+O35))*(100+$J$15+$J$13)%+((K35+M35+Q35+R35*('B4_Allgemeine Angaben'!$L$53=1))*12)),0) -> 0.00 | T35: 0.00 | V35: 0.00 | W35: 0.00 | X35: 0.00 | Y35: 0.00 | Z35: 0.00 | AA35: 0.00 | AB35: 0.00 | AC35: 0.00 | AD35: 0.00 | AE35: 0.00 | AF35: 0.00 | AG35: 0.00 | AH35: 0.00 | AI35: 0.00 | AJ35: 0.00 | AK35: 0.00 | AL35: 0.00 | AM35: 0.00 | AN35: 0.00 | AO35: 0.00 | AP35: 0.00
G36: 0.00 | S36: =IFERROR(IF(A36<>"GfB",(SUM(G36:J36,L36,P36)*12+(N36+O36))*(100+$J$12+$J$13)%+((K36+M36+Q36+R36*('B4_Allgemeine Angaben'!$L$53=1))*12),(SUM(G36:J36,L36,P36)*12+(N36+O36))*(100+$J$15+$J$13)%+((K36+M36+Q36+R36*('B4_Allgemeine Angaben'!$L$53=1))*12)),0) -> 0.00 | T36: 0.00 | V36: 0.00 | W36: 0.00 | X36: 0.00 | Y36: 0.00 | Z36: 0.00 | AA36: 0.00 | AB36: 0.00 | AC36: 0.00 | AD36: 0.00 | AE36: 0.00 | AF36: 0.00 | AG36: 0.00 | AH36: 0.00 | AI36: 0.00 | AJ36: 0.00 | AK36: 0.00 | AL36: 0.00 | AM36: 0.00 | AN36: 0.00 | AO36: 0.00 | AP36: 0.00
G37: 0.00 | S37: =IFERROR(IF(A37<>"GfB",(SUM(G37:J37,L37,P37)*12+(N37+O37))*(100+$J$12+$J$13)%+((K37+M37+Q37+R37*('B4_Allgemeine Angaben'!$L$53=1))*12),(SUM(G37:J37,L37,P37)*12+(N37+O37))*(100+$J$15+$J$13)%+((K37+M37+Q37+R37*('B4_Allgemeine Angaben'!$L$53=1))*12)),0) -> 0.00 | T37: 0.00 | V37: 0.00 | W37: 0.00 | X37: 0.00 | Y37: 0.00 | Z37: 0.00 | AA37: 0.00 | AB37: 0.00 | AC37: 0.00 | AD37: 0.00 | AE37: 0.00 | AF37: 0.00 | AG37: 0.00 | AH37: 0.00 | AI37: 0.00 | AJ37: 0.00 | AK37: 0.00 | AL37: 0.00 | AM37: 0.00 | AN37: 0.00 | AO37: 0.00 | AP37: 0.00
G38: 0.00 | S38: =IFERROR(IF(A38<>"GfB",(SUM(G38:J38,L38,P38)*12+(N38+O38))*(100+$J$12+$J$13)%+((K38+M38+Q38+R38*('B4_Allgemeine Angaben'!$L$53=1))*12),(SUM(G38:J38,L38,P38)*12+(N38+O38))*(100+$J$15+$J$13)%+((K38+M38+Q38+R38*('B4_Allgemeine Angaben'!$L$53=1))*12)),0) -> 0.00 | T38: 0.00 | V38: 0.00 | W38: 0.00 | X38: 0.00 | Y38: 0.00 | Z38: 0.00 | AA38: 0.00 | AB38: 0.00 | AC38: 0.00 | AD38: 0.00 | AE38: 0.00 | AF38: 0.00 | AG38: 0.00 | AH38: 0.00 | AI38: 0.00 | AJ38: 0.00 | AK38: 0.00 | AL38: 0.00 | AM38: 0.00 | AN38: 0.00 | AO38: 0.00 | AP38: 0.00
G39: 0.00 | S39: =IFERROR(IF(A39<>"GfB",(SUM(G39:J39,L39,P39)*12+(N39+O39))*(100+$J$12+$J$13)%+((K39+M39+Q39+R39*('B4_Allgemeine Angaben'!$L$53=1))*12),(SUM(G39:J39,L39,P39)*12+(N39+O39))*(100+$J$15+$J$13)%+((K39+M39+Q39+R39*('B4_Allgemeine Angaben'!$L$53=1))*12)),0) -> 0.00 | T39: 0.00 | V39: 0.00 | W39: 0.00 | X39: 0.00 | Y39: 0.00 | Z39: 0.00 | AA39: 0.00 | AB39: 0.00 | AC39: 0.00 | AD39: 0.00 | AE39: 0.00 | AF39: 0.00 | AG39: 0.00 | AH39: 0.00 | AI39: 0.00 | AJ39: 0.00 | AK39: 0.00 | AL39: 0.00 | AM39: 0.00 | AN39: 0.00 | AO39: 0.00 | AP39: 0.00
G40: 0.00 | S40: =IFERROR(IF(A40<>"GfB",(SUM(G40:J40,L40,P40)*12+(N40+O40))*(100+$J$12+$J$13)%+((K40+M40+Q40+R40*('B4_Allgemeine Angaben'!$L$53=1))*12),(SUM(G40:J40,L40,P40)*12+(N40+O40))*(100+$J$15+$J$13)%+((K40+M40+Q40+R40*('B4_Allgemeine Angaben'!$L$53=1))*12)),0) -> 0.00 | T40: 0.00 | V40: 0.00 | W40: 0.00 | X40: 0.00 | Y40: 0.00 | Z40: 0.00 | AA40: 0.00 | AB40: 0.00 | AC40: 0.00 | AD40: 0.00 | AE40: 0.00 | AF40: 0.00 | AG40: 0.00 | AH40: 0.00 | AI40: 0.00 | AJ40: 0.00 | AK40: 0.00 | AL40: 0.00 | AM40: 0.00 | AN40: 0.00 | AO40: 0.00 | AP40: 0.00
G41: 0.00 | S41: =IFERROR(IF(A41<>"GfB",(SUM(G41:J41,L41,P41)*12+(N41+O41))*(100+$J$12+$J$13)%+((K41+M41+Q41+R41*('B4_Allgemeine Angaben'!$L$53=1))*12),(SUM(G41:J41,L41,P41)*12+(N41+O41))*(100+$J$15+$J$13)%+((K41+M41+Q41+R41*('B4_Allgemeine Angaben'!$L$53=1))*12)),0) -> 0.00 | T41: 0.00 | V41: 0.00 | W41: 0.00 | X41: 0.00 | Y41: 0.00 | Z41: 0.00 | AA41: 0.00 | AB41: 0.00 | AC41: 0.00 | AD41: 0.00 | AE41: 0.00 | AF41: 0.00 | AG41: 0.00 | AH41: 0.00 | AI41: 0.00 | AJ41: 0.00 | AK41: 0.00 | AL41: 0.00 | AM41: 0.00 | AN41: 0.00 | AO41: 0.00 | AP41: 0.00
G42: 0.00 | S42: =IFERROR(IF(A42<>"GfB",(SUM(G42:J42,L42,P42)*12+(N42+O42))*(100+$J$12+$J$13)%+((K42+M42+Q42+R42*('B4_Allgemeine Angaben'!$L$53=1))*12),(SUM(G42:J42,L42,P42)*12+(N42+O42))*(100+$J$15+$J$13)%+((K42+M42+Q42+R42*('B4_Allgemeine Angaben'!$L$53=1))*12)),0) -> 0.00 | T42: 0.00 | V42: 0.00 | W42: 0.00 | X42: 0.00 | Y42: 0.00 | Z42: 0.00 | AA42: 0.00 | AB42: 0.00 | AC42: 0.00 | AD42: 0.00 | AE42: 0.00 | AF42: 0.00 | AG42: 0.00 | AH42: 0.00 | AI42: 0.00 | AJ42: 0.00 | AK42: 0.00 | AL42: 0.00 | AM42: 0.00 | AN42: 0.00 | AO42: 0.00 | AP42: 0.00
G43: 0.00 | S43: =IFERROR(IF(A43<>"GfB",(SUM(G43:J43,L43,P43)*12+(N43+O43))*(100+$J$12+$J$13)%+((K43+M43+Q43+R43*('B4_Allgemeine Angaben'!$L$53=1))*12),(SUM(G43:J43,L43,P43)*12+(N43+O43))*(100+$J$15+$J$13)%+((K43+M43+Q43+R43*('B4_Allgemeine Angaben'!$L$53=1))*12)),0) -> 0.00 | T43: 0.00 | V43: 0.00 | W43: 0.00 | X43: 0.00 | Y43: 0.00 | Z43: 0.00 | AA43: 0.00 | AB43: 0.00 | AC43: 0.00 | AD43: 0.00 | AE43: 0.00 | AF43: 0.00 | AG43: 0.00 | AH43: 0.00 | AI43: 0.00 | AJ43: 0.00 | AK43: 0.00 | AL43: 0.00 | AM43: 0.00 | AN43: 0.00 | AO43: 0.00 | AP43: 0.00
G44: 0.00 | S44: =IFERROR(IF(A44<>"GfB",(SUM(G44:J44,L44,P44)*12+(N44+O44))*(100+$J$12+$J$13)%+((K44+M44+Q44+R44*('B4_Allgemeine Angaben'!$L$53=1))*12),(SUM(G44:J44,L44,P44)*12+(N44+O44))*(100+$J$15+$J$13)%+((K44+M44+Q44+R44*('B4_Allgemeine Angaben'!$L$53=1))*12)),0) -> 0.00 | T44: 0.00 | V44: 0.00 | W44: 0.00 | X44: 0.00 | Y44: 0.00 | Z44: 0.00 | AA44: 0.00 | AB44: 0.00 | AC44: 0.00 | AD44: 0.00 | AE44: 0.00 | AF44: 0.00 | AG44: 0.00 | AH44: 0.00 | AI44: 0.00 | AJ44: 0.00 | AK44: 0.00 | AL44: 0.00 | AM44: 0.00 | AN44: 0.00 | AO44: 0.00 | AP44: 0.00
G45: 0.00 | S45: =IFERROR(IF(A45<>"GfB",(SUM(G45:J45,L45,P45)*12+(N45+O45))*(100+$J$12+$J$13)%+((K45+M45+Q45+R45*('B4_Allgemeine Angaben'!$L$53=1))*12),(SUM(G45:J45,L45,P45)*12+(N45+O45))*(100+$J$15+$J$13)%+((K45+M45+Q45+R45*('B4_Allgemeine Angaben'!$L$53=1))*12)),0) -> 0.00 | T45: 0.00 | V45: 0.00 | W45: 0.00 | X45: 0.00 | Y45: 0.00 | Z45: 0.00 | AA45: 0.00 | AB45: 0.00 | AC45: 0.00 | AD45: 0.00 | AE45: 0.00 | AF45: 0.00 | AG45: 0.00 | AH45: 0.00 | AI45: 0.00 | AJ45: 0.00 | AK45: 0.00 | AL45: 0.00 | AM45: 0.00 | AN45: 0.00 | AO45: 0.00 | AP45: 0.00
G46: 0.00 | S46: =IFERROR(IF(A46<>"GfB",(SUM(G46:J46,L46,P46)*12+(N46+O46))*(100+$J$12+$J$13)%+((K46+M46+Q46+R46*('B4_Allgemeine Angaben'!$L$53=1))*12),(SUM(G46:J46,L46,P46)*12+(N46+O46))*(100+$J$15+$J$13)%+((K46+M46+Q46+R46*('B4_Allgemeine Angaben'!$L$53=1))*12)),0) -> 0.00 | T46: 0.00 | V46: 0.00 | W46: 0.00 | X46: 0.00 | Y46: 0.00 | Z46: 0.00 | AA46: 0.00 | AB46: 0.00 | AC46: 0.00 | AD46: 0.00 | AE46: 0.00 | AF46: 0.00 | AG46: 0.00 | AH46: 0.00 | AI46: 0.00 | AJ46: 0.00 | AK46: 0.00 | AL46: 0.00 | AM46: 0.00 | AN46: 0.00 | AO46: 0.00 | AP46: 0.00
G47: 0.00 | S47: =IFERROR(IF(A47<>"GfB",(SUM(G47:J47,L47,P47)*12+(N47+O47))*(100+$J$12+$J$13)%+((K47+M47+Q47+R47*('B4_Allgemeine Angaben'!$L$53=1))*12),(SUM(G47:J47,L47,P47)*12+(N47+O47))*(100+$J$15+$J$13)%+((K47+M47+Q47+R47*('B4_Allgemeine Angaben'!$L$53=1))*12)),0) -> 0.00 | T47: 0.00 | V47: 0.00 | W47: 0.00 | X47: 0.00 | Y47: 0.00 | Z47: 0.00 | AA47: 0.00 | AB47: 0.00 | AC47: 0.00 | AD47: 0.00 | AE47: 0.00 | AF47: 0.00 | AG47: 0.00 | AH47: 0.00 | AI47: 0.00 | AJ47: 0.00 | AK47: 0.00 | AL47: 0.00 | AM47: 0.00 | AN47: 0.00 | AO47: 0.00 | AP47: 0.00
G48: 0.00 | S48: =IFERROR(IF(A48<>"GfB",(SUM(G48:J48,L48,P48)*12+(N48+O48))*(100+$J$12+$J$13)%+((K48+M48+Q48+R48*('B4_Allgemeine Angaben'!$L$53=1))*12),(SUM(G48:J48,L48,P48)*12+(N48+O48))*(100+$J$15+$J$13)%+((K48+M48+Q48+R48*('B4_Allgemeine Angaben'!$L$53=1))*12)),0) -> 0.00 | T48: 0.00 | V48: 0.00 | W48: 0.00 | X48: 0.00 | Y48: 0.00 | Z48: 0.00 | AA48: 0.00 | AB48: 0.00 | AC48: 0.00 | AD48: 0.00 | AE48: 0.00 | AF48: 0.00 | AG48: 0.00 | AH48: 0.00 | AI48: 0.00 | AJ48: 0.00 | AK48: 0.00 | AL48: 0.00 | AM48: 0.00 | AN48: 0.00 | AO48: 0.00 | AP48: 0.00
G49: 0.00 | S49: =IFERROR(IF(A49<>"GfB",(SUM(G49:J49,L49,P49)*12+(N49+O49))*(100+$J$12+$J$13)%+((K49+M49+Q49+R49*('B4_Allgemeine Angaben'!$L$53=1))*12),(SUM(G49:J49,L49,P49)*12+(N49+O49))*(100+$J$15+$J$13)%+((K49+M49+Q49+R49*('B4_Allgemeine Angaben'!$L$53=1))*12)),0) -> 0.00 | T49: 0.00 | V49: 0.00 | W49: 0.00 | X49: 0.00 | Y49: 0.00 | Z49: 0.00 | AA49: 0.00 | AB49: 0.00 | AC49: 0.00 | AD49: 0.00 | AE49: 0.00 | AF49: 0.00 | AG49: 0.00 | AH49: 0.00 | AI49: 0.00 | AJ49: 0.00 | AK49: 0.00 | AL49: 0.00 | AM49: 0.00 | AN49: 0.00 | AO49: 0.00 | AP49: 0.00
G50: 0.00 | S50: =IFERROR(IF(A50<>"GfB",(SUM(G50:J50,L50,P50)*12+(N50+O50))*(100+$J$12+$J$13)%+((K50+M50+Q50+R50*('B4_Allgemeine Angaben'!$L$53=1))*12),(SUM(G50:J50,L50,P50)*12+(N50+O50))*(100+$J$15+$J$13)%+((K50+M50+Q50+R50*('B4_Allgemeine Angaben'!$L$53=1))*12)),0) -> 0.00 | T50: 0.00 | V50: 0.00 | W50: 0.00 | X50: 0.00 | Y50: 0.00 | Z50: 0.00 | AA50: 0.00 | AB50: 0.00 | AC50: 0.00 | AD50: 0.00 | AE50: 0.00 | AF50: 0.00 | AG50: 0.00 | AH50: 0.00 | AI50: 0.00 | AJ50: 0.00 | AK50: 0.00 | AL50: 0.00 | AM50: 0.00 | AN50: 0.00 | AO50: 0.00 | AP50: 0.00
G51: 0.00 | S51: =IFERROR(IF(A51<>"GfB",(SUM(G51:J51,L51,P51)*12+(N51+O51))*(100+$J$12+$J$13)%+((K51+M51+Q51+R51*('B4_Allgemeine Angaben'!$L$53=1))*12),(SUM(G51:J51,L51,P51)*12+(N51+O51))*(100+$J$15+$J$13)%+((K51+M51+Q51+R51*('B4_Allgemeine Angaben'!$L$53=1))*12)),0) -> 0.00 | T51: 0.00 | V51: 0.00 | W51: 0.00 | X51: 0.00 | Y51: 0.00 | Z51: 0.00 | AA51: 0.00 | AB51: 0.00 | AC51: 0.00 | AD51: 0.00 | AE51: 0.00 | AF51: 0.00 | AG51: 0.00 | AH51: 0.00 | AI51: 0.00 | AJ51: 0.00 | AK51: 0.00 | AL51: 0.00 | AM51: 0.00 | AN51: 0.00 | AO51: 0.00 | AP51: 0.00
G52: 0.00 | S52: =IFERROR(IF(A52<>"GfB",(SUM(G52:J52,L52,P52)*12+(N52+O52))*(100+$J$12+$J$13)%+((K52+M52+Q52+R52*('B4_Allgemeine Angaben'!$L$53=1))*12),(SUM(G52:J52,L52,P52)*12+(N52+O52))*(100+$J$15+$J$13)%+((K52+M52+Q52+R52*('B4_Allgemeine Angaben'!$L$53=1))*12)),0) -> 0.00 | T52: 0.00 | V52: 0.00 | W52: 0.00 | X52: 0.00 | Y52: 0.00 | Z52: 0.00 | AA52: 0.00 | AB52: 0.00 | AC52: 0.00 | AD52: 0.00 | AE52: 0.00 | AF52: 0.00 | AG52: 0.00 | AH52: 0.00 | AI52: 0.00 | AJ52: 0.00 | AK52: 0.00 | AL52: 0.00 | AM52: 0.00 | AN52: 0.00 | AO52: 0.00 | AP52: 0.00
G53: 0.00 | S53: =IFERROR(IF(A53<>"GfB",(SUM(G53:J53,L53,P53)*12+(N53+O53))*(100+$J$12+$J$13)%+((K53+M53+Q53+R53*('B4_Allgemeine Angaben'!$L$53=1))*12),(SUM(G53:J53,L53,P53)*12+(N53+O53))*(100+$J$15+$J$13)%+((K53+M53+Q53+R53*('B4_Allgemeine Angaben'!$L$53=1))*12)),0) -> 0.00 | T53: 0.00 | V53: 0.00 | W53: 0.00 | X53: 0.00 | Y53: 0.00 | Z53: 0.00 | AA53: 0.00 | AB53: 0.00 | AC53: 0.00 | AD53: 0.00 | AE53: 0.00 | AF53: 0.00 | AG53: 0.00 | AH53: 0.00 | AI53: 0.00 | AJ53: 0.00 | AK53: 0.00 | AL53: 0.00 | AM53: 0.00 | AN53: 0.00 | AO53: 0.00 | AP53: 0.00
G54: 0.00 | S54: =IFERROR(IF(A54<>"GfB",(SUM(G54:J54,L54,P54)*12+(N54+O54))*(100+$J$12+$J$13)%+((K54+M54+Q54+R54*('B4_Allgemeine Angaben'!$L$53=1))*12),(SUM(G54:J54,L54,P54)*12+(N54+O54))*(100+$J$15+$J$13)%+((K54+M54+Q54+R54*('B4_Allgemeine Angaben'!$L$53=1))*12)),0) -> 0.00 | T54: 0.00 | V54: 0.00 | W54: 0.00 | X54: 0.00 | Y54: 0.00 | Z54: 0.00 | AA54: 0.00 | AB54: 0.00 | AC54: 0.00 | AD54: 0.00 | AE54: 0.00 | AF54: 0.00 | AG54: 0.00 | AH54: 0.00 | AI54: 0.00 | AJ54: 0.00 | AK54: 0.00 | AL54: 0.00 | AM54: 0.00 | AN54: 0.00 | AO54: 0.00 | AP54: 0.00
G55: 0.00 | S55: =IFERROR(IF(A55<>"GfB",(SUM(G55:J55,L55,P55)*12+(N55+O55))*(100+$J$12+$J$13)%+((K55+M55+Q55+R55*('B4_Allgemeine Angaben'!$L$53=1))*12),(SUM(G55:J55,L55,P55)*12+(N55+O55))*(100+$J$15+$J$13)%+((K55+M55+Q55+R55*('B4_Allgemeine Angaben'!$L$53=1))*12)),0) -> 0.00 | T55: 0.00 | V55: 0.00 | W55: 0.00 | X55: 0.00 | Y55: 0.00 | Z55: 0.00 | AA55: 0.00 | AB55: 0.00 | AC55: 0.00 | AD55: 0.00 | AE55: 0.00 | AF55: 0.00 | AG55: 0.00 | AH55: 0.00 | AI55: 0.00 | AJ55: 0.00 | AK55: 0.00 | AL55: 0.00 | AM55: 0.00 | AN55: 0.00 | AO55: 0.00 | AP55: 0.00
G56: 0.00 | S56: =IFERROR(IF(A56<>"GfB",(SUM(G56:J56,L56,P56)*12+(N56+O56))*(100+$J$12+$J$13)%+((K56+M56+Q56+R56*('B4_Allgemeine Angaben'!$L$53=1))*12),(SUM(G56:J56,L56,P56)*12+(N56+O56))*(100+$J$15+$J$13)%+((K56+M56+Q56+R56*('B4_Allgemeine Angaben'!$L$53=1))*12)),0) -> 0.00 | T56: 0.00 | V56: 0.00 | W56: 0.00 | X56: 0.00 | Y56: 0.00 | Z56: 0.00 | AA56: 0.00 | AB56: 0.00 | AC56: 0.00 | AD56: 0.00 | AE56: 0.00 | AF56: 0.00 | AG56: 0.00 | AH56: 0.00 | AI56: 0.00 | AJ56: 0.00 | AK56: 0.00 | AL56: 0.00 | AM56: 0.00 | AN56: 0.00 | AO56: 0.00 | AP56: 0.00
G57: 0.00 | S57: =IFERROR(IF(A57<>"GfB",(SUM(G57:J57,L57,P57)*12+(N57+O57))*(100+$J$12+$J$13)%+((K57+M57+Q57+R57*('B4_Allgemeine Angaben'!$L$53=1))*12),(SUM(G57:J57,L57,P57)*12+(N57+O57))*(100+$J$15+$J$13)%+((K57+M57+Q57+R57*('B4_Allgemeine Angaben'!$L$53=1))*12)),0) -> 0.00 | T57: 0.00 | V57: 0.00 | W57: 0.00 | X57: 0.00 | Y57: 0.00 | Z57: 0.00 | AA57: 0.00 | AB57: 0.00 | AC57: 0.00 | AD57: 0.00 | AE57: 0.00 | AF57: 0.00 | AG57: 0.00 | AH57: 0.00 | AI57: 0.00 | AJ57: 0.00 | AK57: 0.00 | AL57: 0.00 | AM57: 0.00 | AN57: 0.00 | AO57: 0.00 | AP57: 0.00
G58: 0.00 | S58: =IFERROR(IF(A58<>"GfB",(SUM(G58:J58,L58,P58)*12+(N58+O58))*(100+$J$12+$J$13)%+((K58+M58+Q58+R58*('B4_Allgemeine Angaben'!$L$53=1))*12),(SUM(G58:J58,L58,P58)*12+(N58+O58))*(100+$J$15+$J$13)%+((K58+M58+Q58+R58*('B4_Allgemeine Angaben'!$L$53=1))*12)),0) -> 0.00 | T58: 0.00 | V58: 0.00 | W58: 0.00 | X58: 0.00 | Y58: 0.00 | Z58: 0.00 | AA58: 0.00 | AB58: 0.00 | AC58: 0.00 | AD58: 0.00 | AE58: 0.00 | AF58: 0.00 | AG58: 0.00 | AH58: 0.00 | AI58: 0.00 | AJ58: 0.00 | AK58: 0.00 | AL58: 0.00 | AM58: 0.00 | AN58: 0.00 | AO58: 0.00 | AP58: 0.00
G59: 0.00 | S59: =IFERROR(IF(A59<>"GfB",(SUM(G59:J59,L59,P59)*12+(N59+O59))*(100+$J$12+$J$13)%+((K59+M59+Q59+R59*('B4_Allgemeine Angaben'!$L$53=1))*12),(SUM(G59:J59,L59,P59)*12+(N59+O59))*(100+$J$15+$J$13)%+((K59+M59+Q59+R59*('B4_Allgemeine Angaben'!$L$53=1))*12)),0) -> 0.00 | T59: 0.00 | V59: 0.00 | W59: 0.00 | X59: 0.00 | Y59: 0.00 | Z59: 0.00 | AA59: 0.00 | AB59: 0.00 | AC59: 0.00 | AD59: 0.00 | AE59: 0.00 | AF59: 0.00 | AG59: 0.00 | AH59: 0.00 | AI59: 0.00 | AJ59: 0.00 | AK59: 0.00 | AL59: 0.00 | AM59: 0.00 | AN59: 0.00 | AO59: 0.00 | AP59: 0.00
G60: 0.00 | S60: =IFERROR(IF(A60<>"GfB",(SUM(G60:J60,L60,P60)*12+(N60+O60))*(100+$J$12+$J$13)%+((K60+M60+Q60+R60*('B4_Allgemeine Angaben'!$L$53=1))*12),(SUM(G60:J60,L60,P60)*12+(N60+O60))*(100+$J$15+$J$13)%+((K60+M60+Q60+R60*('B4_Allgemeine Angaben'!$L$53=1))*12)),0) -> 0.00 | T60: 0.00 | V60: 0.00 | W60: 0.00 | X60: 0.00 | Y60: 0.00 | Z60: 0.00 | AA60: 0.00 | AB60: 0.00 | AC60: 0.00 | AD60: 0.00 | AE60: 0.00 | AF60: 0.00 | AG60: 0.00 | AH60: 0.00 | AI60: 0.00 | AJ60: 0.00 | AK60: 0.00 | AL60: 0.00 | AM60: 0.00 | AN60: 0.00 | AO60: 0.00 | AP60: 0.00
G61: 0.00 | S61: =IFERROR(IF(A61<>"GfB",(SUM(G61:J61,L61,P61)*12+(N61+O61))*(100+$J$12+$J$13)%+((K61+M61+Q61+R61*('B4_Allgemeine Angaben'!$L$53=1))*12),(SUM(G61:J61,L61,P61)*12+(N61+O61))*(100+$J$15+$J$13)%+((K61+M61+Q61+R61*('B4_Allgemeine Angaben'!$L$53=1))*12)),0) -> 0.00 | T61: 0.00 | V61: 0.00 | W61: 0.00 | X61: 0.00 | Y61: 0.00 | Z61: 0.00 | AA61: 0.00 | AB61: 0.00 | AC61: 0.00 | AD61: 0.00 | AE61: 0.00 | AF61: 0.00 | AG61: 0.00 | AH61: 0.00 | AI61: 0.00 | AJ61: 0.00 | AK61: 0.00 | AL61: 0.00 | AM61: 0.00 | AN61: 0.00 | AO61: 0.00 | AP61: 0.00
G62: 0.00 | S62: =IFERROR(IF(A62<>"GfB",(SUM(G62:J62,L62,P62)*12+(N62+O62))*(100+$J$12+$J$13)%+((K62+M62+Q62+R62*('B4_Allgemeine Angaben'!$L$53=1))*12),(SUM(G62:J62,L62,P62)*12+(N62+O62))*(100+$J$15+$J$13)%+((K62+M62+Q62+R62*('B4_Allgemeine Angaben'!$L$53=1))*12)),0) -> 0.00 | T62: 0.00 | V62: 0.00 | W62: 0.00 | X62: 0.00 | Y62: 0.00 | Z62: 0.00 | AA62: 0.00 | AB62: 0.00 | AC62: 0.00 | AD62: 0.00 | AE62: 0.00 | AF62: 0.00 | AG62: 0.00 | AH62: 0.00 | AI62: 0.00 | AJ62: 0.00 | AK62: 0.00 | AL62: 0.00 | AM62: 0.00 | AN62: 0.00 | AO62: 0.00 | AP62: 0.00
G63: 0.00 | S63: =IFERROR(IF(A63<>"GfB",(SUM(G63:J63,L63,P63)*12+(N63+O63))*(100+$J$12+$J$13)%+((K63+M63+Q63+R63*('B4_Allgemeine Angaben'!$L$53=1))*12),(SUM(G63:J63,L63,P63)*12+(N63+O63))*(100+$J$15+$J$13)%+((K63+M63+Q63+R63*('B4_Allgemeine Angaben'!$L$53=1))*12)),0) -> 0.00 | T63: 0.00 | V63: 0.00 | W63: 0.00 | X63: 0.00 | Y63: 0.00 | Z63: 0.00 | AA63: 0.00 | AB63: 0.00 | AC63: 0.00 | AD63: 0.00 | AE63: 0.00 | AF63: 0.00 | AG63: 0.00 | AH63: 0.00 | AI63: 0.00 | AJ63: 0.00 | AK63: 0.00 | AL63: 0.00 | AM63: 0.00 | AN63: 0.00 | AO63: 0.00 | AP63: 0.00
G64: 0.00 | S64: =IFERROR(IF(A64<>"GfB",(SUM(G64:J64,L64,P64)*12+(N64+O64))*(100+$J$12+$J$13)%+((K64+M64+Q64+R64*('B4_Allgemeine Angaben'!$L$53=1))*12),(SUM(G64:J64,L64,P64)*12+(N64+O64))*(100+$J$15+$J$13)%+((K64+M64+Q64+R64*('B4_Allgemeine Angaben'!$L$53=1))*12)),0) -> 0.00 | T64: 0.00 | V64: 0.00 | W64: 0.00 | X64: 0.00 | Y64: 0.00 | Z64: 0.00 | AA64: 0.00 | AB64: 0.00 | AC64: 0.00 | AD64: 0.00 | AE64: 0.00 | AF64: 0.00 | AG64: 0.00 | AH64: 0.00 | AI64: 0.00 | AJ64: 0.00 | AK64: 0.00 | AL64: 0.00 | AM64: 0.00 | AN64: 0.00 | AO64: 0.00 | AP64: 0.00
G65: 0.00 | S65: =IFERROR(IF(A65<>"GfB",(SUM(G65:J65,L65,P65)*12+(N65+O65))*(100+$J$12+$J$13)%+((K65+M65+Q65+R65*('B4_Allgemeine Angaben'!$L$53=1))*12),(SUM(G65:J65,L65,P65)*12+(N65+O65))*(100+$J$15+$J$13)%+((K65+M65+Q65+R65*('B4_Allgemeine Angaben'!$L$53=1))*12)),0) -> 0.00 | T65: 0.00 | V65: 0.00 | W65: 0.00 | X65: 0.00 | Y65: 0.00 | Z65: 0.00 | AA65: 0.00 | AB65: 0.00 | AC65: 0.00 | AD65: 0.00 | AE65: 0.00 | AF65: 0.00 | AG65: 0.00 | AH65: 0.00 | AI65: 0.00 | AJ65: 0.00 | AK65: 0.00 | AL65: 0.00 | AM65: 0.00 | AN65: 0.00 | AO65: 0.00 | AP65: 0.00
G66: 0.00 | S66: =IFERROR(IF(A66<>"GfB",(SUM(G66:J66,L66,P66)*12+(N66+O66))*(100+$J$12+$J$13)%+((K66+M66+Q66+R66*('B4_Allgemeine Angaben'!$L$53=1))*12),(SUM(G66:J66,L66,P66)*12+(N66+O66))*(100+$J$15+$J$13)%+((K66+M66+Q66+R66*('B4_Allgemeine Angaben'!$L$53=1))*12)),0) -> 0.00 | T66: 0.00 | V66: 0.00 | W66: 0.00 | X66: 0.00 | Y66: 0.00 | Z66: 0.00 | AA66: 0.00 | AB66: 0.00 | AC66: 0.00 | AD66: 0.00 | AE66: 0.00 | AF66: 0.00 | AG66: 0.00 | AH66: 0.00 | AI66: 0.00 | AJ66: 0.00 | AK66: 0.00 | AL66: 0.00 | AM66: 0.00 | AN66: 0.00 | AO66: 0.00 | AP66: 0.00
G67: 0.00 | S67: =IFERROR(IF(A67<>"GfB",(SUM(G67:J67,L67,P67)*12+(N67+O67))*(100+$J$12+$J$13)%+((K67+M67+Q67+R67*('B4_Allgemeine Angaben'!$L$53=1))*12),(SUM(G67:J67,L67,P67)*12+(N67+O67))*(100+$J$15+$J$13)%+((K67+M67+Q67+R67*('B4_Allgemeine Angaben'!$L$53=1))*12)),0) -> 0.00 | T67: 0.00 | V67: 0.00 | W67: 0.00 | X67: 0.00 | Y67: 0.00 | Z67: 0.00 | AA67: 0.00 | AB67: 0.00 | AC67: 0.00 | AD67: 0.00 | AE67: 0.00 | AF67: 0.00 | AG67: 0.00 | AH67: 0.00 | AI67: 0.00 | AJ67: 0.00 | AK67: 0.00 | AL67: 0.00 | AM67: 0.00 | AN67: 0.00 | AO67: 0.00 | AP67: 0.00
G68: 0.00 | S68: =IFERROR(IF(A68<>"GfB",(SUM(G68:J68,L68,P68)*12+(N68+O68))*(100+$J$12+$J$13)%+((K68+M68+Q68+R68*('B4_Allgemeine Angaben'!$L$53=1))*12),(SUM(G68:J68,L68,P68)*12+(N68+O68))*(100+$J$15+$J$13)%+((K68+M68+Q68+R68*('B4_Allgemeine Angaben'!$L$53=1))*12)),0) -> 0.00 | T68: 0.00 | V68: 0.00 | W68: 0.00 | X68: 0.00 | Y68: 0.00 | Z68: 0.00 | AA68: 0.00 | AB68: 0.00 | AC68: 0.00 | AD68: 0.00 | AE68: 0.00 | AF68: 0.00 | AG68: 0.00 | AH68: 0.00 | AI68: 0.00 | AJ68: 0.00 | AK68: 0.00 | AL68: 0.00 | AM68: 0.00 | AN68: 0.00 | AO68: 0.00 | AP68: 0.00
G69: 0.00 | S69: =IFERROR(IF(A69<>"GfB",(SUM(G69:J69,L69,P69)*12+(N69+O69))*(100+$J$12+$J$13)%+((K69+M69+Q69+R69*('B4_Allgemeine Angaben'!$L$53=1))*12),(SUM(G69:J69,L69,P69)*12+(N69+O69))*(100+$J$15+$J$13)%+((K69+M69+Q69+R69*('B4_Allgemeine Angaben'!$L$53=1))*12)),0) -> 0.00 | T69: 0.00 | V69: 0.00 | W69: 0.00 | X69: 0.00 | Y69: 0.00 | Z69: 0.00 | AA69: 0.00 | AB69: 0.00 | AC69: 0.00 | AD69: 0.00 | AE69: 0.00 | AF69: 0.00 | AG69: 0.00 | AH69: 0.00 | AI69: 0.00 | AJ69: 0.00 | AK69: 0.00 | AL69: 0.00 | AM69: 0.00 | AN69: 0.00 | AO69: 0.00 | AP69: 0.00
G70: 0.00 | S70: =IFERROR(IF(A70<>"GfB",(SUM(G70:J70,L70,P70)*12+(N70+O70))*(100+$J$12+$J$13)%+((K70+M70+Q70+R70*('B4_Allgemeine Angaben'!$L$53=1))*12),(SUM(G70:J70,L70,P70)*12+(N70+O70))*(100+$J$15+$J$13)%+((K70+M70+Q70+R70*('B4_Allgemeine Angaben'!$L$53=1))*12)),0) -> 0.00 | T70: 0.00 | V70: 0.00 | W70: 0.00 | X70: 0.00 | Y70: 0.00 | Z70: 0.00 | AA70: 0.00 | AB70: 0.00 | AC70: 0.00 | AD70: 0.00 | AE70: 0.00 | AF70: 0.00 | AG70: 0.00 | AH70: 0.00 | AI70: 0.00 | AJ70: 0.00 | AK70: 0.00 | AL70: 0.00 | AM70: 0.00 | AN70: 0.00 | AO70: 0.00 | AP70: 0.00
G71: 0.00 | S71: =IFERROR(IF(A71<>"GfB",(SUM(G71:J71,L71,P71)*12+(N71+O71))*(100+$J$12+$J$13)%+((K71+M71+Q71+R71*('B4_Allgemeine Angaben'!$L$53=1))*12),(SUM(G71:J71,L71,P71)*12+(N71+O71))*(100+$J$15+$J$13)%+((K71+M71+Q71+R71*('B4_Allgemeine Angaben'!$L$53=1))*12)),0) -> 0.00 | T71: 0.00 | V71: 0.00 | W71: 0.00 | X71: 0.00 | Y71: 0.00 | Z71: 0.00 | AA71: 0.00 | AB71: 0.00 | AC71: 0.00 | AD71: 0.00 | AE71: 0.00 | AF71: 0.00 | AG71: 0.00 | AH71: 0.00 | AI71: 0.00 | AJ71: 0.00 | AK71: 0.00 | AL71: 0.00 | AM71: 0.00 | AN71: 0.00 | AO71: 0.00 | AP71: 0.00
G72: 0.00 | S72: =IFERROR(IF(A72<>"GfB",(SUM(G72:J72,L72,P72)*12+(N72+O72))*(100+$J$12+$J$13)%+((K72+M72+Q72+R72*('B4_Allgemeine Angaben'!$L$53=1))*12),(SUM(G72:J72,L72,P72)*12+(N72+O72))*(100+$J$15+$J$13)%+((K72+M72+Q72+R72*('B4_Allgemeine Angaben'!$L$53=1))*12)),0) -> 0.00 | T72: 0.00 | V72: 0.00 | W72: 0.00 | X72: 0.00 | Y72: 0.00 | Z72: 0.00 | AA72: 0.00 | AB72: 0.00 | AC72: 0.00 | AD72: 0.00 | AE72: 0.00 | AF72: 0.00 | AG72: 0.00 | AH72: 0.00 | AI72: 0.00 | AJ72: 0.00 | AK72: 0.00 | AL72: 0.00 | AM72: 0.00 | AN72: 0.00 | AO72: 0.00 | AP72: 0.00 | AS72: Beikoch
G73: 0.00 | S73: =IFERROR(IF(A73<>"GfB",(SUM(G73:J73,L73,P73)*12+(N73+O73))*(100+$J$12+$J$13)%+((K73+M73+Q73+R73*('B4_Allgemeine Angaben'!$L$53=1))*12),(SUM(G73:J73,L73,P73)*12+(N73+O73))*(100+$J$15+$J$13)%+((K73+M73+Q73+R73*('B4_Allgemeine Angaben'!$L$53=1))*12)),0) -> 0.00 | T73: 0.00 | V73: 0.00 | W73: 0.00 | X73: 0.00 | Y73: 0.00 | Z73: 0.00 | AA73: 0.00 | AB73: 0.00 | AC73: 0.00 | AD73: 0.00 | AE73: 0.00 | AF73: 0.00 | AG73: 0.00 | AH73: 0.00 | AI73: 0.00 | AJ73: 0.00 | AK73: 0.00 | AL73: 0.00 | AM73: 0.00 | AN73: 0.00 | AO73: 0.00 | AP73: 0.00 | AS73: Hilfskraft
G74: 0.00 | S74: =IFERROR(IF(A74<>"GfB",(SUM(G74:J74,L74,P74)*12+(N74+O74))*(100+$J$12+$J$13)%+((K74+M74+Q74+R74*('B4_Allgemeine Angaben'!$L$53=1))*12),(SUM(G74:J74,L74,P74)*12+(N74+O74))*(100+$J$15+$J$13)%+((K74+M74+Q74+R74*('B4_Allgemeine Angaben'!$L$53=1))*12)),0) -> 0.00 | T74: 0.00 | V74: 0.00 | W74: 0.00 | X74: 0.00 | Y74: 0.00 | Z74: 0.00 | AA74: 0.00 | AB74: 0.00 | AC74: 0.00 | AD74: 0.00 | AE74: 0.00 | AF74: 0.00 | AG74: 0.00 | AH74: 0.00 | AI74: 0.00 | AJ74: 0.00 | AK74: 0.00 | AL74: 0.00 | AM74: 0.00 | AN74: 0.00 | AO74: 0.00 | AP74: 0.00
G75: 0.00 | S75: =IFERROR(IF(A75<>"GfB",(SUM(G75:J75,L75,P75)*12+(N75+O75))*(100+$J$12+$J$13)%+((K75+M75+Q75+R75*('B4_Allgemeine Angaben'!$L$53=1))*12),(SUM(G75:J75,L75,P75)*12+(N75+O75))*(100+$J$15+$J$13)%+((K75+M75+Q75+R75*('B4_Allgemeine Angaben'!$L$53=1))*12)),0) -> 0.00 | T75: 0.00 | V75: 0.00 | W75: 0.00 | X75: 0.00 | Y75: 0.00 | Z75: 0.00 | AA75: 0.00 | AB75: 0.00 | AC75: 0.00 | AD75: 0.00 | AE75: 0.00 | AF75: 0.00 | AG75: 0.00 | AH75: 0.00 | AI75: 0.00 | AJ75: 0.00 | AK75: 0.00 | AL75: 0.00 | AM75: 0.00 | AN75: 0.00 | AO75: 0.00 | AP75: 0.00 | AS75: Leiter
G76: 0.00 | S76: =IFERROR(IF(A76<>"GfB",(SUM(G76:J76,L76,P76)*12+(N76+O76))*(100+$J$12+$J$13)%+((K76+M76+Q76+R76*('B4_Allgemeine Angaben'!$L$53=1))*12),(SUM(G76:J76,L76,P76)*12+(N76+O76))*(100+$J$15+$J$13)%+((K76+M76+Q76+R76*('B4_Allgemeine Angaben'!$L$53=1))*12)),0) -> 0.00 | T76: 0.00 | V76: 0.00 | W76: 0.00 | X76: 0.00 | Y76: 0.00 | Z76: 0.00 | AA76: 0.00 | AB76: 0.00 | AC76: 0.00 | AD76: 0.00 | AE76: 0.00 | AF76: 0.00 | AG76: 0.00 | AH76: 0.00 | AI76: 0.00 | AJ76: 0.00 | AK76: 0.00 | AL76: 0.00 | AM76: 0.00 | AN76: 0.00 | AO76: 0.00 | AP76: 0.00 | AS76: Präsenzkraft (4.Generation)
G77: 0.00 | S77: =IFERROR(IF(A77<>"GfB",(SUM(G77:J77,L77,P77)*12+(N77+O77))*(100+$J$12+$J$13)%+((K77+M77+Q77+R77*('B4_Allgemeine Angaben'!$L$53=1))*12),(SUM(G77:J77,L77,P77)*12+(N77+O77))*(100+$J$15+$J$13)%+((K77+M77+Q77+R77*('B4_Allgemeine Angaben'!$L$53=1))*12)),0) -> 0.00 | T77: 0.00 | V77: 0.00 | W77: 0.00 | X77: 0.00 | Y77: 0.00 | Z77: 0.00 | AA77: 0.00 | AB77: 0.00 | AC77: 0.00 | AD77: 0.00 | AE77: 0.00 | AF77: 0.00 | AG77: 0.00 | AH77: 0.00 | AI77: 0.00 | AJ77: 0.00 | AK77: 0.00 | AL77: 0.00 | AM77: 0.00 | AN77: 0.00 | AO77: 0.00 | AP77: 0.00 | AS77: Wäscherei
G78: 0.00 | S78: =IFERROR(IF(A78<>"GfB",(SUM(G78:J78,L78,P78)*12+(N78+O78))*(100+$J$12+$J$13)%+((K78+M78+Q78+R78*('B4_Allgemeine Angaben'!$L$53=1))*12),(SUM(G78:J78,L78,P78)*12+(N78+O78))*(100+$J$15+$J$13)%+((K78+M78+Q78+R78*('B4_Allgemeine Angaben'!$L$53=1))*12)),0) -> 0.00 | T78: 0.00 | V78: 0.00 | W78: 0.00 | X78: 0.00 | Y78: 0.00 | Z78: 0.00 | AA78: 0.00 | AB78: 0.00 | AC78: 0.00 | AD78: 0.00 | AE78: 0.00 | AF78: 0.00 | AG78: 0.00 | AH78: 0.00 | AI78: 0.00 | AJ78: 0.00 | AK78: 0.00 | AL78: 0.00 | AM78: 0.00 | AN78: 0.00 | AO78: 0.00 | AP78: 0.00 | AS78: Reinigung
G79: 0.00 | S79: =IFERROR(IF(A79<>"GfB",(SUM(G79:J79,L79,P79)*12+(N79+O79))*(100+$J$12+$J$13)%+((K79+M79+Q79+R79*('B4_Allgemeine Angaben'!$L$53=1))*12),(SUM(G79:J79,L79,P79)*12+(N79+O79))*(100+$J$15+$J$13)%+((K79+M79+Q79+R79*('B4_Allgemeine Angaben'!$L$53=1))*12)),0) -> 0.00 | T79: 0.00 | V79: 0.00 | W79: 0.00 | X79: 0.00 | Y79: 0.00 | Z79: 0.00 | AA79: 0.00 | AB79: 0.00 | AC79: 0.00 | AD79: 0.00 | AE79: 0.00 | AF79: 0.00 | AG79: 0.00 | AH79: 0.00 | AI79: 0.00 | AJ79: 0.00 | AK79: 0.00 | AL79: 0.00 | AM79: 0.00 | AN79: 0.00 | AO79: 0.00 | AP79: 0.00 | AS79: sonstige
G80: 0.00 | S80: =IFERROR(IF(A80<>"GfB",(SUM(G80:J80,L80,P80)*12+(N80+O80))*(100+$J$12+$J$13)%+((K80+M80+Q80+R80*('B4_Allgemeine Angaben'!$L$53=1))*12),(SUM(G80:J80,L80,P80)*12+(N80+O80))*(100+$J$15+$J$13)%+((K80+M80+Q80+R80*('B4_Allgemeine Angaben'!$L$53=1))*12)),0) -> 0.00 | T80: 0.00 | V80: 0.00 | W80: 0.00 | X80: 0.00 | Y80: 0.00 | Z80: 0.00 | AA80: 0.00 | AB80: 0.00 | AC80: 0.00 | AD80: 0.00 | AE80: 0.00 | AF80: 0.00 | AG80: 0.00 | AH80: 0.00 | AI80: 0.00 | AJ80: 0.00 | AK80: 0.00 | AL80: 0.00 | AM80: 0.00 | AN80: 0.00 | AO80: 0.00 | AP80: 0.00
G81: 0.00 | S81: =IFERROR(IF(A81<>"GfB",(SUM(G81:J81,L81,P81)*12+(N81+O81))*(100+$J$12+$J$13)%+((K81+M81+Q81+R81*('B4_Allgemeine Angaben'!$L$53=1))*12),(SUM(G81:J81,L81,P81)*12+(N81+O81))*(100+$J$15+$J$13)%+((K81+M81+Q81+R81*('B4_Allgemeine Angaben'!$L$53=1))*12)),0) -> 0.00 | T81: 0.00 | V81: 0.00 | W81: 0.00 | X81: 0.00 | Y81: 0.00 | Z81: 0.00 | AA81: 0.00 | AB81: 0.00 | AC81: 0.00 | AD81: 0.00 | AE81: 0.00 | AF81: 0.00 | AG81: 0.00 | AH81: 0.00 | AI81: 0.00 | AJ81: 0.00 | AK81: 0.00 | AL81: 0.00 | AM81: 0.00 | AN81: 0.00 | AO81: 0.00 | AP81: 0.00 | AS81: Fachkräfte
G82: 0.00 | S82: =IFERROR(IF(A82<>"GfB",(SUM(G82:J82,L82,P82)*12+(N82+O82))*(100+$J$12+$J$13)%+((K82+M82+Q82+R82*('B4_Allgemeine Angaben'!$L$53=1))*12),(SUM(G82:J82,L82,P82)*12+(N82+O82))*(100+$J$15+$J$13)%+((K82+M82+Q82+R82*('B4_Allgemeine Angaben'!$L$53=1))*12)),0) -> 0.00 | T82: 0.00 | V82: 0.00 | W82: 0.00 | X82: 0.00 | Y82: 0.00 | Z82: 0.00 | AA82: 0.00 | AB82: 0.00 | AC82: 0.00 | AD82: 0.00 | AE82: 0.00 | AF82: 0.00 | AG82: 0.00 | AH82: 0.00 | AI82: 0.00 | AJ82: 0.00 | AK82: 0.00 | AL82: 0.00 | AM82: 0.00 | AN82: 0.00 | AO82: 0.00 | AP82: 0.00 | AS82: Präsenzkraft (4.Generation)
G83: 0.00 | S83: =IFERROR(IF(A83<>"GfB",(SUM(G83:J83,L83,P83)*12+(N83+O83))*(100+$J$12+$J$13)%+((K83+M83+Q83+R83*('B4_Allgemeine Angaben'!$L$53=1))*12),(SUM(G83:J83,L83,P83)*12+(N83+O83))*(100+$J$15+$J$13)%+((K83+M83+Q83+R83*('B4_Allgemeine Angaben'!$L$53=1))*12)),0) -> 0.00 | T83: 0.00 | V83: 0.00 | W83: 0.00 | X83: 0.00 | Y83: 0.00 | Z83: 0.00 | AA83: 0.00 | AB83: 0.00 | AC83: 0.00 | AD83: 0.00 | AE83: 0.00 | AF83: 0.00 | AG83: 0.00 | AH83: 0.00 | AI83: 0.00 | AJ83: 0.00 | AK83: 0.00 | AL83: 0.00 | AM83: 0.00 | AN83: 0.00 | AO83: 0.00 | AP83: 0.00 | AS83: sonstige
G84: 0.00 | S84: =IFERROR(IF(A84<>"GfB",(SUM(G84:J84,L84,P84)*12+(N84+O84))*(100+$J$12+$J$13)%+((K84+M84+Q84+R84*('B4_Allgemeine Angaben'!$L$53=1))*12),(SUM(G84:J84,L84,P84)*12+(N84+O84))*(100+$J$15+$J$13)%+((K84+M84+Q84+R84*('B4_Allgemeine Angaben'!$L$53=1))*12)),0) -> 0.00 | T84: 0.00 | V84: 0.00 | W84: 0.00 | X84: 0.00 | Y84: 0.00 | Z84: 0.00 | AA84: 0.00 | AB84: 0.00 | AC84: 0.00 | AD84: 0.00 | AE84: 0.00 | AF84: 0.00 | AG84: 0.00 | AH84: 0.00 | AI84: 0.00 | AJ84: 0.00 | AK84: 0.00 | AL84: 0.00 | AM84: 0.00 | AN84: 0.00 | AO84: 0.00 | AP84: 0.00
G85: 0.00 | S85: =IFERROR(IF(A85<>"GfB",(SUM(G85:J85,L85,P85)*12+(N85+O85))*(100+$J$12+$J$13)%+((K85+M85+Q85+R85*('B4_Allgemeine Angaben'!$L$53=1))*12),(SUM(G85:J85,L85,P85)*12+(N85+O85))*(100+$J$15+$J$13)%+((K85+M85+Q85+R85*('B4_Allgemeine Angaben'!$L$53=1))*12)),0) -> 0.00 | T85: 0.00 | V85: 0.00 | W85: 0.00 | X85: 0.00 | Y85: 0.00 | Z85: 0.00 | AA85: 0.00 | AB85: 0.00 | AC85: 0.00 | AD85: 0.00 | AE85: 0.00 | AF85: 0.00 | AG85: 0.00 | AH85: 0.00 | AI85: 0.00 | AJ85: 0.00 | AK85: 0.00 | AL85: 0.00 | AM85: 0.00 | AN85: 0.00 | AO85: 0.00 | AP85: 0.00
G86: 0.00 | S86: =IFERROR(IF(A86<>"GfB",(SUM(G86:J86,L86,P86)*12+(N86+O86))*(100+$J$12+$J$13)%+((K86+M86+Q86+R86*('B4_Allgemeine Angaben'!$L$53=1))*12),(SUM(G86:J86,L86,P86)*12+(N86+O86))*(100+$J$15+$J$13)%+((K86+M86+Q86+R86*('B4_Allgemeine Angaben'!$L$53=1))*12)),0) -> 0.00 | T86: 0.00 | V86: 0.00 | W86: 0.00 | X86: 0.00 | Y86: 0.00 | Z86: 0.00 | AA86: 0.00 | AB86: 0.00 | AC86: 0.00 | AD86: 0.00 | AE86: 0.00 | AF86: 0.00 | AG86: 0.00 | AH86: 0.00 | AI86: 0.00 | AJ86: 0.00 | AK86: 0.00 | AL86: 0.00 | AM86: 0.00 | AN86: 0.00 | AO86: 0.00 | AP86: 0.00
G87: =IFERROR(F87*C87,"") -> 0.00 | S87: =IFERROR(IF(A87<>"GfB",(SUM(G87:J87,L87,P87)*12+(N87+O87))*(100+$J$12+$J$13)%+((K87+M87+Q87+R87*('B4_Allgemeine Angaben'!$L$53=1))*12),(SUM(G87:J87,L87,P87)*12+(N87+O87))*(100+$J$15+$J$13)%+((K87+M87+Q87+R87*('B4_Allgemeine Angaben'!$L$53=1))*12)),0) -> 0.00 | T87: =IF(ISERROR(S87/C87),0,(S87/C87)) -> 0.00 | V87: =(IF(AND($B87="PFK/BFK",$C87>0,$F87>0),($G87+$H87),0)) -> 0.00 | W87: =(IF(AND($B87="PFK/BFK",$C87>0,$F87>0),$I87,0)) -> 0.00 | X87: =(IF(AND($B87="PFK/BFK",$C87>0,$F87>0),($J87+$K87),0)) -> 0.00 | Y87: =(IF(AND($B87="PFK/BFK",$C87>0,$F87>0),(($N87+$O87)/12),0)) -> 0.00 | Z87: =(IF(AND($B87="PK/BK",$C87>0,$F87>0),($G87+$H87),0)) -> 0.00 | AA87: =(IF(AND($B87="PK/BK",$C87>0,$F87>0),$I87,0)) -> 0.00 | AB87: =(IF(AND($B87="PK/BK",$C87>0,$F87>0),($J87+$K87),0)) -> 0.00 | AC87: =(IF(AND($B87="PK/BK",$C87>0,$F87>0),(($N87+$O87)/12),0)) -> 0.00 | AD87: =(IF(AND($B87="PK/BK o.",$C87>0,$F87>0),($G87+$H87),0)) -> 0.00 | AE87: =(IF(AND($B87="PK/BK o.",$C87>0,$F87>0),$I87,0)) -> 0.00 | AF87: =(IF(AND($B87="PK/BK o.",$C87>0,$F87>0),($J87+$K87),0)) -> 0.00 | AG87: =(IF(AND($B87="PK/BK o.",$C87>0,$F87>0),(($N87+$O87)/12),0)) -> 0.00 | AH87: =IF(AND($B87="PFK/BFK",$C87>0,$F87>0),$C87,0) -> 0.00 | AI87: =IF(AND($B87="PK/BK",$C87>0,$F87>0),$C87,0) -> 0.00 | AJ87: =IF(AND($B87="PK/BK o.",$C87>0,$F87>0),$C87,0) -> 0.00 | AK87: =IF(AND($B87="PFK/BFK",$C87>0,$F87>0),$S87,0) -> 0.00 | AL87: =IF(AND($B87="PK/BK",$C87>0,$F87>0),$S87,0) -> 0.00 | AM87: =IF(AND($B87="PK/BK o.",$C87>0,$F87>0),$S87,0) -> 0.00 | AN87: =IF(AND($B87="PFK/BFK",$C87>0,$F87>0),$R87,0) -> 0.00 | AO87: =IF(AND($B87="PK/BK",$C87>0,$F87>0),$R87,0) -> 0.00 | AP87: =IF(AND($B87="PK/BK o.",$C87>0,$F87>0),$R87,0) -> 0.00
G88: 0.00 | S88: =IFERROR(IF(A88<>"GfB",(SUM(G88:J88,L88,P88)*12+(N88+O88))*(100+$J$12+$J$13)%+((K88+M88+Q88+R88*('B4_Allgemeine Angaben'!$L$53=1))*12),(SUM(G88:J88,L88,P88)*12+(N88+O88))*(100+$J$15+$J$13)%+((K88+M88+Q88+R88*('B4_Allgemeine Angaben'!$L$53=1))*12)),0) -> 0.00 | T88: 0.00 | V88: 0.00 | W88: 0.00 | X88: 0.00 | Y88: 0.00 | Z88: 0.00 | AA88: 0.00 | AB88: 0.00 | AC88: 0.00 | AD88: 0.00 | AE88: 0.00 | AF88: 0.00 | AG88: 0.00 | AH88: 0.00 | AI88: 0.00 | AJ88: 0.00 | AK88: 0.00 | AL88: 0.00 | AM88: 0.00 | AN88: 0.00 | AO88: 0.00 | AP88: 0.00
G89: 0.00 | S89: =IFERROR(IF(A89<>"GfB",(SUM(G89:J89,L89,P89)*12+(N89+O89))*(100+$J$12+$J$13)%+((K89+M89+Q89+R89*('B4_Allgemeine Angaben'!$L$53=1))*12),(SUM(G89:J89,L89,P89)*12+(N89+O89))*(100+$J$15+$J$13)%+((K89+M89+Q89+R89*('B4_Allgemeine Angaben'!$L$53=1))*12)),0) -> 0.00 | T89: 0.00 | V89: 0.00 | W89: 0.00 | X89: 0.00 | Y89: 0.00 | Z89: 0.00 | AA89: 0.00 | AB89: 0.00 | AC89: 0.00 | AD89: 0.00 | AE89: 0.00 | AF89: 0.00 | AG89: 0.00 | AH89: 0.00 | AI89: 0.00 | AJ89: 0.00 | AK89: 0.00 | AL89: 0.00 | AM89: 0.00 | AN89: 0.00 | AO89: 0.00 | AP89: 0.00
G90: 0.00 | S90: =IFERROR(IF(A90<>"GfB",(SUM(G90:J90,L90,P90)*12+(N90+O90))*(100+$J$12+$J$13)%+((K90+M90+Q90+R90*('B4_Allgemeine Angaben'!$L$53=1))*12),(SUM(G90:J90,L90,P90)*12+(N90+O90))*(100+$J$15+$J$13)%+((K90+M90+Q90+R90*('B4_Allgemeine Angaben'!$L$53=1))*12)),0) -> 0.00 | T90: 0.00 | V90: 0.00 | W90: 0.00 | X90: 0.00 | Y90: 0.00 | Z90: 0.00 | AA90: 0.00 | AB90: 0.00 | AC90: 0.00 | AD90: 0.00 | AE90: 0.00 | AF90: 0.00 | AG90: 0.00 | AH90: 0.00 | AI90: 0.00 | AJ90: 0.00 | AK90: 0.00 | AL90: 0.00 | AM90: 0.00 | AN90: 0.00 | AO90: 0.00 | AP90: 0.00
G91: 0.00 | S91: =IFERROR(IF(A91<>"GfB",(SUM(G91:J91,L91,P91)*12+(N91+O91))*(100+$J$12+$J$13)%+((K91+M91+Q91+R91*('B4_Allgemeine Angaben'!$L$53=1))*12),(SUM(G91:J91,L91,P91)*12+(N91+O91))*(100+$J$15+$J$13)%+((K91+M91+Q91+R91*('B4_Allgemeine Angaben'!$L$53=1))*12)),0) -> 0.00 | T91: 0.00 | V91: 0.00 | W91: 0.00 | X91: 0.00 | Y91: 0.00 | Z91: 0.00 | AA91: 0.00 | AB91: 0.00 | AC91: 0.00 | AD91: 0.00 | AE91: 0.00 | AF91: 0.00 | AG91: 0.00 | AH91: 0.00 | AI91: 0.00 | AJ91: 0.00 | AK91: 0.00 | AL91: 0.00 | AM91: 0.00 | AN91: 0.00 | AO91: 0.00 | AP91: 0.00
G92: 0.00 | S92: =IFERROR(IF(A92<>"GfB",(SUM(G92:J92,L92,P92)*12+(N92+O92))*(100+$J$12+$J$13)%+((K92+M92+Q92+R92*('B4_Allgemeine Angaben'!$L$53=1))*12),(SUM(G92:J92,L92,P92)*12+(N92+O92))*(100+$J$15+$J$13)%+((K92+M92+Q92+R92*('B4_Allgemeine Angaben'!$L$53=1))*12)),0) -> 0.00 | T92: 0.00 | V92: 0.00 | W92: 0.00 | X92: 0.00 | Y92: 0.00 | Z92: 0.00 | AA92: 0.00 | AB92: 0.00 | AC92: 0.00 | AD92: 0.00 | AE92: 0.00 | AF92: 0.00 | AG92: 0.00 | AH92: 0.00 | AI92: 0.00 | AJ92: 0.00 | AK92: 0.00 | AL92: 0.00 | AM92: 0.00 | AN92: 0.00 | AO92: 0.00 | AP92: 0.00
G93: 0.00 | S93: =IFERROR(IF(A93<>"GfB",(SUM(G93:J93,L93,P93)*12+(N93+O93))*(100+$J$12+$J$13)%+((K93+M93+Q93+R93*('B4_Allgemeine Angaben'!$L$53=1))*12),(SUM(G93:J93,L93,P93)*12+(N93+O93))*(100+$J$15+$J$13)%+((K93+M93+Q93+R93*('B4_Allgemeine Angaben'!$L$53=1))*12)),0) -> 0.00 | T93: 0.00 | V93: 0.00 | W93: 0.00 | X93: 0.00 | Y93: 0.00 | Z93: 0.00 | AA93: 0.00 | AB93: 0.00 | AC93: 0.00 | AD93: 0.00 | AE93: 0.00 | AF93: 0.00 | AG93: 0.00 | AH93: 0.00 | AI93: 0.00 | AJ93: 0.00 | AK93: 0.00 | AL93: 0.00 | AM93: 0.00 | AN93: 0.00 | AO93: 0.00 | AP93: 0.00
G94: 0.00 | S94: =IFERROR(IF(A94<>"GfB",(SUM(G94:J94,L94,P94)*12+(N94+O94))*(100+$J$12+$J$13)%+((K94+M94+Q94+R94*('B4_Allgemeine Angaben'!$L$53=1))*12),(SUM(G94:J94,L94,P94)*12+(N94+O94))*(100+$J$15+$J$13)%+((K94+M94+Q94+R94*('B4_Allgemeine Angaben'!$L$53=1))*12)),0) -> 0.00 | T94: 0.00 | V94: 0.00 | W94: 0.00 | X94: 0.00 | Y94: 0.00 | Z94: 0.00 | AA94: 0.00 | AB94: 0.00 | AC94: 0.00 | AD94: 0.00 | AE94: 0.00 | AF94: 0.00 | AG94: 0.00 | AH94: 0.00 | AI94: 0.00 | AJ94: 0.00 | AK94: 0.00 | AL94: 0.00 | AM94: 0.00 | AN94: 0.00 | AO94: 0.00 | AP94: 0.00
G95: 0.00 | S95: =IFERROR(IF(A95<>"GfB",(SUM(G95:J95,L95,P95)*12+(N95+O95))*(100+$J$12+$J$13)%+((K95+M95+Q95+R95*('B4_Allgemeine Angaben'!$L$53=1))*12),(SUM(G95:J95,L95,P95)*12+(N95+O95))*(100+$J$15+$J$13)%+((K95+M95+Q95+R95*('B4_Allgemeine Angaben'!$L$53=1))*12)),0) -> 0.00 | T95: 0.00 | V95: 0.00 | W95: 0.00 | X95: 0.00 | Y95: 0.00 | Z95: 0.00 | AA95: 0.00 | AB95: 0.00 | AC95: 0.00 | AD95: 0.00 | AE95: 0.00 | AF95: 0.00 | AG95: 0.00 | AH95: 0.00 | AI95: 0.00 | AJ95: 0.00 | AK95: 0.00 | AL95: 0.00 | AM95: 0.00 | AN95: 0.00 | AO95: 0.00 | AP95: 0.00
G96: 0.00 | S96: =IFERROR(IF(A96<>"GfB",(SUM(G96:J96,L96,P96)*12+(N96+O96))*(100+$J$12+$J$13)%+((K96+M96+Q96+R96*('B4_Allgemeine Angaben'!$L$53=1))*12),(SUM(G96:J96,L96,P96)*12+(N96+O96))*(100+$J$15+$J$13)%+((K96+M96+Q96+R96*('B4_Allgemeine Angaben'!$L$53=1))*12)),0) -> 0.00 | T96: 0.00 | V96: 0.00 | W96: 0.00 | X96: 0.00 | Y96: 0.00 | Z96: 0.00 | AA96: 0.00 | AB96: 0.00 | AC96: 0.00 | AD96: 0.00 | AE96: 0.00 | AF96: 0.00 | AG96: 0.00 | AH96: 0.00 | AI96: 0.00 | AJ96: 0.00 | AK96: 0.00 | AL96: 0.00 | AM96: 0.00 | AN96: 0.00 | AO96: 0.00 | AP96: 0.00
G97: 0.00 | S97: =IFERROR(IF(A97<>"GfB",(SUM(G97:J97,L97,P97)*12+(N97+O97))*(100+$J$12+$J$13)%+((K97+M97+Q97+R97*('B4_Allgemeine Angaben'!$L$53=1))*12),(SUM(G97:J97,L97,P97)*12+(N97+O97))*(100+$J$15+$J$13)%+((K97+M97+Q97+R97*('B4_Allgemeine Angaben'!$L$53=1))*12)),0) -> 0.00 | T97: 0.00 | V97: 0.00 | W97: 0.00 | X97: 0.00 | Y97: 0.00 | Z97: 0.00 | AA97: 0.00 | AB97: 0.00 | AC97: 0.00 | AD97: 0.00 | AE97: 0.00 | AF97: 0.00 | AG97: 0.00 | AH97: 0.00 | AI97: 0.00 | AJ97: 0.00 | AK97: 0.00 | AL97: 0.00 | AM97: 0.00 | AN97: 0.00 | AO97: 0.00 | AP97: 0.00
G98: 0.00 | S98: =IFERROR(IF(A98<>"GfB",(SUM(G98:J98,L98,P98)*12+(N98+O98))*(100+$J$12+$J$13)%+((K98+M98+Q98+R98*('B4_Allgemeine Angaben'!$L$53=1))*12),(SUM(G98:J98,L98,P98)*12+(N98+O98))*(100+$J$15+$J$13)%+((K98+M98+Q98+R98*('B4_Allgemeine Angaben'!$L$53=1))*12)),0) -> 0.00 | T98: 0.00 | V98: 0.00 | W98: 0.00 | X98: 0.00 | Y98: 0.00 | Z98: 0.00 | AA98: 0.00 | AB98: 0.00 | AC98: 0.00 | AD98: 0.00 | AE98: 0.00 | AF98: 0.00 | AG98: 0.00 | AH98: 0.00 | AI98: 0.00 | AJ98: 0.00 | AK98: 0.00 | AL98: 0.00 | AM98: 0.00 | AN98: 0.00 | AO98: 0.00 | AP98: 0.00
G99: 0.00 | S99: =IFERROR(IF(A99<>"GfB",(SUM(G99:J99,L99,P99)*12+(N99+O99))*(100+$J$12+$J$13)%+((K99+M99+Q99+R99*('B4_Allgemeine Angaben'!$L$53=1))*12),(SUM(G99:J99,L99,P99)*12+(N99+O99))*(100+$J$15+$J$13)%+((K99+M99+Q99+R99*('B4_Allgemeine Angaben'!$L$53=1))*12)),0) -> 0.00 | T99: 0.00 | V99: 0.00 | W99: 0.00 | X99: 0.00 | Y99: 0.00 | Z99: 0.00 | AA99: 0.00 | AB99: 0.00 | AC99: 0.00 | AD99: 0.00 | AE99: 0.00 | AF99: 0.00 | AG99: 0.00 | AH99: 0.00 | AI99: 0.00 | AJ99: 0.00 | AK99: 0.00 | AL99: 0.00 | AM99: 0.00 | AN99: 0.00 | AO99: 0.00 | AP99: 0.00
G100: 0.00 | S100: =IFERROR(IF(A100<>"GfB",(SUM(G100:J100,L100,P100)*12+(N100+O100))*(100+$J$12+$J$13)%+((K100+M100+Q100+R100*('B4_Allgemeine Angaben'!$L$53=1))*12),(SUM(G100:J100,L100,P100)*12+(N100+O100))*(100+$J$15+$J$13)%+((K100+M100+Q100+R100*('B4_Allgemeine Angaben'!$L$53=1))*12)),0) -> 0.00 | T100: 0.00 | V100: 0.00 | W100: 0.00 | X100: 0.00 | Y100: 0.00 | Z100: 0.00 | AA100: 0.00 | AB100: 0.00 | AC100: 0.00 | AD100: 0.00 | AE100: 0.00 | AF100: 0.00 | AG100: 0.00 | AH100: 0.00 | AI100: 0.00 | AJ100: 0.00 | AK100: 0.00 | AL100: 0.00 | AM100: 0.00 | AN100: 0.00 | AO100: 0.00 | AP100: 0.00
G101: 0.00 | S101: =IFERROR(IF(A101<>"GfB",(SUM(G101:J101,L101,P101)*12+(N101+O101))*(100+$J$12+$J$13)%+((K101+M101+Q101+R101*('B4_Allgemeine Angaben'!$L$53=1))*12),(SUM(G101:J101,L101,P101)*12+(N101+O101))*(100+$J$15+$J$13)%+((K101+M101+Q101+R101*('B4_Allgemeine Angaben'!$L$53=1))*12)),0) -> 0.00 | T101: 0.00 | V101: 0.00 | W101: 0.00 | X101: 0.00 | Y101: 0.00 | Z101: 0.00 | AA101: 0.00 | AB101: 0.00 | AC101: 0.00 | AD101: 0.00 | AE101: 0.00 | AF101: 0.00 | AG101: 0.00 | AH101: 0.00 | AI101: 0.00 | AJ101: 0.00 | AK101: 0.00 | AL101: 0.00 | AM101: 0.00 | AN101: 0.00 | AO101: 0.00 | AP101: 0.00
G102: 0.00 | S102: =IFERROR(IF(A102<>"GfB",(SUM(G102:J102,L102,P102)*12+(N102+O102))*(100+$J$12+$J$13)%+((K102+M102+Q102+R102*('B4_Allgemeine Angaben'!$L$53=1))*12),(SUM(G102:J102,L102,P102)*12+(N102+O102))*(100+$J$15+$J$13)%+((K102+M102+Q102+R102*('B4_Allgemeine Angaben'!$L$53=1))*12)),0) -> 0.00 | T102: 0.00 | V102: 0.00 | W102: 0.00 | X102: 0.00 | Y102: 0.00 | Z102: 0.00 | AA102: 0.00 | AB102: 0.00 | AC102: 0.00 | AD102: 0.00 | AE102: 0.00 | AF102: 0.00 | AG102: 0.00 | AH102: 0.00 | AI102: 0.00 | AJ102: 0.00 | AK102: 0.00 | AL102: 0.00 | AM102: 0.00 | AN102: 0.00 | AO102: 0.00 | AP102: 0.00
G103: 0.00 | S103: =IFERROR(IF(A103<>"GfB",(SUM(G103:J103,L103,P103)*12+(N103+O103))*(100+$J$12+$J$13)%+((K103+M103+Q103+R103*('B4_Allgemeine Angaben'!$L$53=1))*12),(SUM(G103:J103,L103,P103)*12+(N103+O103))*(100+$J$15+$J$13)%+((K103+M103+Q103+R103*('B4_Allgemeine Angaben'!$L$53=1))*12)),0) -> 0.00 | T103: 0.00 | V103: 0.00 | W103: 0.00 | X103: 0.00 | Y103: 0.00 | Z103: 0.00 | AA103: 0.00 | AB103: 0.00 | AC103: 0.00 | AD103: 0.00 | AE103: 0.00 | AF103: 0.00 | AG103: 0.00 | AH103: 0.00 | AI103: 0.00 | AJ103: 0.00 | AK103: 0.00 | AL103: 0.00 | AM103: 0.00 | AN103: 0.00 | AO103: 0.00 | AP103: 0.00
G104: 0.00 | S104: =IFERROR(IF(A104<>"GfB",(SUM(G104:J104,L104,P104)*12+(N104+O104))*(100+$J$12+$J$13)%+((K104+M104+Q104+R104*('B4_Allgemeine Angaben'!$L$53=1))*12),(SUM(G104:J104,L104,P104)*12+(N104+O104))*(100+$J$15+$J$13)%+((K104+M104+Q104+R104*('B4_Allgemeine Angaben'!$L$53=1))*12)),0) -> 0.00 | T104: 0.00 | V104: 0.00 | W104: 0.00 | X104: 0.00 | Y104: 0.00 | Z104: 0.00 | AA104: 0.00 | AB104: 0.00 | AC104: 0.00 | AD104: 0.00 | AE104: 0.00 | AF104: 0.00 | AG104: 0.00 | AH104: 0.00 | AI104: 0.00 | AJ104: 0.00 | AK104: 0.00 | AL104: 0.00 | AM104: 0.00 | AN104: 0.00 | AO104: 0.00 | AP104: 0.00
G105: 0.00 | S105: =IFERROR(IF(A105<>"GfB",(SUM(G105:J105,L105,P105)*12+(N105+O105))*(100+$J$12+$J$13)%+((K105+M105+Q105+R105*('B4_Allgemeine Angaben'!$L$53=1))*12),(SUM(G105:J105,L105,P105)*12+(N105+O105))*(100+$J$15+$J$13)%+((K105+M105+Q105+R105*('B4_Allgemeine Angaben'!$L$53=1))*12)),0) -> 0.00 | T105: 0.00 | V105: 0.00 | W105: 0.00 | X105: 0.00 | Y105: 0.00 | Z105: 0.00 | AA105: 0.00 | AB105: 0.00 | AC105: 0.00 | AD105: 0.00 | AE105: 0.00 | AF105: 0.00 | AG105: 0.00 | AH105: 0.00 | AI105: 0.00 | AJ105: 0.00 | AK105: 0.00 | AL105: 0.00 | AM105: 0.00 | AN105: 0.00 | AO105: 0.00 | AP105: 0.00
G106: 0.00 | S106: =IFERROR(IF(A106<>"GfB",(SUM(G106:J106,L106,P106)*12+(N106+O106))*(100+$J$12+$J$13)%+((K106+M106+Q106+R106*('B4_Allgemeine Angaben'!$L$53=1))*12),(SUM(G106:J106,L106,P106)*12+(N106+O106))*(100+$J$15+$J$13)%+((K106+M106+Q106+R106*('B4_Allgemeine Angaben'!$L$53=1))*12)),0) -> 0.00 | T106: 0.00 | V106: 0.00 | W106: 0.00 | X106: 0.00 | Y106: 0.00 | Z106: 0.00 | AA106: 0.00 | AB106: 0.00 | AC106: 0.00 | AD106: 0.00 | AE106: 0.00 | AF106: 0.00 | AG106: 0.00 | AH106: 0.00 | AI106: 0.00 | AJ106: 0.00 | AK106: 0.00 | AL106: 0.00 | AM106: 0.00 | AN106: 0.00 | AO106: 0.00 | AP106: 0.00
G107: 0.00 | S107: =IFERROR(IF(A107<>"GfB",(SUM(G107:J107,L107,P107)*12+(N107+O107))*(100+$J$12+$J$13)%+((K107+M107+Q107+R107*('B4_Allgemeine Angaben'!$L$53=1))*12),(SUM(G107:J107,L107,P107)*12+(N107+O107))*(100+$J$15+$J$13)%+((K107+M107+Q107+R107*('B4_Allgemeine Angaben'!$L$53=1))*12)),0) -> 0.00 | T107: 0.00 | V107: 0.00 | W107: 0.00 | X107: 0.00 | Y107: 0.00 | Z107: 0.00 | AA107: 0.00 | AB107: 0.00 | AC107: 0.00 | AD107: 0.00 | AE107: 0.00 | AF107: 0.00 | AG107: 0.00 | AH107: 0.00 | AI107: 0.00 | AJ107: 0.00 | AK107: 0.00 | AL107: 0.00 | AM107: 0.00 | AN107: 0.00 | AO107: 0.00 | AP107: 0.00
G108: 0.00 | S108: =IFERROR(IF(A108<>"GfB",(SUM(G108:J108,L108,P108)*12+(N108+O108))*(100+$J$12+$J$13)%+((K108+M108+Q108+R108*('B4_Allgemeine Angaben'!$L$53=1))*12),(SUM(G108:J108,L108,P108)*12+(N108+O108))*(100+$J$15+$J$13)%+((K108+M108+Q108+R108*('B4_Allgemeine Angaben'!$L$53=1))*12)),0) -> 0.00 | T108: 0.00 | V108: 0.00 | W108: 0.00 | X108: 0.00 | Y108: 0.00 | Z108: 0.00 | AA108: 0.00 | AB108: 0.00 | AC108: 0.00 | AD108: 0.00 | AE108: 0.00 | AF108: 0.00 | AG108: 0.00 | AH108: 0.00 | AI108: 0.00 | AJ108: 0.00 | AK108: 0.00 | AL108: 0.00 | AM108: 0.00 | AN108: 0.00 | AO108: 0.00 | AP108: 0.00
G109: 0.00 | S109: =IFERROR(IF(A109<>"GfB",(SUM(G109:J109,L109,P109)*12+(N109+O109))*(100+$J$12+$J$13)%+((K109+M109+Q109+R109*('B4_Allgemeine Angaben'!$L$53=1))*12),(SUM(G109:J109,L109,P109)*12+(N109+O109))*(100+$J$15+$J$13)%+((K109+M109+Q109+R109*('B4_Allgemeine Angaben'!$L$53=1))*12)),0) -> 0.00 | T109: 0.00 | V109: 0.00 | W109: 0.00 | X109: 0.00 | Y109: 0.00 | Z109: 0.00 | AA109: 0.00 | AB109: 0.00 | AC109: 0.00 | AD109: 0.00 | AE109: 0.00 | AF109: 0.00 | AG109: 0.00 | AH109: 0.00 | AI109: 0.00 | AJ109: 0.00 | AK109: 0.00 | AL109: 0.00 | AM109: 0.00 | AN109: 0.00 | AO109: 0.00 | AP109: 0.00
A110: Beschäftigtes Personal aus Zusatzvereinbarung nach § 8 Abs. 6 SGB XI | V110: =(IF(AND($B110="PFK/BFK",$C110>0,$F110>0),($G110+$H110),0)) -> 0.00 | W110: 0.00 | X110: 0.00 | Y110: 0.00 | Z110: 0.00 | AA110: 0.00 | AB110: 0.00 | AC110: 0.00 | AD110: 0.00 | AE110: 0.00 | AF110: 0.00 | AG110: 0.00 | AH110: 0.00 | AI110: 0.00 | AJ110: 0.00 | AK110: 0.00 | AL110: 0.00 | AM110: 0.00 | AN110: 0.00 | AO110: 0.00 | AP110: 0.00
G111: =IFERROR(F111*C111,"") -> 0.00 | S111: =IFERROR(IF(A111<>"GfB",(SUM(G111:J111,L111,P111)*12+(N111+O111))*(100+$J$12+$J$13)%+((K111+M111+Q111+R111*('B4_Allgemeine Angaben'!$L$53=1))*12),(SUM(G111:J111,L111,P111)*12+(N111+O111))*(100+$J$15+$J$13)%+((K111+M111+Q111+R111*('B4_Allgemeine Angaben'!$L$53=1))*12)),0) -> 0.00 | T111: =IF(ISERROR(S111/C111),0,(S111/C111)) -> 0.00 | V111: 0.00 | W111: 0.00 | X111: 0.00 | Y111: 0.00 | Z111: 0.00 | AA111: 0.00 | AB111: 0.00 | AC111: 0.00 | AD111: 0.00 | AE111: 0.00 | AF111: 0.00 | AG111: 0.00 | AH111: 0.00 | AI111: 0.00 | AJ111: 0.00 | AK111: 0.00 | AL111: 0.00 | AM111: 0.00 | AN111: 0.00 | AO111: 0.00 | AP111: 0.00
G112: =IFERROR(F112*C112,"") -> 0.00 | S112: =IFERROR(IF(A112<>"GfB",(SUM(G112:J112,L112,P112)*12+(N112+O112))*(100+$J$12+$J$13)%+((K112+M112+Q112+R112*('B4_Allgemeine Angaben'!$L$53=1))*12),(SUM(G112:J112,L112,P112)*12+(N112+O112))*(100+$J$15+$J$13)%+((K112+M112+Q112+R112*('B4_Allgemeine Angaben'!$L$53=1))*12)),0) -> 0.00 | T112: =IF(ISERROR(S112/C112),0,(S112/C112)) -> 0.00 | V112: 0.00 | W112: 0.00 | X112: 0.00 | Y112: 0.00 | Z112: 0.00 | AA112: 0.00 | AB112: 0.00 | AC112: 0.00 | AD112: 0.00 | AE112: 0.00 | AF112: 0.00 | AG112: 0.00 | AH112: 0.00 | AI112: 0.00 | AJ112: 0.00 | AK112: 0.00 | AL112: 0.00 | AM112: 0.00 | AN112: 0.00 | AO112: 0.00 | AP112: 0.00
G113: 0.00 | S113: =IFERROR(IF(A113<>"GfB",(SUM(G113:J113,L113,P113)*12+(N113+O113))*(100+$J$12+$J$13)%+((K113+M113+Q113+R113*('B4_Allgemeine Angaben'!$L$53=1))*12),(SUM(G113:J113,L113,P113)*12+(N113+O113))*(100+$J$15+$J$13)%+((K113+M113+Q113+R113*('B4_Allgemeine Angaben'!$L$53=1))*12)),0) -> 0.00 | T113: 0.00 | V113: 0.00 | W113: 0.00 | X113: 0.00 | Y113: 0.00 | Z113: 0.00 | AA113: 0.00 | AB113: 0.00 | AC113: 0.00 | AD113: 0.00 | AE113: 0.00 | AF113: 0.00 | AG113: 0.00 | AH113: 0.00 | AI113: 0.00 | AJ113: 0.00 | AK113: 0.00 | AL113: 0.00 | AM113: 0.00 | AN113: 0.00 | AO113: 0.00 | AP113: 0.00
G114: 0.00 | S114: =IFERROR(IF(A114<>"GfB",(SUM(G114:J114,L114,P114)*12+(N114+O114))*(100+$J$12+$J$13)%+((K114+M114+Q114+R114*('B4_Allgemeine Angaben'!$L$53=1))*12),(SUM(G114:J114,L114,P114)*12+(N114+O114))*(100+$J$15+$J$13)%+((K114+M114+Q114+R114*('B4_Allgemeine Angaben'!$L$53=1))*12)),0) -> 0.00 | T114: 0.00 | V114: 0.00 | W114: 0.00 | X114: 0.00 | Y114: 0.00 | Z114: 0.00 | AA114: 0.00 | AB114: 0.00 | AC114: 0.00 | AD114: 0.00 | AE114: 0.00 | AF114: 0.00 | AG114: 0.00 | AH114: 0.00 | AI114: 0.00 | AJ114: 0.00 | AK114: 0.00 | AL114: 0.00 | AM114: 0.00 | AN114: 0.00 | AO114: 0.00 | AP114: 0.00
G115: 0.00 | S115: =IFERROR(IF(A115<>"GfB",(SUM(G115:J115,L115,P115)*12+(N115+O115))*(100+$J$12+$J$13)%+((K115+M115+Q115+R115*('B4_Allgemeine Angaben'!$L$53=1))*12),(SUM(G115:J115,L115,P115)*12+(N115+O115))*(100+$J$15+$J$13)%+((K115+M115+Q115+R115*('B4_Allgemeine Angaben'!$L$53=1))*12)),0) -> 0.00 | T115: 0.00 | V115: 0.00 | W115: 0.00 | X115: 0.00 | Y115: 0.00 | Z115: 0.00 | AA115: 0.00 | AB115: 0.00 | AC115: 0.00 | AD115: 0.00 | AE115: 0.00 | AF115: 0.00 | AG115: 0.00 | AH115: 0.00 | AI115: 0.00 | AJ115: 0.00 | AK115: 0.00 | AL115: 0.00 | AM115: 0.00 | AN115: 0.00 | AO115: 0.00 | AP115: 0.00
G116: 0.00 | S116: =IFERROR(IF(A116<>"GfB",(SUM(G116:J116,L116,P116)*12+(N116+O116))*(100+$J$12+$J$13)%+((K116+M116+Q116+R116*('B4_Allgemeine Angaben'!$L$53=1))*12),(SUM(G116:J116,L116,P116)*12+(N116+O116))*(100+$J$15+$J$13)%+((K116+M116+Q116+R116*('B4_Allgemeine Angaben'!$L$53=1))*12)),0) -> 0.00 | T116: 0.00 | V116: 0.00 | W116: 0.00 | X116: 0.00 | Y116: 0.00 | Z116: 0.00 | AA116: 0.00 | AB116: 0.00 | AC116: 0.00 | AD116: 0.00 | AE116: 0.00 | AF116: 0.00 | AG116: 0.00 | AH116: 0.00 | AI116: 0.00 | AJ116: 0.00 | AK116: 0.00 | AL116: 0.00 | AM116: 0.00 | AN116: 0.00 | AO116: 0.00 | AP116: 0.00
G117: 0.00 | S117: =IFERROR(IF(A117<>"GfB",(SUM(G117:J117,L117,P117)*12+(N117+O117))*(100+$J$12+$J$13)%+((K117+M117+Q117+R117*('B4_Allgemeine Angaben'!$L$53=1))*12),(SUM(G117:J117,L117,P117)*12+(N117+O117))*(100+$J$15+$J$13)%+((K117+M117+Q117+R117*('B4_Allgemeine Angaben'!$L$53=1))*12)),0) -> 0.00 | T117: 0.00 | V117: 0.00 | W117: 0.00 | X117: 0.00 | Y117: 0.00 | Z117: 0.00 | AA117: 0.00 | AB117: 0.00 | AC117: 0.00 | AD117: 0.00 | AE117: 0.00 | AF117: 0.00 | AG117: 0.00 | AH117: 0.00 | AI117: 0.00 | AJ117: 0.00 | AK117: 0.00 | AL117: 0.00 | AM117: 0.00 | AN117: 0.00 | AO117: 0.00 | AP117: 0.00
G118: 0.00 | S118: =IFERROR(IF(A118<>"GfB",(SUM(G118:J118,L118,P118)*12+(N118+O118))*(100+$J$12+$J$13)%+((K118+M118+Q118+R118*('B4_Allgemeine Angaben'!$L$53=1))*12),(SUM(G118:J118,L118,P118)*12+(N118+O118))*(100+$J$15+$J$13)%+((K118+M118+Q118+R118*('B4_Allgemeine Angaben'!$L$53=1))*12)),0) -> 0.00 | T118: 0.00 | V118: 0.00 | W118: 0.00 | X118: 0.00 | Y118: 0.00 | Z118: 0.00 | AA118: 0.00 | AB118: 0.00 | AC118: 0.00 | AD118: 0.00 | AE118: 0.00 | AF118: 0.00 | AG118: 0.00 | AH118: 0.00 | AI118: 0.00 | AJ118: 0.00 | AK118: 0.00 | AL118: 0.00 | AM118: 0.00 | AN118: 0.00 | AO118: 0.00 | AP118: 0.00
G119: 0.00 | S119: =IFERROR(IF(A119<>"GfB",(SUM(G119:J119,L119,P119)*12+(N119+O119))*(100+$J$12+$J$13)%+((K119+M119+Q119+R119*('B4_Allgemeine Angaben'!$L$53=1))*12),(SUM(G119:J119,L119,P119)*12+(N119+O119))*(100+$J$15+$J$13)%+((K119+M119+Q119+R119*('B4_Allgemeine Angaben'!$L$53=1))*12)),0) -> 0.00 | T119: 0.00 | V119: 0.00 | W119: 0.00 | X119: 0.00 | Y119: 0.00 | Z119: 0.00 | AA119: 0.00 | AB119: 0.00 | AC119: 0.00 | AD119: 0.00 | AE119: 0.00 | AF119: 0.00 | AG119: 0.00 | AH119: 0.00 | AI119: 0.00 | AJ119: 0.00 | AK119: 0.00 | AL119: 0.00 | AM119: 0.00 | AN119: 0.00 | AO119: 0.00 | AP119: 0.00
G120: 0.00 | S120: =IFERROR(IF(A120<>"GfB",(SUM(G120:J120,L120,P120)*12+(N120+O120))*(100+$J$12+$J$13)%+((K120+M120+Q120+R120*('B4_Allgemeine Angaben'!$L$53=1))*12),(SUM(G120:J120,L120,P120)*12+(N120+O120))*(100+$J$15+$J$13)%+((K120+M120+Q120+R120*('B4_Allgemeine Angaben'!$L$53=1))*12)),0) -> 0.00 | T120: 0.00 | V120: 0.00 | W120: 0.00 | X120: 0.00 | Y120: 0.00 | Z120: 0.00 | AA120: 0.00 | AB120: 0.00 | AC120: 0.00 | AD120: 0.00 | AE120: 0.00 | AF120: 0.00 | AG120: 0.00 | AH120: 0.00 | AI120: 0.00 | AJ120: 0.00 | AK120: 0.00 | AL120: 0.00 | AM120: 0.00 | AN120: 0.00 | AO120: 0.00 | AP120: 0.00
G121: 0.00 | S121: =IFERROR(IF(A121<>"GfB",(SUM(G121:J121,L121,P121)*12+(N121+O121))*(100+$J$12+$J$13)%+((K121+M121+Q121+R121*('B4_Allgemeine Angaben'!$L$53=1))*12),(SUM(G121:J121,L121,P121)*12+(N121+O121))*(100+$J$15+$J$13)%+((K121+M121+Q121+R121*('B4_Allgemeine Angaben'!$L$53=1))*12)),0) -> 0.00 | T121: 0.00 | V121: 0.00 | W121: 0.00 | X121: 0.00 | Y121: 0.00 | Z121: 0.00 | AA121: 0.00 | AB121: 0.00 | AC121: 0.00 | AD121: 0.00 | AE121: 0.00 | AF121: 0.00 | AG121: 0.00 | AH121: 0.00 | AI121: 0.00 | AJ121: 0.00 | AK121: 0.00 | AL121: 0.00 | AM121: 0.00 | AN121: 0.00 | AO121: 0.00 | AP121: 0.00
G122: 0.00 | S122: =IFERROR(IF(A122<>"GfB",(SUM(G122:J122,L122,P122)*12+(N122+O122))*(100+$J$12+$J$13)%+((K122+M122+Q122+R122*('B4_Allgemeine Angaben'!$L$53=1))*12),(SUM(G122:J122,L122,P122)*12+(N122+O122))*(100+$J$15+$J$13)%+((K122+M122+Q122+R122*('B4_Allgemeine Angaben'!$L$53=1))*12)),0) -> 0.00 | T122: 0.00 | V122: 0.00 | W122: 0.00 | X122: 0.00 | Y122: 0.00 | Z122: 0.00 | AA122: 0.00 | AB122: 0.00 | AC122: 0.00 | AD122: 0.00 | AE122: 0.00 | AF122: 0.00 | AG122: 0.00 | AH122: 0.00 | AI122: 0.00 | AJ122: 0.00 | AK122: 0.00 | AL122: 0.00 | AM122: 0.00 | AN122: 0.00 | AO122: 0.00 | AP122: 0.00
A123: Leiharbeitnehmer | T123: =IF(ISERROR(S123/C123),0,(S123/C123)) -> 0.00
A124: Leiharbeitnehmer | T124: 0.00
A125: Leiharbeitnehmer | T125: 0.00
A126: Leiharbeitnehmer | T126: 0.00
A127: Leiharbeitnehmer | T127: 0.00
A128: Summe Pflegefachkräfte: | C128: =SUM(C22:C109,C111:C127) -> 0.000 | G128: =IFERROR(SUM(G22:G109,G111:G122)/($C$128-SUM($C$123:$C$127)),0) -> 0.00 €/VK | H128: 0.00 €/VK | I128: 0.00 €/VK | J128: 0.00 €/VK | K128: 0.00 €/VK | L128: 0.00 €/VK | M128: =IFERROR(SUM(M22:M109,M111:M122)/($C$128-SUM($C$123:$C$127)),0) -> 0.00 €/VK | N128: 0.00 €/VK | O128: 0.00 €/VK | P128: 0.00 €/VK | Q128: 0.00 €/VK | R128: 0.00 €/VK | S128: =SUM(S22:S109,S111:S127) -> 0.00 € | T128: =IFERROR(SUM(S128/C128),0) -> 0.00 €/VK
O129: Angebot inkl. Personalnebenkosten/Unternehmerrisiko Pflegefachkräfte | T129: =T128*(100+$S$8)%*(100+$S$9)% -> 0.00 €/VK
A130: 1.2. Pflegehilfskräfte
G131: =IFERROR(F131*C131,"") -> 0.00 | S131: =IFERROR(IF(A131<>"GfB",(SUM(G131:J131,L131,P131)*12+(N131+O131))*(100+$J$12+$J$13)%+((K131+M131+Q131+R131*('B4_Allgemeine Angaben'!$L$53=1))*12),(SUM(G131:J131,L131,P131)*12+(N131+O131))*(100+$J$15+$J$13)%+((K131+M131+Q131+R131*('B4_Allgemeine Angaben'!$L$53=1))*12)),0) -> 0.00 | T131: =IF(ISERROR(S131/C131),0,(S131/C131)) -> 0.00 | V131: =(IF(AND($B131="PFK/BFK",$C131>0,$F131>0),($G131+$H131),0)) -> 0.00 | W131: =(IF(AND($B131="PFK/BFK",$C131>0,$F131>0),$I131,0)) -> 0.00 | X131: =(IF(AND($B131="PFK/BFK",$C131>0,$F131>0),($J131+$K131),0)) -> 0.00 | Y131: =(IF(AND($B131="PFK/BFK",$C131>0,$F131>0),(($N131+$O131)/12),0)) -> 0.00 | Z131: =(IF(AND($B131="PK/BK",$C131>0,$F131>0),($G131+$H131),0)) -> 0.00 | AA131: =(IF(AND($B131="PK/BK",$C131>0,$F131>0),$I131,0)) -> 0.00 | AB131: =(IF(AND($B131="PK/BK",$C131>0,$F131>0),($J131+$K131),0)) -> 0.00 | AC131: =(IF(AND($B131="PK/BK",$C131>0,$F131>0),(($N131+$O131)/12),0)) -> 0.00 | AD131: =(IF(AND($B131="PK/BK o.",$C131>0,$F131>0),($G131+$H131),0)) -> 0.00 | AE131: =(IF(AND($B131="PK/BK o.",$C131>0,$F131>0),$I131,0)) -> 0.00 | AF131: =(IF(AND($B131="PK/BK o.",$C131>0,$F131>0),($J131+$K131),0)) -> 0.00 | AG131: =(IF(AND($B131="PK/BK o.",$C131>0,$F131>0),(($N131+$O131)/12),0)) -> 0.00 | AH131: =IF(AND($B131="PFK/BFK",$C131>0,$F131>0),$C131,0) -> 0.00 | AI131: =IF(AND($B131="PK/BK",$C131>0,$F131>0),$C131,0) -> 0.00 | AJ131: =IF(AND($B131="PK/BK o.",$C131>0,$F131>0),$C131,0) -> 0.00 | AK131: =IF(AND($B131="PFK/BFK",$C131>0,$F131>0),$S131,0) -> 0.00 | AL131: =IF(AND($B131="PK/BK",$C131>0,$F131>0),$S131,0) -> 0.00 | AM131: =IF(AND($B131="PK/BK o.",$C131>0,$F131>0),$S131,0) -> 0.00 | AN131: =IF(AND($B131="PFK/BFK",$C131>0,$F131>0),$R131,0) -> 0.00 | AO131: =IF(AND($B131="PK/BK",$C131>0,$F131>0),$R131,0) -> 0.00 | AP131: =IF(AND($B131="PK/BK o.",$C131>0,$F131>0),$R131,0) -> 0.00
G132: 0.00 | S132: =IFERROR(IF(A132<>"GfB",(SUM(G132:J132,L132,P132)*12+(N132+O132))*(100+$J$12+$J$13)%+((K132+M132+Q132+R132*('B4_Allgemeine Angaben'!$L$53=1))*12),(SUM(G132:J132,L132,P132)*12+(N132+O132))*(100+$J$15+$J$13)%+((K132+M132+Q132+R132*('B4_Allgemeine Angaben'!$L$53=1))*12)),0) -> 0.00 | T132: =IF(ISERROR(S132/C132),0,(S132/C132)) -> 0.00 | V132: 0.00 | W132: 0.00 | X132: 0.00 | Y132: 0.00 | Z132: 0.00 | AA132: 0.00 | AB132: 0.00 | AC132: 0.00 | AD132: 0.00 | AE132: 0.00 | AF132: 0.00 | AG132: 0.00 | AH132: 0.00 | AI132: 0.00 | AJ132: 0.00 | AK132: 0.00 | AL132: 0.00 | AM132: 0.00 | AN132: 0.00 | AO132: 0.00 | AP132: 0.00
G133: 0.00 | S133: =IFERROR(IF(A133<>"GfB",(SUM(G133:J133,L133,P133)*12+(N133+O133))*(100+$J$12+$J$13)%+((K133+M133+Q133+R133*('B4_Allgemeine Angaben'!$L$53=1))*12),(SUM(G133:J133,L133,P133)*12+(N133+O133))*(100+$J$15+$J$13)%+((K133+M133+Q133+R133*('B4_Allgemeine Angaben'!$L$53=1))*12)),0) -> 0.00 | T133: 0.00 | V133: 0.00 | W133: 0.00 | X133: 0.00 | Y133: 0.00 | Z133: 0.00 | AA133: 0.00 | AB133: 0.00 | AC133: 0.00 | AD133: 0.00 | AE133: 0.00 | AF133: 0.00 | AG133: 0.00 | AH133: 0.00 | AI133: 0.00 | AJ133: 0.00 | AK133: 0.00 | AL133: 0.00 | AM133: 0.00 | AN133: 0.00 | AO133: 0.00 | AP133: 0.00
G134: 0.00 | S134: =IFERROR(IF(A134<>"GfB",(SUM(G134:J134,L134,P134)*12+(N134+O134))*(100+$J$12+$J$13)%+((K134+M134+Q134+R134*('B4_Allgemeine Angaben'!$L$53=1))*12),(SUM(G134:J134,L134,P134)*12+(N134+O134))*(100+$J$15+$J$13)%+((K134+M134+Q134+R134*('B4_Allgemeine Angaben'!$L$53=1))*12)),0) -> 0.00 | T134: 0.00 | V134: 0.00 | W134: 0.00 | X134: 0.00 | Y134: 0.00 | Z134: 0.00 | AA134: 0.00 | AB134: 0.00 | AC134: 0.00 | AD134: 0.00 | AE134: 0.00 | AF134: 0.00 | AG134: 0.00 | AH134: 0.00 | AI134: 0.00 | AJ134: 0.00 | AK134: 0.00 | AL134: 0.00 | AM134: 0.00 | AN134: 0.00 | AO134: 0.00 | AP134: 0.00
G135: 0.00 | S135: =IFERROR(IF(A135<>"GfB",(SUM(G135:J135,L135,P135)*12+(N135+O135))*(100+$J$12+$J$13)%+((K135+M135+Q135+R135*('B4_Allgemeine Angaben'!$L$53=1))*12),(SUM(G135:J135,L135,P135)*12+(N135+O135))*(100+$J$15+$J$13)%+((K135+M135+Q135+R135*('B4_Allgemeine Angaben'!$L$53=1))*12)),0) -> 0.00 | T135: 0.00 | V135: 0.00 | W135: 0.00 | X135: 0.00 | Y135: 0.00 | Z135: 0.00 | AA135: 0.00 | AB135: 0.00 | AC135: 0.00 | AD135: 0.00 | AE135: 0.00 | AF135: 0.00 | AG135: 0.00 | AH135: 0.00 | AI135: 0.00 | AJ135: 0.00 | AK135: 0.00 | AL135: 0.00 | AM135: 0.00 | AN135: 0.00 | AO135: 0.00 | AP135: 0.00
G136: 0.00 | S136: =IFERROR(IF(A136<>"GfB",(SUM(G136:J136,L136,P136)*12+(N136+O136))*(100+$J$12+$J$13)%+((K136+M136+Q136+R136*('B4_Allgemeine Angaben'!$L$53=1))*12),(SUM(G136:J136,L136,P136)*12+(N136+O136))*(100+$J$15+$J$13)%+((K136+M136+Q136+R136*('B4_Allgemeine Angaben'!$L$53=1))*12)),0) -> 0.00 | T136: 0.00 | V136: 0.00 | W136: 0.00 | X136: 0.00 | Y136: 0.00 | Z136: 0.00 | AA136: 0.00 | AB136: 0.00 | AC136: 0.00 | AD136: 0.00 | AE136: 0.00 | AF136: 0.00 | AG136: 0.00 | AH136: 0.00 | AI136: 0.00 | AJ136: 0.00 | AK136: 0.00 | AL136: 0.00 | AM136: 0.00 | AN136: 0.00 | AO136: 0.00 | AP136: 0.00
G137: 0.00 | S137: =IFERROR(IF(A137<>"GfB",(SUM(G137:J137,L137,P137)*12+(N137+O137))*(100+$J$12+$J$13)%+((K137+M137+Q137+R137*('B4_Allgemeine Angaben'!$L$53=1))*12),(SUM(G137:J137,L137,P137)*12+(N137+O137))*(100+$J$15+$J$13)%+((K137+M137+Q137+R137*('B4_Allgemeine Angaben'!$L$53=1))*12)),0) -> 0.00 | T137: 0.00 | V137: 0.00 | W137: 0.00 | X137: 0.00 | Y137: 0.00 | Z137: 0.00 | AA137: 0.00 | AB137: 0.00 | AC137: 0.00 | AD137: 0.00 | AE137: 0.00 | AF137: 0.00 | AG137: 0.00 | AH137: 0.00 | AI137: 0.00 | AJ137: 0.00 | AK137: 0.00 | AL137: 0.00 | AM137: 0.00 | AN137: 0.00 | AO137: 0.00 | AP137: 0.00
G138: 0.00 | S138: =IFERROR(IF(A138<>"GfB",(SUM(G138:J138,L138,P138)*12+(N138+O138))*(100+$J$12+$J$13)%+((K138+M138+Q138+R138*('B4_Allgemeine Angaben'!$L$53=1))*12),(SUM(G138:J138,L138,P138)*12+(N138+O138))*(100+$J$15+$J$13)%+((K138+M138+Q138+R138*('B4_Allgemeine Angaben'!$L$53=1))*12)),0) -> 0.00 | T138: 0.00 | V138: 0.00 | W138: 0.00 | X138: 0.00 | Y138: 0.00 | Z138: 0.00 | AA138: 0.00 | AB138: 0.00 | AC138: 0.00 | AD138: 0.00 | AE138: 0.00 | AF138: 0.00 | AG138: 0.00 | AH138: 0.00 | AI138: 0.00 | AJ138: 0.00 | AK138: 0.00 | AL138: 0.00 | AM138: 0.00 | AN138: 0.00 | AO138: 0.00 | AP138: 0.00
G139: 0.00 | S139: =IFERROR(IF(A139<>"GfB",(SUM(G139:J139,L139,P139)*12+(N139+O139))*(100+$J$12+$J$13)%+((K139+M139+Q139+R139*('B4_Allgemeine Angaben'!$L$53=1))*12),(SUM(G139:J139,L139,P139)*12+(N139+O139))*(100+$J$15+$J$13)%+((K139+M139+Q139+R139*('B4_Allgemeine Angaben'!$L$53=1))*12)),0) -> 0.00 | T139: 0.00 | V139: 0.00 | W139: 0.00 | X139: 0.00 | Y139: 0.00 | Z139: 0.00 | AA139: 0.00 | AB139: 0.00 | AC139: 0.00 | AD139: 0.00 | AE139: 0.00 | AF139: 0.00 | AG139: 0.00 | AH139: 0.00 | AI139: 0.00 | AJ139: 0.00 | AK139: 0.00 | AL139: 0.00 | AM139: 0.00 | AN139: 0.00 | AO139: 0.00 | AP139: 0.00
G140: 0.00 | S140: =IFERROR(IF(A140<>"GfB",(SUM(G140:J140,L140,P140)*12+(N140+O140))*(100+$J$12+$J$13)%+((K140+M140+Q140+R140*('B4_Allgemeine Angaben'!$L$53=1))*12),(SUM(G140:J140,L140,P140)*12+(N140+O140))*(100+$J$15+$J$13)%+((K140+M140+Q140+R140*('B4_Allgemeine Angaben'!$L$53=1))*12)),0) -> 0.00 | T140: 0.00 | V140: 0.00 | W140: 0.00 | X140: 0.00 | Y140: 0.00 | Z140: 0.00 | AA140: 0.00 | AB140: 0.00 | AC140: 0.00 | AD140: 0.00 | AE140: 0.00 | AF140: 0.00 | AG140: 0.00 | AH140: 0.00 | AI140: 0.00 | AJ140: 0.00 | AK140: 0.00 | AL140: 0.00 | AM140: 0.00 | AN140: 0.00 | AO140: 0.00 | AP140: 0.00
G141: 0.00 | S141: =IFERROR(IF(A141<>"GfB",(SUM(G141:J141,L141,P141)*12+(N141+O141))*(100+$J$12+$J$13)%+((K141+M141+Q141+R141*('B4_Allgemeine Angaben'!$L$53=1))*12),(SUM(G141:J141,L141,P141)*12+(N141+O141))*(100+$J$15+$J$13)%+((K141+M141+Q141+R141*('B4_Allgemeine Angaben'!$L$53=1))*12)),0) -> 0.00 | T141: 0.00 | V141: 0.00 | W141: 0.00 | X141: 0.00 | Y141: 0.00 | Z141: 0.00 | AA141: 0.00 | AB141: 0.00 | AC141: 0.00 | AD141: 0.00 | AE141: 0.00 | AF141: 0.00 | AG141: 0.00 | AH141: 0.00 | AI141: 0.00 | AJ141: 0.00 | AK141: 0.00 | AL141: 0.00 | AM141: 0.00 | AN141: 0.00 | AO141: 0.00 | AP141: 0.00
G142: 0.00 | S142: =IFERROR(IF(A142<>"GfB",(SUM(G142:J142,L142,P142)*12+(N142+O142))*(100+$J$12+$J$13)%+((K142+M142+Q142+R142*('B4_Allgemeine Angaben'!$L$53=1))*12),(SUM(G142:J142,L142,P142)*12+(N142+O142))*(100+$J$15+$J$13)%+((K142+M142+Q142+R142*('B4_Allgemeine Angaben'!$L$53=1))*12)),0) -> 0.00 | T142: 0.00 | V142: 0.00 | W142: 0.00 | X142: 0.00 | Y142: 0.00 | Z142: 0.00 | AA142: 0.00 | AB142: 0.00 | AC142: 0.00 | AD142: 0.00 | AE142: 0.00 | AF142: 0.00 | AG142: 0.00 | AH142: 0.00 | AI142: 0.00 | AJ142: 0.00 | AK142: 0.00 | AL142: 0.00 | AM142: 0.00 | AN142: 0.00 | AO142: 0.00 | AP142: 0.00
G143: 0.00 | S143: =IFERROR(IF(A143<>"GfB",(SUM(G143:J143,L143,P143)*12+(N143+O143))*(100+$J$12+$J$13)%+((K143+M143+Q143+R143*('B4_Allgemeine Angaben'!$L$53=1))*12),(SUM(G143:J143,L143,P143)*12+(N143+O143))*(100+$J$15+$J$13)%+((K143+M143+Q143+R143*('B4_Allgemeine Angaben'!$L$53=1))*12)),0) -> 0.00 | T143: 0.00 | V143: 0.00 | W143: 0.00 | X143: 0.00 | Y143: 0.00 | Z143: 0.00 | AA143: 0.00 | AB143: 0.00 | AC143: 0.00 | AD143: 0.00 | AE143: 0.00 | AF143: 0.00 | AG143: 0.00 | AH143: 0.00 | AI143: 0.00 | AJ143: 0.00 | AK143: 0.00 | AL143: 0.00 | AM143: 0.00 | AN143: 0.00 | AO143: 0.00 | AP143: 0.00
G144: 0.00 | S144: =IFERROR(IF(A144<>"GfB",(SUM(G144:J144,L144,P144)*12+(N144+O144))*(100+$J$12+$J$13)%+((K144+M144+Q144+R144*('B4_Allgemeine Angaben'!$L$53=1))*12),(SUM(G144:J144,L144,P144)*12+(N144+O144))*(100+$J$15+$J$13)%+((K144+M144+Q144+R144*('B4_Allgemeine Angaben'!$L$53=1))*12)),0) -> 0.00 | T144: 0.00 | V144: 0.00 | W144: 0.00 | X144: 0.00 | Y144: 0.00 | Z144: 0.00 | AA144: 0.00 | AB144: 0.00 | AC144: 0.00 | AD144: 0.00 | AE144: 0.00 | AF144: 0.00 | AG144: 0.00 | AH144: 0.00 | AI144: 0.00 | AJ144: 0.00 | AK144: 0.00 | AL144: 0.00 | AM144: 0.00 | AN144: 0.00 | AO144: 0.00 | AP144: 0.00
G145: 0.00 | S145: =IFERROR(IF(A145<>"GfB",(SUM(G145:J145,L145,P145)*12+(N145+O145))*(100+$J$12+$J$13)%+((K145+M145+Q145+R145*('B4_Allgemeine Angaben'!$L$53=1))*12),(SUM(G145:J145,L145,P145)*12+(N145+O145))*(100+$J$15+$J$13)%+((K145+M145+Q145+R145*('B4_Allgemeine Angaben'!$L$53=1))*12)),0) -> 0.00 | T145: 0.00 | V145: 0.00 | W145: 0.00 | X145: 0.00 | Y145: 0.00 | Z145: 0.00 | AA145: 0.00 | AB145: 0.00 | AC145: 0.00 | AD145: 0.00 | AE145: 0.00 | AF145: 0.00 | AG145: 0.00 | AH145: 0.00 | AI145: 0.00 | AJ145: 0.00 | AK145: 0.00 | AL145: 0.00 | AM145: 0.00 | AN145: 0.00 | AO145: 0.00 | AP145: 0.00
G146: 0.00 | S146: =IFERROR(IF(A146<>"GfB",(SUM(G146:J146,L146,P146)*12+(N146+O146))*(100+$J$12+$J$13)%+((K146+M146+Q146+R146*('B4_Allgemeine Angaben'!$L$53=1))*12),(SUM(G146:J146,L146,P146)*12+(N146+O146))*(100+$J$15+$J$13)%+((K146+M146+Q146+R146*('B4_Allgemeine Angaben'!$L$53=1))*12)),0) -> 0.00 | T146: 0.00 | V146: 0.00 | W146: 0.00 | X146: 0.00 | Y146: 0.00 | Z146: 0.00 | AA146: 0.00 | AB146: 0.00 | AC146: 0.00 | AD146: 0.00 | AE146: 0.00 | AF146: 0.00 | AG146: 0.00 | AH146: 0.00 | AI146: 0.00 | AJ146: 0.00 | AK146: 0.00 | AL146: 0.00 | AM146: 0.00 | AN146: 0.00 | AO146: 0.00 | AP146: 0.00
G147: 0.00 | S147: =IFERROR(IF(A147<>"GfB",(SUM(G147:J147,L147,P147)*12+(N147+O147))*(100+$J$12+$J$13)%+((K147+M147+Q147+R147*('B4_Allgemeine Angaben'!$L$53=1))*12),(SUM(G147:J147,L147,P147)*12+(N147+O147))*(100+$J$15+$J$13)%+((K147+M147+Q147+R147*('B4_Allgemeine Angaben'!$L$53=1))*12)),0) -> 0.00 | T147: 0.00 | V147: 0.00 | W147: 0.00 | X147: 0.00 | Y147: 0.00 | Z147: 0.00 | AA147: 0.00 | AB147: 0.00 | AC147: 0.00 | AD147: 0.00 | AE147: 0.00 | AF147: 0.00 | AG147: 0.00 | AH147: 0.00 | AI147: 0.00 | AJ147: 0.00 | AK147: 0.00 | AL147: 0.00 | AM147: 0.00 | AN147: 0.00 | AO147: 0.00 | AP147: 0.00
G148: 0.00 | S148: =IFERROR(IF(A148<>"GfB",(SUM(G148:J148,L148,P148)*12+(N148+O148))*(100+$J$12+$J$13)%+((K148+M148+Q148+R148*('B4_Allgemeine Angaben'!$L$53=1))*12),(SUM(G148:J148,L148,P148)*12+(N148+O148))*(100+$J$15+$J$13)%+((K148+M148+Q148+R148*('B4_Allgemeine Angaben'!$L$53=1))*12)),0) -> 0.00 | T148: 0.00 | V148: 0.00 | W148: 0.00 | X148: 0.00 | Y148: 0.00 | Z148: 0.00 | AA148: 0.00 | AB148: 0.00 | AC148: 0.00 | AD148: 0.00 | AE148: 0.00 | AF148: 0.00 | AG148: 0.00 | AH148: 0.00 | AI148: 0.00 | AJ148: 0.00 | AK148: 0.00 | AL148: 0.00 | AM148: 0.00 | AN148: 0.00 | AO148: 0.00 | AP148: 0.00
G149: 0.00 | S149: =IFERROR(IF(A149<>"GfB",(SUM(G149:J149,L149,P149)*12+(N149+O149))*(100+$J$12+$J$13)%+((K149+M149+Q149+R149*('B4_Allgemeine Angaben'!$L$53=1))*12),(SUM(G149:J149,L149,P149)*12+(N149+O149))*(100+$J$15+$J$13)%+((K149+M149+Q149+R149*('B4_Allgemeine Angaben'!$L$53=1))*12)),0) -> 0.00 | T149: 0.00 | V149: 0.00 | W149: 0.00 | X149: 0.00 | Y149: 0.00 | Z149: 0.00 | AA149: 0.00 | AB149: 0.00 | AC149: 0.00 | AD149: 0.00 | AE149: 0.00 | AF149: 0.00 | AG149: 0.00 | AH149: 0.00 | AI149: 0.00 | AJ149: 0.00 | AK149: 0.00 | AL149: 0.00 | AM149: 0.00 | AN149: 0.00 | AO149: 0.00 | AP149: 0.00
G150: 0.00 | S150: =IFERROR(IF(A150<>"GfB",(SUM(G150:J150,L150,P150)*12+(N150+O150))*(100+$J$12+$J$13)%+((K150+M150+Q150+R150*('B4_Allgemeine Angaben'!$L$53=1))*12),(SUM(G150:J150,L150,P150)*12+(N150+O150))*(100+$J$15+$J$13)%+((K150+M150+Q150+R150*('B4_Allgemeine Angaben'!$L$53=1))*12)),0) -> 0.00 | T150: 0.00 | V150: 0.00 | W150: 0.00 | X150: 0.00 | Y150: 0.00 | Z150: 0.00 | AA150: 0.00 | AB150: 0.00 | AC150: 0.00 | AD150: 0.00 | AE150: 0.00 | AF150: 0.00 | AG150: 0.00 | AH150: 0.00 | AI150: 0.00 | AJ150: 0.00 | AK150: 0.00 | AL150: 0.00 | AM150: 0.00 | AN150: 0.00 | AO150: 0.00 | AP150: 0.00
G151: 0.00 | S151: =IFERROR(IF(A151<>"GfB",(SUM(G151:J151,L151,P151)*12+(N151+O151))*(100+$J$12+$J$13)%+((K151+M151+Q151+R151*('B4_Allgemeine Angaben'!$L$53=1))*12),(SUM(G151:J151,L151,P151)*12+(N151+O151))*(100+$J$15+$J$13)%+((K151+M151+Q151+R151*('B4_Allgemeine Angaben'!$L$53=1))*12)),0) -> 0.00 | T151: 0.00 | V151: 0.00 | W151: 0.00 | X151: 0.00 | Y151: 0.00 | Z151: 0.00 | AA151: 0.00 | AB151: 0.00 | AC151: 0.00 | AD151: 0.00 | AE151: 0.00 | AF151: 0.00 | AG151: 0.00 | AH151: 0.00 | AI151: 0.00 | AJ151: 0.00 | AK151: 0.00 | AL151: 0.00 | AM151: 0.00 | AN151: 0.00 | AO151: 0.00 | AP151: 0.00
G152: 0.00 | S152: =IFERROR(IF(A152<>"GfB",(SUM(G152:J152,L152,P152)*12+(N152+O152))*(100+$J$12+$J$13)%+((K152+M152+Q152+R152*('B4_Allgemeine Angaben'!$L$53=1))*12),(SUM(G152:J152,L152,P152)*12+(N152+O152))*(100+$J$15+$J$13)%+((K152+M152+Q152+R152*('B4_Allgemeine Angaben'!$L$53=1))*12)),0) -> 0.00 | T152: 0.00 | V152: 0.00 | W152: 0.00 | X152: 0.00 | Y152: 0.00 | Z152: 0.00 | AA152: 0.00 | AB152: 0.00 | AC152: 0.00 | AD152: 0.00 | AE152: 0.00 | AF152: 0.00 | AG152: 0.00 | AH152: 0.00 | AI152: 0.00 | AJ152: 0.00 | AK152: 0.00 | AL152: 0.00 | AM152: 0.00 | AN152: 0.00 | AO152: 0.00 | AP152: 0.00
G153: 0.00 | S153: =IFERROR(IF(A153<>"GfB",(SUM(G153:J153,L153,P153)*12+(N153+O153))*(100+$J$12+$J$13)%+((K153+M153+Q153+R153*('B4_Allgemeine Angaben'!$L$53=1))*12),(SUM(G153:J153,L153,P153)*12+(N153+O153))*(100+$J$15+$J$13)%+((K153+M153+Q153+R153*('B4_Allgemeine Angaben'!$L$53=1))*12)),0) -> 0.00 | T153: 0.00 | V153: 0.00 | W153: 0.00 | X153: 0.00 | Y153: 0.00 | Z153: 0.00 | AA153: 0.00 | AB153: 0.00 | AC153: 0.00 | AD153: 0.00 | AE153: 0.00 | AF153: 0.00 | AG153: 0.00 | AH153: 0.00 | AI153: 0.00 | AJ153: 0.00 | AK153: 0.00 | AL153: 0.00 | AM153: 0.00 | AN153: 0.00 | AO153: 0.00 | AP153: 0.00
G154: 0.00 | S154: =IFERROR(IF(A154<>"GfB",(SUM(G154:J154,L154,P154)*12+(N154+O154))*(100+$J$12+$J$13)%+((K154+M154+Q154+R154*('B4_Allgemeine Angaben'!$L$53=1))*12),(SUM(G154:J154,L154,P154)*12+(N154+O154))*(100+$J$15+$J$13)%+((K154+M154+Q154+R154*('B4_Allgemeine Angaben'!$L$53=1))*12)),0) -> 0.00 | T154: 0.00 | V154: 0.00 | W154: 0.00 | X154: 0.00 | Y154: 0.00 | Z154: 0.00 | AA154: 0.00 | AB154: 0.00 | AC154: 0.00 | AD154: 0.00 | AE154: 0.00 | AF154: 0.00 | AG154: 0.00 | AH154: 0.00 | AI154: 0.00 | AJ154: 0.00 | AK154: 0.00 | AL154: 0.00 | AM154: 0.00 | AN154: 0.00 | AO154: 0.00 | AP154: 0.00
G155: 0.00 | S155: =IFERROR(IF(A155<>"GfB",(SUM(G155:J155,L155,P155)*12+(N155+O155))*(100+$J$12+$J$13)%+((K155+M155+Q155+R155*('B4_Allgemeine Angaben'!$L$53=1))*12),(SUM(G155:J155,L155,P155)*12+(N155+O155))*(100+$J$15+$J$13)%+((K155+M155+Q155+R155*('B4_Allgemeine Angaben'!$L$53=1))*12)),0) -> 0.00 | T155: 0.00 | V155: 0.00 | W155: 0.00 | X155: 0.00 | Y155: 0.00 | Z155: 0.00 | AA155: 0.00 | AB155: 0.00 | AC155: 0.00 | AD155: 0.00 | AE155: 0.00 | AF155: 0.00 | AG155: 0.00 | AH155: 0.00 | AI155: 0.00 | AJ155: 0.00 | AK155: 0.00 | AL155: 0.00 | AM155: 0.00 | AN155: 0.00 | AO155: 0.00 | AP155: 0.00
G156: 0.00 | S156: =IFERROR(IF(A156<>"GfB",(SUM(G156:J156,L156,P156)*12+(N156+O156))*(100+$J$12+$J$13)%+((K156+M156+Q156+R156*('B4_Allgemeine Angaben'!$L$53=1))*12),(SUM(G156:J156,L156,P156)*12+(N156+O156))*(100+$J$15+$J$13)%+((K156+M156+Q156+R156*('B4_Allgemeine Angaben'!$L$53=1))*12)),0) -> 0.00 | T156: 0.00 | V156: 0.00 | W156: 0.00 | X156: 0.00 | Y156: 0.00 | Z156: 0.00 | AA156: 0.00 | AB156: 0.00 | AC156: 0.00 | AD156: 0.00 | AE156: 0.00 | AF156: 0.00 | AG156: 0.00 | AH156: 0.00 | AI156: 0.00 | AJ156: 0.00 | AK156: 0.00 | AL156: 0.00 | AM156: 0.00 | AN156: 0.00 | AO156: 0.00 | AP156: 0.00
G157: 0.00 | S157: =IFERROR(IF(A157<>"GfB",(SUM(G157:J157,L157,P157)*12+(N157+O157))*(100+$J$12+$J$13)%+((K157+M157+Q157+R157*('B4_Allgemeine Angaben'!$L$53=1))*12),(SUM(G157:J157,L157,P157)*12+(N157+O157))*(100+$J$15+$J$13)%+((K157+M157+Q157+R157*('B4_Allgemeine Angaben'!$L$53=1))*12)),0) -> 0.00 | T157: 0.00 | V157: 0.00 | W157: 0.00 | X157: 0.00 | Y157: 0.00 | Z157: 0.00 | AA157: 0.00 | AB157: 0.00 | AC157: 0.00 | AD157: 0.00 | AE157: 0.00 | AF157: 0.00 | AG157: 0.00 | AH157: 0.00 | AI157: 0.00 | AJ157: 0.00 | AK157: 0.00 | AL157: 0.00 | AM157: 0.00 | AN157: 0.00 | AO157: 0.00 | AP157: 0.00
G158: 0.00 | S158: =IFERROR(IF(A158<>"GfB",(SUM(G158:J158,L158,P158)*12+(N158+O158))*(100+$J$12+$J$13)%+((K158+M158+Q158+R158*('B4_Allgemeine Angaben'!$L$53=1))*12),(SUM(G158:J158,L158,P158)*12+(N158+O158))*(100+$J$15+$J$13)%+((K158+M158+Q158+R158*('B4_Allgemeine Angaben'!$L$53=1))*12)),0) -> 0.00 | T158: 0.00 | V158: 0.00 | W158: 0.00 | X158: 0.00 | Y158: 0.00 | Z158: 0.00 | AA158: 0.00 | AB158: 0.00 | AC158: 0.00 | AD158: 0.00 | AE158: 0.00 | AF158: 0.00 | AG158: 0.00 | AH158: 0.00 | AI158: 0.00 | AJ158: 0.00 | AK158: 0.00 | AL158: 0.00 | AM158: 0.00 | AN158: 0.00 | AO158: 0.00 | AP158: 0.00
G159: 0.00 | S159: =IFERROR(IF(A159<>"GfB",(SUM(G159:J159,L159,P159)*12+(N159+O159))*(100+$J$12+$J$13)%+((K159+M159+Q159+R159*('B4_Allgemeine Angaben'!$L$53=1))*12),(SUM(G159:J159,L159,P159)*12+(N159+O159))*(100+$J$15+$J$13)%+((K159+M159+Q159+R159*('B4_Allgemeine Angaben'!$L$53=1))*12)),0) -> 0.00 | T159: 0.00 | V159: 0.00 | W159: 0.00 | X159: 0.00 | Y159: 0.00 | Z159: 0.00 | AA159: 0.00 | AB159: 0.00 | AC159: 0.00 | AD159: 0.00 | AE159: 0.00 | AF159: 0.00 | AG159: 0.00 | AH159: 0.00 | AI159: 0.00 | AJ159: 0.00 | AK159: 0.00 | AL159: 0.00 | AM159: 0.00 | AN159: 0.00 | AO159: 0.00 | AP159: 0.00
G160: 0.00 | S160: =IFERROR(IF(A160<>"GfB",(SUM(G160:J160,L160,P160)*12+(N160+O160))*(100+$J$12+$J$13)%+((K160+M160+Q160+R160*('B4_Allgemeine Angaben'!$L$53=1))*12),(SUM(G160:J160,L160,P160)*12+(N160+O160))*(100+$J$15+$J$13)%+((K160+M160+Q160+R160*('B4_Allgemeine Angaben'!$L$53=1))*12)),0) -> 0.00 | T160: 0.00 | V160: 0.00 | W160: 0.00 | X160: 0.00 | Y160: 0.00 | Z160: 0.00 | AA160: 0.00 | AB160: 0.00 | AC160: 0.00 | AD160: 0.00 | AE160: 0.00 | AF160: 0.00 | AG160: 0.00 | AH160: 0.00 | AI160: 0.00 | AJ160: 0.00 | AK160: 0.00 | AL160: 0.00 | AM160: 0.00 | AN160: 0.00 | AO160: 0.00 | AP160: 0.00
G161: 0.00 | S161: =IFERROR(IF(A161<>"GfB",(SUM(G161:J161,L161,P161)*12+(N161+O161))*(100+$J$12+$J$13)%+((K161+M161+Q161+R161*('B4_Allgemeine Angaben'!$L$53=1))*12),(SUM(G161:J161,L161,P161)*12+(N161+O161))*(100+$J$15+$J$13)%+((K161+M161+Q161+R161*('B4_Allgemeine Angaben'!$L$53=1))*12)),0) -> 0.00 | T161: 0.00 | V161: 0.00 | W161: 0.00 | X161: 0.00 | Y161: 0.00 | Z161: 0.00 | AA161: 0.00 | AB161: 0.00 | AC161: 0.00 | AD161: 0.00 | AE161: 0.00 | AF161: 0.00 | AG161: 0.00 | AH161: 0.00 | AI161: 0.00 | AJ161: 0.00 | AK161: 0.00 | AL161: 0.00 | AM161: 0.00 | AN161: 0.00 | AO161: 0.00 | AP161: 0.00
G162: 0.00 | S162: =IFERROR(IF(A162<>"GfB",(SUM(G162:J162,L162,P162)*12+(N162+O162))*(100+$J$12+$J$13)%+((K162+M162+Q162+R162*('B4_Allgemeine Angaben'!$L$53=1))*12),(SUM(G162:J162,L162,P162)*12+(N162+O162))*(100+$J$15+$J$13)%+((K162+M162+Q162+R162*('B4_Allgemeine Angaben'!$L$53=1))*12)),0) -> 0.00 | T162: 0.00 | V162: 0.00 | W162: 0.00 | X162: 0.00 | Y162: 0.00 | Z162: 0.00 | AA162: 0.00 | AB162: 0.00 | AC162: 0.00 | AD162: 0.00 | AE162: 0.00 | AF162: 0.00 | AG162: 0.00 | AH162: 0.00 | AI162: 0.00 | AJ162: 0.00 | AK162: 0.00 | AL162: 0.00 | AM162: 0.00 | AN162: 0.00 | AO162: 0.00 | AP162: 0.00
G163: 0.00 | S163: =IFERROR(IF(A163<>"GfB",(SUM(G163:J163,L163,P163)*12+(N163+O163))*(100+$J$12+$J$13)%+((K163+M163+Q163+R163*('B4_Allgemeine Angaben'!$L$53=1))*12),(SUM(G163:J163,L163,P163)*12+(N163+O163))*(100+$J$15+$J$13)%+((K163+M163+Q163+R163*('B4_Allgemeine Angaben'!$L$53=1))*12)),0) -> 0.00 | T163: 0.00 | V163: 0.00 | W163: 0.00 | X163: 0.00 | Y163: 0.00 | Z163: 0.00 | AA163: 0.00 | AB163: 0.00 | AC163: 0.00 | AD163: 0.00 | AE163: 0.00 | AF163: 0.00 | AG163: 0.00 | AH163: 0.00 | AI163: 0.00 | AJ163: 0.00 | AK163: 0.00 | AL163: 0.00 | AM163: 0.00 | AN163: 0.00 | AO163: 0.00 | AP163: 0.00
G164: 0.00 | S164: =IFERROR(IF(A164<>"GfB",(SUM(G164:J164,L164,P164)*12+(N164+O164))*(100+$J$12+$J$13)%+((K164+M164+Q164+R164*('B4_Allgemeine Angaben'!$L$53=1))*12),(SUM(G164:J164,L164,P164)*12+(N164+O164))*(100+$J$15+$J$13)%+((K164+M164+Q164+R164*('B4_Allgemeine Angaben'!$L$53=1))*12)),0) -> 0.00 | T164: 0.00 | V164: 0.00 | W164: 0.00 | X164: 0.00 | Y164: 0.00 | Z164: 0.00 | AA164: 0.00 | AB164: 0.00 | AC164: 0.00 | AD164: 0.00 | AE164: 0.00 | AF164: 0.00 | AG164: 0.00 | AH164: 0.00 | AI164: 0.00 | AJ164: 0.00 | AK164: 0.00 | AL164: 0.00 | AM164: 0.00 | AN164: 0.00 | AO164: 0.00 | AP164: 0.00
G165: 0.00 | S165: =IFERROR(IF(A165<>"GfB",(SUM(G165:J165,L165,P165)*12+(N165+O165))*(100+$J$12+$J$13)%+((K165+M165+Q165+R165*('B4_Allgemeine Angaben'!$L$53=1))*12),(SUM(G165:J165,L165,P165)*12+(N165+O165))*(100+$J$15+$J$13)%+((K165+M165+Q165+R165*('B4_Allgemeine Angaben'!$L$53=1))*12)),0) -> 0.00 | T165: 0.00 | V165: 0.00 | W165: 0.00 | X165: 0.00 | Y165: 0.00 | Z165: 0.00 | AA165: 0.00 | AB165: 0.00 | AC165: 0.00 | AD165: 0.00 | AE165: 0.00 | AF165: 0.00 | AG165: 0.00 | AH165: 0.00 | AI165: 0.00 | AJ165: 0.00 | AK165: 0.00 | AL165: 0.00 | AM165: 0.00 | AN165: 0.00 | AO165: 0.00 | AP165: 0.00
G166: 0.00 | S166: =IFERROR(IF(A166<>"GfB",(SUM(G166:J166,L166,P166)*12+(N166+O166))*(100+$J$12+$J$13)%+((K166+M166+Q166+R166*('B4_Allgemeine Angaben'!$L$53=1))*12),(SUM(G166:J166,L166,P166)*12+(N166+O166))*(100+$J$15+$J$13)%+((K166+M166+Q166+R166*('B4_Allgemeine Angaben'!$L$53=1))*12)),0) -> 0.00 | T166: 0.00 | V166: 0.00 | W166: 0.00 | X166: 0.00 | Y166: 0.00 | Z166: 0.00 | AA166: 0.00 | AB166: 0.00 | AC166: 0.00 | AD166: 0.00 | AE166: 0.00 | AF166: 0.00 | AG166: 0.00 | AH166: 0.00 | AI166: 0.00 | AJ166: 0.00 | AK166: 0.00 | AL166: 0.00 | AM166: 0.00 | AN166: 0.00 | AO166: 0.00 | AP166: 0.00
G167: 0.00 | S167: =IFERROR(IF(A167<>"GfB",(SUM(G167:J167,L167,P167)*12+(N167+O167))*(100+$J$12+$J$13)%+((K167+M167+Q167+R167*('B4_Allgemeine Angaben'!$L$53=1))*12),(SUM(G167:J167,L167,P167)*12+(N167+O167))*(100+$J$15+$J$13)%+((K167+M167+Q167+R167*('B4_Allgemeine Angaben'!$L$53=1))*12)),0) -> 0.00 | T167: 0.00 | V167: 0.00 | W167: 0.00 | X167: 0.00 | Y167: 0.00 | Z167: 0.00 | AA167: 0.00 | AB167: 0.00 | AC167: 0.00 | AD167: 0.00 | AE167: 0.00 | AF167: 0.00 | AG167: 0.00 | AH167: 0.00 | AI167: 0.00 | AJ167: 0.00 | AK167: 0.00 | AL167: 0.00 | AM167: 0.00 | AN167: 0.00 | AO167: 0.00 | AP167: 0.00
G168: 0.00 | S168: =IFERROR(IF(A168<>"GfB",(SUM(G168:J168,L168,P168)*12+(N168+O168))*(100+$J$12+$J$13)%+((K168+M168+Q168+R168*('B4_Allgemeine Angaben'!$L$53=1))*12),(SUM(G168:J168,L168,P168)*12+(N168+O168))*(100+$J$15+$J$13)%+((K168+M168+Q168+R168*('B4_Allgemeine Angaben'!$L$53=1))*12)),0) -> 0.00 | T168: 0.00 | V168: 0.00 | W168: 0.00 | X168: 0.00 | Y168: 0.00 | Z168: 0.00 | AA168: 0.00 | AB168: 0.00 | AC168: 0.00 | AD168: 0.00 | AE168: 0.00 | AF168: 0.00 | AG168: 0.00 | AH168: 0.00 | AI168: 0.00 | AJ168: 0.00 | AK168: 0.00 | AL168: 0.00 | AM168: 0.00 | AN168: 0.00 | AO168: 0.00 | AP168: 0.00
G169: 0.00 | S169: =IFERROR(IF(A169<>"GfB",(SUM(G169:J169,L169,P169)*12+(N169+O169))*(100+$J$12+$J$13)%+((K169+M169+Q169+R169*('B4_Allgemeine Angaben'!$L$53=1))*12),(SUM(G169:J169,L169,P169)*12+(N169+O169))*(100+$J$15+$J$13)%+((K169+M169+Q169+R169*('B4_Allgemeine Angaben'!$L$53=1))*12)),0) -> 0.00 | T169: 0.00 | V169: 0.00 | W169: 0.00 | X169: 0.00 | Y169: 0.00 | Z169: 0.00 | AA169: 0.00 | AB169: 0.00 | AC169: 0.00 | AD169: 0.00 | AE169: 0.00 | AF169: 0.00 | AG169: 0.00 | AH169: 0.00 | AI169: 0.00 | AJ169: 0.00 | AK169: 0.00 | AL169: 0.00 | AM169: 0.00 | AN169: 0.00 | AO169: 0.00 | AP169: 0.00
G170: 0.00 | S170: =IFERROR(IF(A170<>"GfB",(SUM(G170:J170,L170,P170)*12+(N170+O170))*(100+$J$12+$J$13)%+((K170+M170+Q170+R170*('B4_Allgemeine Angaben'!$L$53=1))*12),(SUM(G170:J170,L170,P170)*12+(N170+O170))*(100+$J$15+$J$13)%+((K170+M170+Q170+R170*('B4_Allgemeine Angaben'!$L$53=1))*12)),0) -> 0.00 | T170: 0.00 | V170: 0.00 | W170: 0.00 | X170: 0.00 | Y170: 0.00 | Z170: 0.00 | AA170: 0.00 | AB170: 0.00 | AC170: 0.00 | AD170: 0.00 | AE170: 0.00 | AF170: 0.00 | AG170: 0.00 | AH170: 0.00 | AI170: 0.00 | AJ170: 0.00 | AK170: 0.00 | AL170: 0.00 | AM170: 0.00 | AN170: 0.00 | AO170: 0.00 | AP170: 0.00
G171: 0.00 | S171: =IFERROR(IF(A171<>"GfB",(SUM(G171:J171,L171,P171)*12+(N171+O171))*(100+$J$12+$J$13)%+((K171+M171+Q171+R171*('B4_Allgemeine Angaben'!$L$53=1))*12),(SUM(G171:J171,L171,P171)*12+(N171+O171))*(100+$J$15+$J$13)%+((K171+M171+Q171+R171*('B4_Allgemeine Angaben'!$L$53=1))*12)),0) -> 0.00 | T171: 0.00 | V171: 0.00 | W171: 0.00 | X171: 0.00 | Y171: 0.00 | Z171: 0.00 | AA171: 0.00 | AB171: 0.00 | AC171: 0.00 | AD171: 0.00 | AE171: 0.00 | AF171: 0.00 | AG171: 0.00 | AH171: 0.00 | AI171: 0.00 | AJ171: 0.00 | AK171: 0.00 | AL171: 0.00 | AM171: 0.00 | AN171: 0.00 | AO171: 0.00 | AP171: 0.00
G172: 0.00 | S172: =IFERROR(IF(A172<>"GfB",(SUM(G172:J172,L172,P172)*12+(N172+O172))*(100+$J$12+$J$13)%+((K172+M172+Q172+R172*('B4_Allgemeine Angaben'!$L$53=1))*12),(SUM(G172:J172,L172,P172)*12+(N172+O172))*(100+$J$15+$J$13)%+((K172+M172+Q172+R172*('B4_Allgemeine Angaben'!$L$53=1))*12)),0) -> 0.00 | T172: 0.00 | V172: 0.00 | W172: 0.00 | X172: 0.00 | Y172: 0.00 | Z172: 0.00 | AA172: 0.00 | AB172: 0.00 | AC172: 0.00 | AD172: 0.00 | AE172: 0.00 | AF172: 0.00 | AG172: 0.00 | AH172: 0.00 | AI172: 0.00 | AJ172: 0.00 | AK172: 0.00 | AL172: 0.00 | AM172: 0.00 | AN172: 0.00 | AO172: 0.00 | AP172: 0.00
G173: 0.00 | S173: =IFERROR(IF(A173<>"GfB",(SUM(G173:J173,L173,P173)*12+(N173+O173))*(100+$J$12+$J$13)%+((K173+M173+Q173+R173*('B4_Allgemeine Angaben'!$L$53=1))*12),(SUM(G173:J173,L173,P173)*12+(N173+O173))*(100+$J$15+$J$13)%+((K173+M173+Q173+R173*('B4_Allgemeine Angaben'!$L$53=1))*12)),0) -> 0.00 | T173: 0.00 | V173: 0.00 | W173: 0.00 | X173: 0.00 | Y173: 0.00 | Z173: 0.00 | AA173: 0.00 | AB173: 0.00 | AC173: 0.00 | AD173: 0.00 | AE173: 0.00 | AF173: 0.00 | AG173: 0.00 | AH173: 0.00 | AI173: 0.00 | AJ173: 0.00 | AK173: 0.00 | AL173: 0.00 | AM173: 0.00 | AN173: 0.00 | AO173: 0.00 | AP173: 0.00
G174: 0.00 | S174: =IFERROR(IF(A174<>"GfB",(SUM(G174:J174,L174,P174)*12+(N174+O174))*(100+$J$12+$J$13)%+((K174+M174+Q174+R174*('B4_Allgemeine Angaben'!$L$53=1))*12),(SUM(G174:J174,L174,P174)*12+(N174+O174))*(100+$J$15+$J$13)%+((K174+M174+Q174+R174*('B4_Allgemeine Angaben'!$L$53=1))*12)),0) -> 0.00 | T174: 0.00 | V174: 0.00 | W174: 0.00 | X174: 0.00 | Y174: 0.00 | Z174: 0.00 | AA174: 0.00 | AB174: 0.00 | AC174: 0.00 | AD174: 0.00 | AE174: 0.00 | AF174: 0.00 | AG174: 0.00 | AH174: 0.00 | AI174: 0.00 | AJ174: 0.00 | AK174: 0.00 | AL174: 0.00 | AM174: 0.00 | AN174: 0.00 | AO174: 0.00 | AP174: 0.00
G175: 0.00 | S175: =IFERROR(IF(A175<>"GfB",(SUM(G175:J175,L175,P175)*12+(N175+O175))*(100+$J$12+$J$13)%+((K175+M175+Q175+R175*('B4_Allgemeine Angaben'!$L$53=1))*12),(SUM(G175:J175,L175,P175)*12+(N175+O175))*(100+$J$15+$J$13)%+((K175+M175+Q175+R175*('B4_Allgemeine Angaben'!$L$53=1))*12)),0) -> 0.00 | T175: 0.00 | V175: 0.00 | W175: 0.00 | X175: 0.00 | Y175: 0.00 | Z175: 0.00 | AA175: 0.00 | AB175: 0.00 | AC175: 0.00 | AD175: 0.00 | AE175: 0.00 | AF175: 0.00 | AG175: 0.00 | AH175: 0.00 | AI175: 0.00 | AJ175: 0.00 | AK175: 0.00 | AL175: 0.00 | AM175: 0.00 | AN175: 0.00 | AO175: 0.00 | AP175: 0.00
G176: 0.00 | S176: =IFERROR(IF(A176<>"GfB",(SUM(G176:J176,L176,P176)*12+(N176+O176))*(100+$J$12+$J$13)%+((K176+M176+Q176+R176*('B4_Allgemeine Angaben'!$L$53=1))*12),(SUM(G176:J176,L176,P176)*12+(N176+O176))*(100+$J$15+$J$13)%+((K176+M176+Q176+R176*('B4_Allgemeine Angaben'!$L$53=1))*12)),0) -> 0.00 | T176: 0.00 | V176: 0.00 | W176: 0.00 | X176: 0.00 | Y176: 0.00 | Z176: 0.00 | AA176: 0.00 | AB176: 0.00 | AC176: 0.00 | AD176: 0.00 | AE176: 0.00 | AF176: 0.00 | AG176: 0.00 | AH176: 0.00 | AI176: 0.00 | AJ176: 0.00 | AK176: 0.00 | AL176: 0.00 | AM176: 0.00 | AN176: 0.00 | AO176: 0.00 | AP176: 0.00
G177: 0.00 | S177: =IFERROR(IF(A177<>"GfB",(SUM(G177:J177,L177,P177)*12+(N177+O177))*(100+$J$12+$J$13)%+((K177+M177+Q177+R177*('B4_Allgemeine Angaben'!$L$53=1))*12),(SUM(G177:J177,L177,P177)*12+(N177+O177))*(100+$J$15+$J$13)%+((K177+M177+Q177+R177*('B4_Allgemeine Angaben'!$L$53=1))*12)),0) -> 0.00 | T177: 0.00 | V177: 0.00 | W177: 0.00 | X177: 0.00 | Y177: 0.00 | Z177: 0.00 | AA177: 0.00 | AB177: 0.00 | AC177: 0.00 | AD177: 0.00 | AE177: 0.00 | AF177: 0.00 | AG177: 0.00 | AH177: 0.00 | AI177: 0.00 | AJ177: 0.00 | AK177: 0.00 | AL177: 0.00 | AM177: 0.00 | AN177: 0.00 | AO177: 0.00 | AP177: 0.00
G178: 0.00 | S178: =IFERROR(IF(A178<>"GfB",(SUM(G178:J178,L178,P178)*12+(N178+O178))*(100+$J$12+$J$13)%+((K178+M178+Q178+R178*('B4_Allgemeine Angaben'!$L$53=1))*12),(SUM(G178:J178,L178,P178)*12+(N178+O178))*(100+$J$15+$J$13)%+((K178+M178+Q178+R178*('B4_Allgemeine Angaben'!$L$53=1))*12)),0) -> 0.00 | T178: 0.00 | V178: 0.00 | W178: 0.00 | X178: 0.00 | Y178: 0.00 | Z178: 0.00 | AA178: 0.00 | AB178: 0.00 | AC178: 0.00 | AD178: 0.00 | AE178: 0.00 | AF178: 0.00 | AG178: 0.00 | AH178: 0.00 | AI178: 0.00 | AJ178: 0.00 | AK178: 0.00 | AL178: 0.00 | AM178: 0.00 | AN178: 0.00 | AO178: 0.00 | AP178: 0.00
G179: 0.00 | S179: =IFERROR(IF(A179<>"GfB",(SUM(G179:J179,L179,P179)*12+(N179+O179))*(100+$J$12+$J$13)%+((K179+M179+Q179+R179*('B4_Allgemeine Angaben'!$L$53=1))*12),(SUM(G179:J179,L179,P179)*12+(N179+O179))*(100+$J$15+$J$13)%+((K179+M179+Q179+R179*('B4_Allgemeine Angaben'!$L$53=1))*12)),0) -> 0.00 | T179: 0.00 | V179: 0.00 | W179: 0.00 | X179: 0.00 | Y179: 0.00 | Z179: 0.00 | AA179: 0.00 | AB179: 0.00 | AC179: 0.00 | AD179: 0.00 | AE179: 0.00 | AF179: 0.00 | AG179: 0.00 | AH179: 0.00 | AI179: 0.00 | AJ179: 0.00 | AK179: 0.00 | AL179: 0.00 | AM179: 0.00 | AN179: 0.00 | AO179: 0.00 | AP179: 0.00
G180: 0.00 | S180: =IFERROR(IF(A180<>"GfB",(SUM(G180:J180,L180,P180)*12+(N180+O180))*(100+$J$12+$J$13)%+((K180+M180+Q180+R180*('B4_Allgemeine Angaben'!$L$53=1))*12),(SUM(G180:J180,L180,P180)*12+(N180+O180))*(100+$J$15+$J$13)%+((K180+M180+Q180+R180*('B4_Allgemeine Angaben'!$L$53=1))*12)),0) -> 0.00 | T180: 0.00 | V180: 0.00 | W180: 0.00 | X180: 0.00 | Y180: 0.00 | Z180: 0.00 | AA180: 0.00 | AB180: 0.00 | AC180: 0.00 | AD180: 0.00 | AE180: 0.00 | AF180: 0.00 | AG180: 0.00 | AH180: 0.00 | AI180: 0.00 | AJ180: 0.00 | AK180: 0.00 | AL180: 0.00 | AM180: 0.00 | AN180: 0.00 | AO180: 0.00 | AP180: 0.00
G181: 0.00 | S181: =IFERROR(IF(A181<>"GfB",(SUM(G181:J181,L181,P181)*12+(N181+O181))*(100+$J$12+$J$13)%+((K181+M181+Q181+R181*('B4_Allgemeine Angaben'!$L$53=1))*12),(SUM(G181:J181,L181,P181)*12+(N181+O181))*(100+$J$15+$J$13)%+((K181+M181+Q181+R181*('B4_Allgemeine Angaben'!$L$53=1))*12)),0) -> 0.00 | T181: 0.00 | V181: 0.00 | W181: 0.00 | X181: 0.00 | Y181: 0.00 | Z181: 0.00 | AA181: 0.00 | AB181: 0.00 | AC181: 0.00 | AD181: 0.00 | AE181: 0.00 | AF181: 0.00 | AG181: 0.00 | AH181: 0.00 | AI181: 0.00 | AJ181: 0.00 | AK181: 0.00 | AL181: 0.00 | AM181: 0.00 | AN181: 0.00 | AO181: 0.00 | AP181: 0.00
G182: 0.00 | S182: =IFERROR(IF(A182<>"GfB",(SUM(G182:J182,L182,P182)*12+(N182+O182))*(100+$J$12+$J$13)%+((K182+M182+Q182+R182*('B4_Allgemeine Angaben'!$L$53=1))*12),(SUM(G182:J182,L182,P182)*12+(N182+O182))*(100+$J$15+$J$13)%+((K182+M182+Q182+R182*('B4_Allgemeine Angaben'!$L$53=1))*12)),0) -> 0.00 | T182: 0.00 | V182: 0.00 | W182: 0.00 | X182: 0.00 | Y182: 0.00 | Z182: 0.00 | AA182: 0.00 | AB182: 0.00 | AC182: 0.00 | AD182: 0.00 | AE182: 0.00 | AF182: 0.00 | AG182: 0.00 | AH182: 0.00 | AI182: 0.00 | AJ182: 0.00 | AK182: 0.00 | AL182: 0.00 | AM182: 0.00 | AN182: 0.00 | AO182: 0.00 | AP182: 0.00
G183: 0.00 | S183: =IFERROR(IF(A183<>"GfB",(SUM(G183:J183,L183,P183)*12+(N183+O183))*(100+$J$12+$J$13)%+((K183+M183+Q183+R183*('B4_Allgemeine Angaben'!$L$53=1))*12),(SUM(G183:J183,L183,P183)*12+(N183+O183))*(100+$J$15+$J$13)%+((K183+M183+Q183+R183*('B4_Allgemeine Angaben'!$L$53=1))*12)),0) -> 0.00 | T183: 0.00 | V183: 0.00 | W183: 0.00 | X183: 0.00 | Y183: 0.00 | Z183: 0.00 | AA183: 0.00 | AB183: 0.00 | AC183: 0.00 | AD183: 0.00 | AE183: 0.00 | AF183: 0.00 | AG183: 0.00 | AH183: 0.00 | AI183: 0.00 | AJ183: 0.00 | AK183: 0.00 | AL183: 0.00 | AM183: 0.00 | AN183: 0.00 | AO183: 0.00 | AP183: 0.00
G184: 0.00 | S184: =IFERROR(IF(A184<>"GfB",(SUM(G184:J184,L184,P184)*12+(N184+O184))*(100+$J$12+$J$13)%+((K184+M184+Q184+R184*('B4_Allgemeine Angaben'!$L$53=1))*12),(SUM(G184:J184,L184,P184)*12+(N184+O184))*(100+$J$15+$J$13)%+((K184+M184+Q184+R184*('B4_Allgemeine Angaben'!$L$53=1))*12)),0) -> 0.00 | T184: 0.00 | V184: 0.00 | W184: 0.00 | X184: 0.00 | Y184: 0.00 | Z184: 0.00 | AA184: 0.00 | AB184: 0.00 | AC184: 0.00 | AD184: 0.00 | AE184: 0.00 | AF184: 0.00 | AG184: 0.00 | AH184: 0.00 | AI184: 0.00 | AJ184: 0.00 | AK184: 0.00 | AL184: 0.00 | AM184: 0.00 | AN184: 0.00 | AO184: 0.00 | AP184: 0.00
G185: 0.00 | S185: =IFERROR(IF(A185<>"GfB",(SUM(G185:J185,L185,P185)*12+(N185+O185))*(100+$J$12+$J$13)%+((K185+M185+Q185+R185*('B4_Allgemeine Angaben'!$L$53=1))*12),(SUM(G185:J185,L185,P185)*12+(N185+O185))*(100+$J$15+$J$13)%+((K185+M185+Q185+R185*('B4_Allgemeine Angaben'!$L$53=1))*12)),0) -> 0.00 | T185: 0.00 | V185: 0.00 | W185: 0.00 | X185: 0.00 | Y185: 0.00 | Z185: 0.00 | AA185: 0.00 | AB185: 0.00 | AC185: 0.00 | AD185: 0.00 | AE185: 0.00 | AF185: 0.00 | AG185: 0.00 | AH185: 0.00 | AI185: 0.00 | AJ185: 0.00 | AK185: 0.00 | AL185: 0.00 | AM185: 0.00 | AN185: 0.00 | AO185: 0.00 | AP185: 0.00
G186: 0.00 | S186: =IFERROR(IF(A186<>"GfB",(SUM(G186:J186,L186,P186)*12+(N186+O186))*(100+$J$12+$J$13)%+((K186+M186+Q186+R186*('B4_Allgemeine Angaben'!$L$53=1))*12),(SUM(G186:J186,L186,P186)*12+(N186+O186))*(100+$J$15+$J$13)%+((K186+M186+Q186+R186*('B4_Allgemeine Angaben'!$L$53=1))*12)),0) -> 0.00 | T186: 0.00 | V186: 0.00 | W186: 0.00 | X186: 0.00 | Y186: 0.00 | Z186: 0.00 | AA186: 0.00 | AB186: 0.00 | AC186: 0.00 | AD186: 0.00 | AE186: 0.00 | AF186: 0.00 | AG186: 0.00 | AH186: 0.00 | AI186: 0.00 | AJ186: 0.00 | AK186: 0.00 | AL186: 0.00 | AM186: 0.00 | AN186: 0.00 | AO186: 0.00 | AP186: 0.00
G187: 0.00 | S187: =IFERROR(IF(A187<>"GfB",(SUM(G187:J187,L187,P187)*12+(N187+O187))*(100+$J$12+$J$13)%+((K187+M187+Q187+R187*('B4_Allgemeine Angaben'!$L$53=1))*12),(SUM(G187:J187,L187,P187)*12+(N187+O187))*(100+$J$15+$J$13)%+((K187+M187+Q187+R187*('B4_Allgemeine Angaben'!$L$53=1))*12)),0) -> 0.00 | T187: 0.00 | V187: 0.00 | W187: 0.00 | X187: 0.00 | Y187: 0.00 | Z187: 0.00 | AA187: 0.00 | AB187: 0.00 | AC187: 0.00 | AD187: 0.00 | AE187: 0.00 | AF187: 0.00 | AG187: 0.00 | AH187: 0.00 | AI187: 0.00 | AJ187: 0.00 | AK187: 0.00 | AL187: 0.00 | AM187: 0.00 | AN187: 0.00 | AO187: 0.00 | AP187: 0.00
G188: 0.00 | S188: =IFERROR(IF(A188<>"GfB",(SUM(G188:J188,L188,P188)*12+(N188+O188))*(100+$J$12+$J$13)%+((K188+M188+Q188+R188*('B4_Allgemeine Angaben'!$L$53=1))*12),(SUM(G188:J188,L188,P188)*12+(N188+O188))*(100+$J$15+$J$13)%+((K188+M188+Q188+R188*('B4_Allgemeine Angaben'!$L$53=1))*12)),0) -> 0.00 | T188: 0.00 | V188: 0.00 | W188: 0.00 | X188: 0.00 | Y188: 0.00 | Z188: 0.00 | AA188: 0.00 | AB188: 0.00 | AC188: 0.00 | AD188: 0.00 | AE188: 0.00 | AF188: 0.00 | AG188: 0.00 | AH188: 0.00 | AI188: 0.00 | AJ188: 0.00 | AK188: 0.00 | AL188: 0.00 | AM188: 0.00 | AN188: 0.00 | AO188: 0.00 | AP188: 0.00
G189: 0.00 | S189: =IFERROR(IF(A189<>"GfB",(SUM(G189:J189,L189,P189)*12+(N189+O189))*(100+$J$12+$J$13)%+((K189+M189+Q189+R189*('B4_Allgemeine Angaben'!$L$53=1))*12),(SUM(G189:J189,L189,P189)*12+(N189+O189))*(100+$J$15+$J$13)%+((K189+M189+Q189+R189*('B4_Allgemeine Angaben'!$L$53=1))*12)),0) -> 0.00 | T189: 0.00 | V189: 0.00 | W189: 0.00 | X189: 0.00 | Y189: 0.00 | Z189: 0.00 | AA189: 0.00 | AB189: 0.00 | AC189: 0.00 | AD189: 0.00 | AE189: 0.00 | AF189: 0.00 | AG189: 0.00 | AH189: 0.00 | AI189: 0.00 | AJ189: 0.00 | AK189: 0.00 | AL189: 0.00 | AM189: 0.00 | AN189: 0.00 | AO189: 0.00 | AP189: 0.00
G190: 0.00 | S190: =IFERROR(IF(A190<>"GfB",(SUM(G190:J190,L190,P190)*12+(N190+O190))*(100+$J$12+$J$13)%+((K190+M190+Q190+R190*('B4_Allgemeine Angaben'!$L$53=1))*12),(SUM(G190:J190,L190,P190)*12+(N190+O190))*(100+$J$15+$J$13)%+((K190+M190+Q190+R190*('B4_Allgemeine Angaben'!$L$53=1))*12)),0) -> 0.00 | T190: 0.00 | V190: 0.00 | W190: 0.00 | X190: 0.00 | Y190: 0.00 | Z190: 0.00 | AA190: 0.00 | AB190: 0.00 | AC190: 0.00 | AD190: 0.00 | AE190: 0.00 | AF190: 0.00 | AG190: 0.00 | AH190: 0.00 | AI190: 0.00 | AJ190: 0.00 | AK190: 0.00 | AL190: 0.00 | AM190: 0.00 | AN190: 0.00 | AO190: 0.00 | AP190: 0.00
G191: 0.00 | S191: =IFERROR(IF(A191<>"GfB",(SUM(G191:J191,L191,P191)*12+(N191+O191))*(100+$J$12+$J$13)%+((K191+M191+Q191+R191*('B4_Allgemeine Angaben'!$L$53=1))*12),(SUM(G191:J191,L191,P191)*12+(N191+O191))*(100+$J$15+$J$13)%+((K191+M191+Q191+R191*('B4_Allgemeine Angaben'!$L$53=1))*12)),0) -> 0.00 | T191: 0.00 | V191: 0.00 | W191: 0.00 | X191: 0.00 | Y191: 0.00 | Z191: 0.00 | AA191: 0.00 | AB191: 0.00 | AC191: 0.00 | AD191: 0.00 | AE191: 0.00 | AF191: 0.00 | AG191: 0.00 | AH191: 0.00 | AI191: 0.00 | AJ191: 0.00 | AK191: 0.00 | AL191: 0.00 | AM191: 0.00 | AN191: 0.00 | AO191: 0.00 | AP191: 0.00
G192: 0.00 | S192: =IFERROR(IF(A192<>"GfB",(SUM(G192:J192,L192,P192)*12+(N192+O192))*(100+$J$12+$J$13)%+((K192+M192+Q192+R192*('B4_Allgemeine Angaben'!$L$53=1))*12),(SUM(G192:J192,L192,P192)*12+(N192+O192))*(100+$J$15+$J$13)%+((K192+M192+Q192+R192*('B4_Allgemeine Angaben'!$L$53=1))*12)),0) -> 0.00 | T192: 0.00 | V192: 0.00 | W192: 0.00 | X192: 0.00 | Y192: 0.00 | Z192: 0.00 | AA192: 0.00 | AB192: 0.00 | AC192: 0.00 | AD192: 0.00 | AE192: 0.00 | AF192: 0.00 | AG192: 0.00 | AH192: 0.00 | AI192: 0.00 | AJ192: 0.00 | AK192: 0.00 | AL192: 0.00 | AM192: 0.00 | AN192: 0.00 | AO192: 0.00 | AP192: 0.00
G193: 0.00 | S193: =IFERROR(IF(A193<>"GfB",(SUM(G193:J193,L193,P193)*12+(N193+O193))*(100+$J$12+$J$13)%+((K193+M193+Q193+R193*('B4_Allgemeine Angaben'!$L$53=1))*12),(SUM(G193:J193,L193,P193)*12+(N193+O193))*(100+$J$15+$J$13)%+((K193+M193+Q193+R193*('B4_Allgemeine Angaben'!$L$53=1))*12)),0) -> 0.00 | T193: 0.00 | V193: 0.00 | W193: 0.00 | X193: 0.00 | Y193: 0.00 | Z193: 0.00 | AA193: 0.00 | AB193: 0.00 | AC193: 0.00 | AD193: 0.00 | AE193: 0.00 | AF193: 0.00 | AG193: 0.00 | AH193: 0.00 | AI193: 0.00 | AJ193: 0.00 | AK193: 0.00 | AL193: 0.00 | AM193: 0.00 | AN193: 0.00 | AO193: 0.00 | AP193: 0.00
G194: 0.00 | S194: =IFERROR(IF(A194<>"GfB",(SUM(G194:J194,L194,P194)*12+(N194+O194))*(100+$J$12+$J$13)%+((K194+M194+Q194+R194*('B4_Allgemeine Angaben'!$L$53=1))*12),(SUM(G194:J194,L194,P194)*12+(N194+O194))*(100+$J$15+$J$13)%+((K194+M194+Q194+R194*('B4_Allgemeine Angaben'!$L$53=1))*12)),0) -> 0.00 | T194: 0.00 | V194: 0.00 | W194: 0.00 | X194: 0.00 | Y194: 0.00 | Z194: 0.00 | AA194: 0.00 | AB194: 0.00 | AC194: 0.00 | AD194: 0.00 | AE194: 0.00 | AF194: 0.00 | AG194: 0.00 | AH194: 0.00 | AI194: 0.00 | AJ194: 0.00 | AK194: 0.00 | AL194: 0.00 | AM194: 0.00 | AN194: 0.00 | AO194: 0.00 | AP194: 0.00
G195: =IFERROR(F195*C195,"") -> 0.00 | S195: =IFERROR(IF(A195<>"GfB",(SUM(G195:J195,L195,P195)*12+(N195+O195))*(100+$J$12+$J$13)%+((K195+M195+Q195+R195*('B4_Allgemeine Angaben'!$L$53=1))*12),(SUM(G195:J195,L195,P195)*12+(N195+O195))*(100+$J$15+$J$13)%+((K195+M195+Q195+R195*('B4_Allgemeine Angaben'!$L$53=1))*12)),0) -> 0.00 | T195: 0.00 | V195: =(IF(AND($B195="PFK/BFK",$C195>0,$F195>0),($G195+$H195),0)) -> 0.00 | W195: =(IF(AND($B195="PFK/BFK",$C195>0,$F195>0),$I195,0)) -> 0.00 | X195: =(IF(AND($B195="PFK/BFK",$C195>0,$F195>0),($J195+$K195),0)) -> 0.00 | Y195: =(IF(AND($B195="PFK/BFK",$C195>0,$F195>0),(($N195+$O195)/12),0)) -> 0.00 | Z195: =(IF(AND($B195="PK/BK",$C195>0,$F195>0),($G195+$H195),0)) -> 0.00 | AA195: =(IF(AND($B195="PK/BK",$C195>0,$F195>0),$I195,0)) -> 0.00 | AB195: =(IF(AND($B195="PK/BK",$C195>0,$F195>0),($J195+$K195),0)) -> 0.00 | AC195: =(IF(AND($B195="PK/BK",$C195>0,$F195>0),(($N195+$O195)/12),0)) -> 0.00 | AD195: =(IF(AND($B195="PK/BK o.",$C195>0,$F195>0),($G195+$H195),0)) -> 0.00 | AE195: =(IF(AND($B195="PK/BK o.",$C195>0,$F195>0),$I195,0)) -> 0.00 | AF195: =(IF(AND($B195="PK/BK o.",$C195>0,$F195>0),($J195+$K195),0)) -> 0.00 | AG195: =(IF(AND($B195="PK/BK o.",$C195>0,$F195>0),(($N195+$O195)/12),0)) -> 0.00 | AH195: =IF(AND($B195="PFK/BFK",$C195>0,$F195>0),$C195,0) -> 0.00 | AI195: =IF(AND($B195="PK/BK",$C195>0,$F195>0),$C195,0) -> 0.00 | AJ195: =IF(AND($B195="PK/BK o.",$C195>0,$F195>0),$C195,0) -> 0.00 | AK195: =IF(AND($B195="PFK/BFK",$C195>0,$F195>0),$S195,0) -> 0.00 | AL195: =IF(AND($B195="PK/BK",$C195>0,$F195>0),$S195,0) -> 0.00 | AM195: =IF(AND($B195="PK/BK o.",$C195>0,$F195>0),$S195,0) -> 0.00 | AN195: =IF(AND($B195="PFK/BFK",$C195>0,$F195>0),$R195,0) -> 0.00 | AO195: =IF(AND($B195="PK/BK",$C195>0,$F195>0),$R195,0) -> 0.00 | AP195: =IF(AND($B195="PK/BK o.",$C195>0,$F195>0),$R195,0) -> 0.00
G196: 0.00 | S196: =IFERROR(IF(A196<>"GfB",(SUM(G196:J196,L196,P196)*12+(N196+O196))*(100+$J$12+$J$13)%+((K196+M196+Q196+R196*('B4_Allgemeine Angaben'!$L$53=1))*12),(SUM(G196:J196,L196,P196)*12+(N196+O196))*(100+$J$15+$J$13)%+((K196+M196+Q196+R196*('B4_Allgemeine Angaben'!$L$53=1))*12)),0) -> 0.00 | T196: 0.00 | V196: 0.00 | W196: 0.00 | X196: 0.00 | Y196: 0.00 | Z196: 0.00 | AA196: 0.00 | AB196: 0.00 | AC196: 0.00 | AD196: 0.00 | AE196: 0.00 | AF196: 0.00 | AG196: 0.00 | AH196: 0.00 | AI196: 0.00 | AJ196: 0.00 | AK196: 0.00 | AL196: 0.00 | AM196: 0.00 | AN196: 0.00 | AO196: 0.00 | AP196: 0.00
G197: 0.00 | S197: =IFERROR(IF(A197<>"GfB",(SUM(G197:J197,L197,P197)*12+(N197+O197))*(100+$J$12+$J$13)%+((K197+M197+Q197+R197*('B4_Allgemeine Angaben'!$L$53=1))*12),(SUM(G197:J197,L197,P197)*12+(N197+O197))*(100+$J$15+$J$13)%+((K197+M197+Q197+R197*('B4_Allgemeine Angaben'!$L$53=1))*12)),0) -> 0.00 | T197: 0.00 | V197: 0.00 | W197: 0.00 | X197: 0.00 | Y197: 0.00 | Z197: 0.00 | AA197: 0.00 | AB197: 0.00 | AC197: 0.00 | AD197: 0.00 | AE197: 0.00 | AF197: 0.00 | AG197: 0.00 | AH197: 0.00 | AI197: 0.00 | AJ197: 0.00 | AK197: 0.00 | AL197: 0.00 | AM197: 0.00 | AN197: 0.00 | AO197: 0.00 | AP197: 0.00
G198: 0.00 | S198: =IFERROR(IF(A198<>"GfB",(SUM(G198:J198,L198,P198)*12+(N198+O198))*(100+$J$12+$J$13)%+((K198+M198+Q198+R198*('B4_Allgemeine Angaben'!$L$53=1))*12),(SUM(G198:J198,L198,P198)*12+(N198+O198))*(100+$J$15+$J$13)%+((K198+M198+Q198+R198*('B4_Allgemeine Angaben'!$L$53=1))*12)),0) -> 0.00 | T198: 0.00 | V198: 0.00 | W198: 0.00 | X198: 0.00 | Y198: 0.00 | Z198: 0.00 | AA198: 0.00 | AB198: 0.00 | AC198: 0.00 | AD198: 0.00 | AE198: 0.00 | AF198: 0.00 | AG198: 0.00 | AH198: 0.00 | AI198: 0.00 | AJ198: 0.00 | AK198: 0.00 | AL198: 0.00 | AM198: 0.00 | AN198: 0.00 | AO198: 0.00 | AP198: 0.00
G199: 0.00 | S199: =IFERROR(IF(A199<>"GfB",(SUM(G199:J199,L199,P199)*12+(N199+O199))*(100+$J$12+$J$13)%+((K199+M199+Q199+R199*('B4_Allgemeine Angaben'!$L$53=1))*12),(SUM(G199:J199,L199,P199)*12+(N199+O199))*(100+$J$15+$J$13)%+((K199+M199+Q199+R199*('B4_Allgemeine Angaben'!$L$53=1))*12)),0) -> 0.00 | T199: 0.00 | V199: 0.00 | W199: 0.00 | X199: 0.00 | Y199: 0.00 | Z199: 0.00 | AA199: 0.00 | AB199: 0.00 | AC199: 0.00 | AD199: 0.00 | AE199: 0.00 | AF199: 0.00 | AG199: 0.00 | AH199: 0.00 | AI199: 0.00 | AJ199: 0.00 | AK199: 0.00 | AL199: 0.00 | AM199: 0.00 | AN199: 0.00 | AO199: 0.00 | AP199: 0.00
G200: 0.00 | S200: =IFERROR(IF(A200<>"GfB",(SUM(G200:J200,L200,P200)*12+(N200+O200))*(100+$J$12+$J$13)%+((K200+M200+Q200+R200*('B4_Allgemeine Angaben'!$L$53=1))*12),(SUM(G200:J200,L200,P200)*12+(N200+O200))*(100+$J$15+$J$13)%+((K200+M200+Q200+R200*('B4_Allgemeine Angaben'!$L$53=1))*12)),0) -> 0.00 | T200: 0.00 | V200: 0.00 | W200: 0.00 | X200: 0.00 | Y200: 0.00 | Z200: 0.00 | AA200: 0.00 | AB200: 0.00 | AC200: 0.00 | AD200: 0.00 | AE200: 0.00 | AF200: 0.00 | AG200: 0.00 | AH200: 0.00 | AI200: 0.00 | AJ200: 0.00 | AK200: 0.00 | AL200: 0.00 | AM200: 0.00 | AN200: 0.00 | AO200: 0.00 | AP200: 0.00
G201: 0.00 | S201: =IFERROR(IF(A201<>"GfB",(SUM(G201:J201,L201,P201)*12+(N201+O201))*(100+$J$12+$J$13)%+((K201+M201+Q201+R201*('B4_Allgemeine Angaben'!$L$53=1))*12),(SUM(G201:J201,L201,P201)*12+(N201+O201))*(100+$J$15+$J$13)%+((K201+M201+Q201+R201*('B4_Allgemeine Angaben'!$L$53=1))*12)),0) -> 0.00 | T201: 0.00 | V201: 0.00 | W201: 0.00 | X201: 0.00 | Y201: 0.00 | Z201: 0.00 | AA201: 0.00 | AB201: 0.00 | AC201: 0.00 | AD201: 0.00 | AE201: 0.00 | AF201: 0.00 | AG201: 0.00 | AH201: 0.00 | AI201: 0.00 | AJ201: 0.00 | AK201: 0.00 | AL201: 0.00 | AM201: 0.00 | AN201: 0.00 | AO201: 0.00 | AP201: 0.00
... 172 more rows

Sheet B4_Gesamtkalkulation
A1: ='B4_Allgemeine Angaben'!A1:N1 -> Vereinfachtes Verfahren der Aufforderung zum Abschluss einer Pflegesatzvereinbarung gemäß § 84, 85 SGB XI
A2: Gesamtkalkulation
A3: ='B4_Allgemeine Angaben'!A3:N3 -> 
A4: ='B4_Allgemeine Angaben'!A4:N4 -> 
E5: GELBER TEIL | J5: Öffnungstage | L5: Auslastung | N5: Divisor allg | P5: Tage/Monat
C6: Gesamtplätze: | D6: =IF('B4_Allgemeine Angaben'!L47>0,'B4_Allgemeine Angaben'!L47,"") ->  | E6: WIRD AUS- | J6: =IF(B4_Kalkulation!I6>0,B4_Kalkulation!I6,"") ->  | L6: =IF(B4_Kalkulation!D6>0,B4_Kalkulation!D6,"") ->  | N6: =IFERROR(L6*J6*'B4_Allgemeine Angaben'!L47/100,"") ->  | P6: =IFERROR(ROUND(J6/12,2),"") -> 
E8: GEBLENDET | J8: § 43b: | L8: =IF('B4_Allgemeine Angaben'!D7="vst",100,IF('B4_Allgemeine Angaben'!D7="kzp",100,L6)) -> 100 % | N8: =IFERROR(B4_Kalkulation!L12*J6*L8/100,"") -> 
D10: Plätze: | E10: =SUM(H10:P10) -> 0 | F10: EEA-Divisor | H10: =B4_Kalkulation!H14 -> 0 | J10: =B4_Kalkulation!I14 -> 0 | L10: =B4_Kalkulation!J14 -> 0 | N10: =B4_Kalkulation!K14 -> 0 | P10: =B4_Kalkulation!L14 -> 0
D11: Divisor: | E11: =SUM(H11:P11) -> 0.00 | F11: =J11+L11+N11+P11 ->  | H11: =IFERROR(H10*$J$6*$L$6/100,"") ->  | J11: =IFERROR(J10*$J$6*$L$6/100,"") ->  | L11: =IFERROR(L10*$J$6*$L$6/100,"") ->  | N11: =IFERROR(N10*$J$6*$L$6/100,"") ->  | P11: =IFERROR(P10*$J$6*$L$6/100,"") -> 
D12: Leistungsbetrag § 43 SGB XI (nur vollstationär): | J12: 770.00 € | L12: 1,262.00 € | N12: 1,775.00 € | P12: 2,005.00 €
G14: Aufwendungen für Leistungen im Pflegegrad 1 | H14: Aufwendungen für Leistungen im Pflegegrad 1 | I14: Aufwendungen für Leistungen im Pflegegrad 2 | J14: Aufwendungen für Leistungen im Pflegegrad 2 | K14: Aufwendungen für Leistungen im Pflegegrad 3 | L14: Aufwendungen für Leistungen im Pflegegrad 3 | M14: Aufwendungen für Leistungen im Pflegegrad 4 | N14: Aufwendungen für Leistungen im Pflegegrad 4 | O14: Aufwendungen für Leistungen im Pflegegrad 5 | P14: Aufwendungen für Leistungen im Pflegegrad 5 | Q14: Aufwendungen für die Unterkunft | R14: Aufwendungen für die Unterkunft | S14: Aufwendungen für die Verpflegung | T14: Aufwendungen für die Verpflegung | U14: Aufwendungen für § 43b | V14: Aufwendungen für § 43b
D15: Gesamtaufwendungen | E15: Plausi Ges. | F15: ANT am PS | G15: Gesamt in € | H15: €/Tag | I15: Gesamt in € | J15: €//Tag | K15: Gesamt in € | L15: €/Tag | M15: Gesamt in € | N15: €/Tag | O15: Gesamt in € | P15: €/Tag | Q15: Gesamt in € | R15: €/Tag | S15: Gesamt in € | T15: €/Tag | U15: Gesamt in € | V15: €/Tag
B16: 1. | C16: Personalaufwendungen (ohne 1.3.) | D16: =IF(SUM(D17:D18,D20:D24)=0,"",SUM(D17:D18,D20:D24)) ->  | E16: =G16+I16+K16+M16+O16+Q16 ->  | G16: =SUM(G17:G24) ->  | H16: =SUM(H17:H24) ->  | I16: =SUM(I17:I24) ->  | Q16: =SUM(Q20:Q24) -> 0.00 | R16: =SUM(R20:R24) -> 
B17: 1.1. | C17: Pflege inklusive QM | D17: =IF((B4_Kalkulation!L26*B4_Kalkulation!J26)=0,0,(B4_Kalkulation!L26*B4_Kalkulation!J26)) -> 0.00 | F17: 1.00 | G17: =IF('B4_Allgemeine Angaben'!D7<>"vst",$D17*$F17/B4_Kalkulation!J26*B4_Kalkulation!H14/B4_Kalkulation!I20,B4_Gesamtkalkulation!$D$17*$F17*KAT!E69) ->  | H17: =G17/$H$11 ->  | I17: =IF('B4_Allgemeine Angaben'!D7<>"vst",$D17*$F17/B4_Kalkulation!J26*B4_Kalkulation!I14/B4_Kalkulation!I21,B4_Gesamtkalkulation!$D$17*$F17*KAT!E70) ->  | J17: =I17/$J$11 ->  | K17: =IF('B4_Allgemeine Angaben'!D7<>"vst",$D17*$F17/B4_Kalkulation!J26*B4_Kalkulation!J14/B4_Kalkulation!I22,B4_Gesamtkalkulation!D17*$F17*KAT!E71) ->  | L17: =K17/$L$11 ->  | M17: =IF('B4_Allgemeine Angaben'!D7<>"vst",$D17*$F17/B4_Kalkulation!J26*B4_Kalkulation!K14/B4_Kalkulation!I23,B4_Gesamtkalkulation!$D$17*$F17*KAT!E72) ->  | N17: =M17/$N$11 ->  | O17: =IF('B4_Allgemeine Angaben'!D7<>"vst",$D17*$F17/B4_Kalkulation!J26*B4_Kalkulation!L14/B4_Kalkulation!I24,B4_Gesamtkalkulation!$D$17*$F17*KAT!E73) ->  | P17: =O17/$P$11 -> 
B18: 1.2. | C18: Betreuung | D18: =IF((B4_Kalkulation!L27*B4_Kalkulation!J27)=0,0,(B4_Kalkulation!L27*B4_Kalkulation!J27)) -> 0.00 | E18: =G18+I18+K18+M18+O18+Q18 ->  | F18: 1.00 | G18: =D18*F18/$N$6*$H$11 ->  | H18: =G18/$H$11 ->  | I18: =D18*F18/$N$6*$J$11 ->  | J18: =I18/$J$11 ->  | K18: =D18*F18/$N$6*$L$11 ->  | M18: =D18*F18/$N$6*$N$11 ->  | O18: =D18*F18/$N$6*$P$11 -> 
B19: 1.3. | C19: zusätzliche Betreuung und Aktivierung | D19: =IF((B4_Kalkulation!L33*B4_Kalkulation!J33)=0,0,(B4_Kalkulation!L33*B4_Kalkulation!J33)) -> 0.00 | U19: =D19 -> 0.00 | V19: =U19/$N$8 -> 
B20: 1.4. | C20: Leitung/ Verwaltung | D20: =IF((B4_Kalkulation!L28*B4_Kalkulation!J28)=0,0,(B4_Kalkulation!L28*B4_Kalkulation!J28)) -> 0.00 | E20: =G20+I20+K20+M20+O20+Q20 ->  | F20: 0.50 | G20: =D20*F20/$N$6*$H$11 ->  | H20: =G20/$H$11 ->  | I20: =D20*F20/$N$6*$J$11 ->  | J20: =I20/$J$11 ->  | K20: =D20*F20/$N$6*$L$11 ->  | L20: =K20/$L$11 ->  | M20: =D20*F20/$N$6*$N$11 ->  | O20: =D20*F20/$N$6*$P$11 ->  | P20: =O20/$P$11 ->  | Q20: =D20*F20 -> 0.00 | R20: =Q20/$N$6 -> 
B21: 1.5. | C21: Hauswirtschaft | D21: =IF((B4_Kalkulation!L29*B4_Kalkulation!J29)=0,0,(B4_Kalkulation!L29*B4_Kalkulation!J29)) -> 0.00 | E21: =G21+I21+K21+M21+O21+Q21 ->  | F21: 0.50 | G21: =D21*F21/$N$6*$H$11 ->  | H21: =G21/$H$11 ->  | I21: =D21*F21/$N$6*$J$11 ->  | J21: =I21/$J$11 ->  | K21: =D21*F21/$N$6*$L$11 ->  | L21: =K21/$L$11 ->  | M21: =D21*F21/$N$6*$N$11 ->  | O21: =D21*F21/$N$6*$P$11 ->  | Q21: =D21*F21 -> 0.00 | R21: =Q21/$N$6 -> 
B22: 1.6. | C22: Küche | D22: =IF((B4_Kalkulation!L30*B4_Kalkulation!J30)=0,0,(B4_Kalkulation!L30*B4_Kalkulation!J30)) -> 0.00 | E22: =G22+I22+K22+M22+O22+Q22 ->  | F22: 0.50 | G22: =D22*F22/$N$6*$H$11 ->  | H22: =G22/$H$11 ->  | I22: =D22*F22/$N$6*$J$11 ->  | J22: =I22/$J$11 ->  | K22: =D22*F22/$N$6*$L$11 ->  | M22: =D22*F22/$N$6*$N$11 ->  | O22: =D22*F22/$N$6*$P$11 ->  | Q22: =D22*F22 -> 0.00
B23: 1.7. | C23: Haustechnik | D23: =IF((B4_Kalkulation!L31*B4_Kalkulation!J31)=0,0,(B4_Kalkulation!L31*B4_Kalkulation!J31)) -> 0.00 | E23: =G23+I23+K23+M23+O23+Q23 ->  | F23: 0.50 | G23: =D23*F23/$N$6*$H$11 ->  | H23: =G23/$H$11 ->  | I23: =D23*F23/$N$6*$J$11 ->  | J23: =I23/$J$11 ->  | K23: =D23*F23/$N$6*$L$11 ->  | M23: =D23*F23/$N$6*$N$11 ->  | O23: =D23*F23/$N$6*$P$11 ->  | Q23: =D23*F23 -> 0.00
B24: 1.8. | C24: Freiwillige Dienste, FSJ | D24: =B4_Kalkulation!L32*B4_Kalkulation!J32 -> 0.00 | E24: =G24+I24+K24+M24+O24+Q24 ->  | F24: 0.50 | G24: =D24*F24/$N$6*$H$11 ->  | H24: =G24/$H$11 ->  | I24: =D24*F24/$N$6*$J$11 ->  | J24: =I24/$J$11 ->  | K24: =D24*F24/$N$6*$L$11 ->  | M24: =D24*F24/$N$6*$N$11 ->  | O24: =D24*F24/$N$6*$P$11 ->  | Q24: =D24*F24 -> 0.00
B26: 2. | C26: Sachaufwendungen | D26: =SUM(D27:D36) -> 0.00 | E26: =G26+I26+K26+M26+O26+Q26+S26 ->  | G26: =SUM(G28:G36) ->  | M26: =SUM(M28:M36) ->  | Q26: =SUM(Q29:Q36) -> 0.00 | R26: =SUM(R29:R36) ->  | S26: =SUM(S27:S36) -> 0.00 | T26: =SUM(T27:T36) -> 
B27: 2.1 | C27: Lebensmittel | D27: =B4_Kalkulation!L36 -> 0.00 | S27: =D27 -> 0.00 | T27: =S27/$N$6 -> 
B28: 2.2 | C28: Pflegerischer Bedarf | D28: =B4_Kalkulation!L37 -> 0.00 | E28: =G28+I28+K28+M28+O28+Q28+S28 ->  | F28: 1.00 | G28: =D28*F28/$N$6*$H$11 ->  | H28: =G28/$H$11 ->  | I28: =D28*F28/$N$6*$J$11 ->  | J28: =I28/$J$11 ->  | K28: =D28*F28/$N$6*$L$11 ->  | L28: =K28/$L$11 ->  | M28: =D28*F28/$N$6*$N$11 ->  | N28: =M28/$N$11 ->  | O28: =D28*F28/$N$6*$P$11 ->  | P28: =O28/$P$11 -> 
B29: 2.3 | C29: Wasser/ Energie/ Brennstoffe | D29: =B4_Kalkulation!L38 -> 0.00 | E29: =G29+I29+K29+M29+O29+Q29+S29 ->  | F29: 0.50 | G29: =D29*F29/$N$6*$H$11 ->  | I29: =D29*F29/$N$6*$J$11 ->  | K29: =D29*F29/$N$6*$L$11 ->  | M29: =D29*F29/$N$6*$N$11 ->  | O29: =D29*F29/$N$6*$P$11 ->  | Q29: =D29*F29 -> 0.00 | R29: =Q29/$N$6 -> 
B30: 2.4 | C30: Verwaltungsbedarf | D30: =B4_Kalkulation!L39 -> 0.00 | F30: 0.50 | Q30: =D30*F30 -> 0.00 | R30: =Q30/$N$6 -> 
B31: 2.5 | C31: Zentrale Verwaltungsdienste | D31: =B4_Kalkulation!L40 -> 0.00 | F31: 0.50 | Q31: =D31*F31 -> 0.00
B32: 2.6 | C32: Betreuungsaufwand | D32: =B4_Kalkulation!L41 -> 0.00 | F32: 1.00 | P32: =O32/$P$11 -> 
B33: 2.7 | C33: Wirtschaftsbedarf | D33: =B4_Kalkulation!L42 -> 0.00 | F33: 0.50 | Q33: =D33*F33 -> 0.00
B34: 2.8 | C34: Steuern/ Abgaben/ Versicherungen | D34: =B4_Kalkulation!L43 -> 0.00 | F34: 0.50 | Q34: =D34*F34 -> 0.00
B35: 2.9 | C35: Wartung (keine Instandhaltung) | D35: =B4_Kalkulation!L44 -> 0.00 | F35: 0.50 | Q35: =D35*F35 -> 0.00
B36: 2.10 | C36: sonstige Aufwendungen | D36: =B4_Kalkulation!L45 -> 0.00 | E36: =G36+I36+K36+M36+O36+Q36+S36 ->  | F36: 0.50 | G36: =D36*F36/$N$6*$H$11 ->  | H36: =G36/$H$11 ->  | Q36: =D36*F36 -> 0.00
B38: 3. | C38: Fremdleistungen / Trägerleistungen | D38: =SUM(D39:D45) -> 0.00 | E38: =SUM(E39:E45) ->  | M38: =SUM(M39:M45) ->  | Q38: 0.00 | R38: =SUM(R39:R45) -> 
B39: =B4_Kalkulation!H49 -> 3.1. | C39: Küche (ohne Pkt. 2.1) | D39: =B4_Kalkulation!L49 -> 0.00 | E39: =G39+I39+K39+M39+O39+Q39 ->  | F39: 0.50 | G39: =D39*F39/$N$6*$H$11 ->  | H39: =G39/$H$11 ->  | I39: =D39*F39/$N$6*$J$11 ->  | J39: =I39/$J$11 ->  | K39: =D39*F39/$N$6*$L$11 ->  | L39: =K39/$L$11 ->  | M39: =D39*F39/$N$6*$N$11 ->  | N39: =M39/$N$11 ->  | O39: =D39*F39/$N$6*$P$11 ->  | P39: =O39/$P$11 ->  | Q39: =D39*F39 -> 0.00 | R39: =Q39/$N$6 -> 
B40: =B4_Kalkulation!H50 -> 3.2. | C40: =B4_Kalkulation!I50 -> Wäscherei | D40: =B4_Kalkulation!L50 -> 0.00 | F40: 0.50 | G40: =D40*F40/$N$6*$H$11 ->  | I40: =D40*F40/$N$6*$J$11 ->  | K40: =D40*F40/$N$6*$L$11 ->  | M40: =D40*F40/$N$6*$N$11 ->  | O40: =D40*F40/$N$6*$P$11 ->  | Q40: =D40*F40 -> 0.00 | R40: =Q40/$N$6 -> 
B41: =B4_Kalkulation!H51 -> 3.3. | C41: =B4_Kalkulation!I51 -> Wäschekennzeichnung | D41: =B4_Kalkulation!L51 -> 0.00 | E41: =G41+I41+K41+M41+O41+Q41 ->  | F41: 0.50 | Q41: 0.00
B42: =B4_Kalkulation!H52 -> 3.4. | C42: =B4_Kalkulation!I52 -> Reinigung | D42: =B4_Kalkulation!L52 -> 0.00 | F42: 0.50 | Q42: 0.00
B43: =B4_Kalkulation!H53 -> 3.5. | C43: =B4_Kalkulation!I53 -> Verwaltung | D43: =B4_Kalkulation!L53 -> 0.00 | F43: 0.50 | Q43: 0.00
B44: =B4_Kalkulation!H54 -> 3.6. | C44: =B4_Kalkulation!I54 -> Haustechnik | D44: =B4_Kalkulation!L54 -> 0.00 | F44: 0.50 | Q44: 0.00
B45: =B4_Kalkulation!H55 -> 3.7. | C45: =B4_Kalkulation!I55 -> sonstiges | D45: =B4_Kalkulation!L55 -> 0.00 | F45: 0.50 | Q45: 0.00
C47: =IF('B4_Allgemeine Angaben'!D7<>"vst","errechnete Aufwendungen:","errechnete Aufwendungen nach Pflegegrad 2 bis 5:") -> errechnete Aufwendungen: | D47: =I47+K47+M47+O47 -> 0.00 | E47: =D38+D26+D16-Q16-Q26-Q38-S26-G47 ->  | G47: =H47*H11 ->  | H47: =IF(B4_Kalkulation!H14=0,ROUND(B4_Gesamtkalkulation!J51*0.78,2),ROUND((B4_Gesamtkalkulation!H16+B4_Gesamtkalkulation!H26+B4_Gesamtkalkulation!H38),2)) -> 0.00 | I47: =IFERROR(J47*J11,0) -> 0.00 | J47: =IF(ISERROR(J38+J26+J16),"",(J38+J26+J16)) ->  | K47: =IFERROR(L47*L11,0) -> 0.00 | L47: =IF(ISERROR(L38+L26+L16),"",((L38+L26+L16))) ->  | M47: =IFERROR(N47*N11,0) -> 0.00 | N47: =IF(ISERROR(N38+N26+N16),"",(N38+N26+N16)) ->  | O47: =IFERROR(P47*P11,0) -> 0.00 | P47: =IF(ISERROR(P38+P26+P16),"",(P38+P26+P16)) -> 
C48: Umsatz Leistungsbeträge § 43 SGB XI: | D48: =IF('B4_Allgemeine Angaben'!D7="vst",(((J12*J10)+(L12*L10)+(N12*N10)+(P12*P10))*12)*$L$6/100,"") ->  | E48: =IF('B4_Allgemeine Angaben'!D7="vst",I48+K48+M48+O48,"") ->  | I48: =IF('B4_Allgemeine Angaben'!D7="vst",J12/($P$6)*J11,"") ->  | J48: =IF('B4_Allgemeine Angaben'!D7="vst",I48/J11,"") ->  | K48: =IF('B4_Allgemeine Angaben'!D7="vst",L12/($P$6)*L11,"") ->  | L48: =IF('B4_Allgemeine Angaben'!D7="vst",K48/L11,"") ->  | M48: =IF('B4_Allgemeine Angaben'!D7="vst",N12/($P$6)*N11,"") ->  | N48: =IF('B4_Allgemeine Angaben'!D7="vst",M48/N11,"") ->  | O48: =IF('B4_Allgemeine Angaben'!D7="vst",P12/($P$6)*P11,"") ->  | P48: =IF('B4_Allgemeine Angaben'!D7="vst",O48/P11,"") -> 
C49: Budget Eigenanteil nach Pflegegraden: | D49: =IF('B4_Allgemeine Angaben'!D7="vst",D47-D48,"") ->  | E49: =IF('B4_Allgemeine Angaben'!D7="vst",I49+K49+M49+O49,"") ->  | I49: =IF('B4_Allgemeine Angaben'!D7="vst",(I47-I48),"") ->  | J49: =IF('B4_Allgemeine Angaben'!$D$7="vst",ROUND($D$49/eeadivisor,2),"") ->  | K49: =IF('B4_Allgemeine Angaben'!D7="vst",(K47-K48),"") ->  | L49: =IF('B4_Allgemeine Angaben'!$D$7="vst",ROUND($D$49/eeadivisor,2),"") ->  | M49: =IF('B4_Allgemeine Angaben'!D7="vst",(M47-M48),"") ->  | N49: =IF('B4_Allgemeine Angaben'!$D$7="vst",ROUND($D$49/eeadivisor,2),"") ->  | O49: =IF('B4_Allgemeine Angaben'!D7="vst",(O47-O48),"") ->  | P49: =IF('B4_Allgemeine Angaben'!$D$7="vst",ROUND($D$49/eeadivisor,2),"") ->  | R49: (ohne Ausbildungsvergütung nach § 82a SGB XI)
D51: errechnete Pflegesätze (Tag je Platz): | G51: Pflegegrad 1: | H51: =IF(ISERROR(H47),"",H47) -> 0.00 € | I51: Pflegegrad 2: | J51: =IF('B4_Allgemeine Angaben'!D7="vst",ROUND(J12/$P$6+J49,2),IF('B4_Allgemeine Angaben'!D7<>"vst",KAT!H32)) -> 0.00 € | K51: Pflegegrad 3: | L51: =IF('B4_Allgemeine Angaben'!D7="vst",ROUND(L12/$P$6+L49,2),IF('B4_Allgemeine Angaben'!D7<>"vst",KAT!H33)) -> 0.00 € | M51: Pflegegrad 4: | N51: =IF('B4_Allgemeine Angaben'!D7="vst",ROUND(N12/$P$6+N49,2),IF('B4_Allgemeine Angaben'!D7<>"vst",KAT!H34)) -> 0.00 € | O51: Pflegegrad 5: | P51: =IF('B4_Allgemeine Angaben'!D7="vst",ROUND(P12/$P$6+P49,2),IF('B4_Allgemeine Angaben'!D7<>"vst",KAT!H35)) -> 0.00 € | Q51: Unterkunft: | R51: =ROUND(R38+R26+R16,2) ->  | S51: Verpflegung: | T51: =ROUND(T26,2) ->  | U51: § 43b SGB XI: | V51: =IF('B4_Allgemeine Angaben'!D7="vst",V19-0.03,V19) -> 
B53: =IF('B4_Allgemeine Angaben'!L48>0,"errechnete Pflegesätze (Tag je Platz) für angebundene / integrierte KZP:","") ->  | G53: =IF('B4_Allgemeine Angaben'!$L$48>0,B4_Gesamtkalkulation!G51,"") ->  | H53: =IFERROR(IF(B4_Kalkulation!H14>0,B4_Gesamtkalkulation!H47*0.96/0.8,J53*0.78),0) -> 0.00 € | I53: =IF('B4_Allgemeine Angaben'!$L$48>0,B4_Gesamtkalkulation!I51,"") ->  | J53: =IFERROR(IF('B4_Allgemeine Angaben'!$L$48>0,B4_Gesamtkalkulation!J47*0.96/0.8,""),0) ->  | K53: =IF('B4_Allgemeine Angaben'!$L$48>0,B4_Gesamtkalkulation!K51,"") ->  | L53: =IFERROR(IF('B4_Allgemeine Angaben'!$L$48>0,B4_Gesamtkalkulation!L47*0.96/0.8,""),0) ->  | M53: =IF('B4_Allgemeine Angaben'!$L$48>0,B4_Gesamtkalkulation!M51,"") ->  | N53: =IFERROR(IF('B4_Allgemeine Angaben'!$L$48>0,B4_Gesamtkalkulation!N47*0.96/0.8,""),0) ->  | O53: =IF('B4_Allgemeine Angaben'!$L$48>0,B4_Gesamtkalkulation!O51,"") ->  | P53: =IFERROR(IF('B4_Allgemeine Angaben'!$L$48>0,B4_Gesamtkalkulation!P47*0.96/0.8,""),0) ->  | Q53: =IF('B4_Allgemeine Angaben'!$L$48>0,B4_Gesamtkalkulation!Q51,"") ->  | R53: =IFERROR(IF('B4_Allgemeine Angaben'!$L$48>0,B4_Gesamtkalkulation!R51*0.96/0.8,""),0) ->  | S53: =IF('B4_Allgemeine Angaben'!$L$48>0,B4_Gesamtkalkulation!S51,"") ->  | T53: =IFERROR(IF('B4_Allgemeine Angaben'!$L$48>0,B4_Gesamtkalkulation!T51*0.96/0.8,""),0) ->  | V53: =IFERROR(IF('B4_Allgemeine Angaben'!$L$48>0,B4_Gesamtkalkulation!V51+0.03,""),0) -> 
H56: gehe weiter zu Bewohnervertretung
H58: Zelle H53 neue Formel: =WENN(Belegung!E26>0;Gesamtkalkulation!H47*0,96/0,9;J53*0,78) STATT BISHER: =WENN('Allgemeine Angaben'!$L$45>0;Gesamtkalkulation!L47*0,96/0,9;"")

Sheet Bewohnervertretung
A1: Stellungnahme der Bewohnervertretung gem. § 85 (3) SGB XI
A2: (gilt nur für vollstationäre Pflegeeinrichtungen)
A3: ='B4_Allgemeine Angaben'!A3:N3 -> 
A4: ='B4_Allgemeine Angaben'!A4:N4 -> 
B6: Bewohnervertretung | L6: Bewohnerfürsprecher *
B8: * Im Sinne der besseren Lesbarkeit wurde stellvertretend für beide Geschlechtsformen durchgehend nur die männliche Form verwendet.
B10: a) | C10: Schriftliche Stellungnahme liegt vor
F12: Ja
F13: weitere Angaben unter c) oder als Anlage erforderlich
F15: Nein
F16: weitere Angaben unter b) erforderlich
B18: b) | C18: Begründung für Nichtvorlage der schriftlichen Stellungnahme
F20: Gelegenheit zur Stellungnahme wurde eingeräumt,
F21: Bewohnervertretung oder Bewohnerfürsprecher haben diese nicht wahrgenommen
F24: Bewohnervertretung oder Bewohnerfürsprecher nicht vorhanden,
F25: (schriftliche Mitteilung des Trägers der Einrichtung an die zuständige Behörde beifügen)
B29: c) | C29: Einbeziehung der Bewohnervertretung / des Bewohnerfürsprechers:
B31: Der vorliegende Antrag auf Abschluss einer neuen Pflegesatzvereinbarung, die zu einer Erhöhung der
B32: Entgelte für Pflege, Unterkunft, Verpflegung und des einrichtungseinheitlichen Eigenanteils in vollstationären
B33: Einrichtungen nach § 43 führen kann, wurde uns vom Einrichtungsträger vorgelegt und erläutert. Die dem
B34: Antrag zugrunde liegenden Einzelpositionen, der Umlagemaßstab sowie die Antragsbegründung wurden
B35: ausführlich dargestellt und auf die Möglichkeit an der Pflegesatzverhandlung teilzunehmen hingewiesen.
B37: Stellungnahme der Bewohnervertretung / des Bewohnerfürsprechers:
B63: Ort, Datum | K63: Unterschrift des Vorsitzenden der Bewohnervertretung
K64: oder des Bewohnerfürsprechers

Sheet B4_Ergebnis
A1: ='B4_Allgemeine Angaben'!A1:N1 -> Vereinfachtes Verfahren der Aufforderung zum Abschluss einer Pflegesatzvereinbarung gemäß § 84, 85 SGB XI
A2: ERGEBNIS
B3: Entlohnung nach: | C3: unmittelbare Bindung Tarif/AVR | E3: =IF(C3="Tarif/ AVR maßgebend","Tarif:","") ->  | F3: =B4_Personalkostenübersicht!G9 -> 0
B5: Pflegeeinrichtung | F5: Einr.-Art: | G5: =IF('B4_Allgemeine Angaben'!D6:D6>0,'B4_Allgemeine Angaben'!D6:D6,"") -> Kurzzeitpflege
B6: =IF('B4_Allgemeine Angaben'!D12:D12>0,'B4_Allgemeine Angaben'!D12:D12,"") ->  | F6: Telefon: | G6: =IF('B4_Allgemeine Angaben'!D18:D18>0,'B4_Allgemeine Angaben'!D18:D18,"") -> 
B7: =IF('B4_Allgemeine Angaben'!D14:D14>0,'B4_Allgemeine Angaben'!D14:D14,"") ->  | F7: Fax: | G7: =IF('B4_Allgemeine Angaben'!J18:J18>0,'B4_Allgemeine Angaben'!J20:J20,"") -> 
B8: =IF('B4_Allgemeine Angaben'!D16:D16>0,'B4_Allgemeine Angaben'!D16:D16,"") ->  | F8: E-Mail: | G8: =IF('B4_Allgemeine Angaben'!D20:D20>0,'B4_Allgemeine Angaben'!D20:D20,"") -> 
B9: ='B4_Allgemeine Angaben'!K6 -> Institutionskennzeichen (IK): | C9: ='B4_Allgemeine Angaben'!L6:L6 -> 0 | F9: Institutionskennzeichen angebundene Kurzzeitpflege: | I9: ='B4_Allgemeine Angaben'!L7:L7 -> 0
B10: Trägerdaten
B11: =IF('B4_Allgemeine Angaben'!D26:D26>0,'B4_Allgemeine Angaben'!D26:D26,"") ->  | F11: Telefon: | G11: =IF('B4_Allgemeine Angaben'!D32:D32>0,'B4_Allgemeine Angaben'!D32:D32,"") -> 
B12: =IF('B4_Allgemeine Angaben'!D28:D28>0,'B4_Allgemeine Angaben'!D28:D28,"") ->  | F12: Fax: | G12: =IF('B4_Allgemeine Angaben'!J32:J32>0,'B4_Allgemeine Angaben'!J32:J32,"") -> 
B13: =IF('B4_Allgemeine Angaben'!D30:D30>0,'B4_Allgemeine Angaben'!D30:D30,"") ->  | F13: E-Mail: | G13: =IF('B4_Allgemeine Angaben'!D34:D34>0,'B4_Allgemeine Angaben'!D34:D34,"") -> 
B15: Vereinbarungszeitraum prospektiv: | E15: von: | F15: =IF('B4_Allgemeine Angaben'!H52>0,'B4_Allgemeine Angaben'!H52,"") ->  | G15: bis: | H15: =IF('B4_Allgemeine Angaben'!K52>0,'B4_Allgemeine Angaben'!K52,"") -> 
B17: Belegung je Pflegegrad | C17: I | D17: II | E17: III | F17: IV | G17: V
B18: Einrichtung: | C18: =B4_Kalkulation!H14 -> 0 | D18: =B4_Kalkulation!I14 -> 0 | E18: =B4_Kalkulation!J14 -> 0 | F18: =B4_Kalkulation!K14 -> 0 | G18: =B4_Kalkulation!L14 -> 0
B19: angebundene / integrierte KZP: | C19: =B4_Kalkulation!H17 -> 0 | D19: =B4_Kalkulation!I17 -> 0 | E19: =B4_Kalkulation!J17 -> 0 | F19: =B4_Kalkulation!K17 -> 0 | G19: =B4_Kalkulation!L17 -> 0
B21: Personalrelationen Pflege | J21: Personalmengen nach § 113c SGB XI
B22: Pflegegrad | C22: I | D22: II | E22: III | F22: IV | G22: V | H22: Fachkraftquote | J22: PFK/BFK | K22: PK/BK | L22: PK/BK o.
B23: Einrichtung: | C23: =B4_Kalkulation!I20 -> 1 : 0.00 | D23: =B4_Kalkulation!I21 -> 1 : 0.00 | E23: =B4_Kalkulation!I22 -> 1 : 0.00 | F23: =B4_Kalkulation!I23 -> 1 : 0.00 | G23: =B4_Kalkulation!I24 -> 1 : 0.00 | H23: =B4_Kalkulation!I26 -> 0.00% | J23: =B4_Personalkostenübersicht!J372 -> 0.000 | K23: =B4_Personalkostenübersicht!K372 -> 0.000 | L23: =B4_Personalkostenübersicht!L372 -> 0.000
B24: angebundene / integrierte KZP: | C24: =B4_Kalkulation!O20 -> 1 : 0.00 | D24: =B4_Kalkulation!O21 -> 1 : 0.00 | E24: =B4_Kalkulation!O22 -> 1 : 0.00 | F24: =B4_Kalkulation!O23 -> 1 : 0.00 | G24: =B4_Kalkulation!O24 -> 1 : 0.00 | H24: =B4_Kalkulation!O26 -> 0.00%
B26: Personalrelationen außerhalb Pflege | C26: Betreuung | D26: Leitung/Ver-waltung | E26: Hauswirtschaft | F26: Küche | G26: Haustechnik | H26: zusätzliche Betreuung § 43b SGB XI | I26: FSJ/BFD Anzahl Stellen
B27: Einrichtung: | C27: =B4_Kalkulation!I27 -> 1 : 0.00 | D27: =B4_Kalkulation!I28 -> 1 : 0.00 | E27: =B4_Kalkulation!I29 -> 1 : 0.00 | F27: =B4_Kalkulation!I30 -> 1 : 0.00 | G27: =B4_Kalkulation!I31 -> 1 : 0.00 | H27: 1 : 20.00 | I27: =B4_Kalkulation!J32 -> 0 Stelle/n
B28: angebundene / integrierte KZP: | C28: =B4_Kalkulation!O27 -> 1 : 0.00 | D28: =B4_Kalkulation!O28 -> 1 : 0.00 | E28: =B4_Kalkulation!O29 -> 1 : 0.00 | F28: =B4_Kalkulation!O30 -> 1 : 0.00 | G28: =B4_Kalkulation!O31 -> 1 : 0.00 | H28: 1 : 20.00
B30: Personalaufwendungen
B31: Pflege | C31: Betreuung | D31: Leitung/Ver-waltung | E31: Hauswirtschaft | F31: Küche | G31: Haustechnik | H31: zusätzliche Betreuung § 43b SGB XI | I31: FSJ/BFD Anzahl Stellen
B32: =B4_Kalkulation!L26 -> 0.00 €/VK | C32: =B4_Kalkulation!L27 -> 0.00 €/VK | D32: =B4_Kalkulation!L28 -> 0.00 €/VK | E32: =B4_Kalkulation!L29 -> 0.00 €/VK | F32: =B4_Kalkulation!L30 -> 0.00 €/VK | G32: =B4_Kalkulation!L31 -> 0.00 €/VK | H32: =B4_Kalkulation!L33 -> 0.00 €/VK | I32: =B4_Kalkulation!L32 -> 0.00 €/Stelle
B33: Sachaufwendungen
B34: Lebensmittel | C34: pflegerischer Sachbedarf | D34: Wasser, Energie, Brennstoffe | E34: Verwaltungs-bedarf | F34: Zentrale Verwaltungs-dienste | G34: Betreuungsauf-wand | H34: Wirtschafts-bedarf | I34: Steuern/Ab-gaben/Ver-sicherungen | J34: Wartung (keine Instandhaltung) | K34: sonstige Aufwendungen | L34: Gesamtsumme:
B35: =B4_Kalkulation!L36 -> 0 | C35: =B4_Kalkulation!L37 -> 0 | D35: =B4_Kalkulation!L38 -> 0 | E35: =B4_Kalkulation!L39 -> 0 | F35: =B4_Kalkulation!L40 -> 0 | G35: =B4_Kalkulation!L41 -> 0 | H35: =B4_Kalkulation!L42 -> 0 | I35: =B4_Kalkulation!L43 -> 0 | J35: =B4_Kalkulation!L44 -> 0 | K35: =B4_Kalkulation!L45 -> 0 | L35: =B4_Kalkulation!L46 -> 0
B36: Fremdleistungen
B37: Küche | C37: Wäscherei | D37: Wäschekenn-zeichnung | E37: Reinigung | F37: Verwaltung | G37: Haustechnik | H37: sonstiges | I37: Gesamtsumme:
B38: =B4_Kalkulation!L49 -> 0 | C38: =B4_Kalkulation!L50 -> 0 | D38: =B4_Kalkulation!L51 -> 0 | E38: =B4_Kalkulation!L52 -> 0 | F38: =B4_Kalkulation!L53 -> 0 | G38: =B4_Kalkulation!L54 -> 0 | H38: =B4_Kalkulation!L55 -> 0 | I38: =B4_Kalkulation!L56 -> 0
B40: Pflegesätze | I40: Vergütungszuschläge für
B41: Pflegegrad | C41: I | D41: II | E41: III | F41: IV | G41: V | H41: Eigenanteil | I41: Unterkunft | J41: Verpflegung | K41: 43 b SGB XI | L41: Fahrtkosten
B42: Einrichtung | C42: =B4_Kalkulation!B60 -> 0 | D42: =B4_Kalkulation!C60 -> 0 | E42: =B4_Kalkulation!D60 -> 0 | F42: =B4_Kalkulation!E60 -> 0 | G42: =B4_Kalkulation!F60 -> 0 | H42: =B4_Kalkulation!H60 ->  | I42: =B4_Kalkulation!I60 -> 0 | J42: =B4_Kalkulation!J60 -> 0 | K42: =B4_Kalkulation!K60 -> 0 | L42: =B4_Kalkulation!L60 -> 0
B43: angebundene / integrierte KZP: | C43: =B4_Kalkulation!B64 -> 0 | D43: =B4_Kalkulation!C64 ->  | E43: =B4_Kalkulation!D64 ->  | F43: =B4_Kalkulation!E64 ->  | G43: =B4_Kalkulation!F64 ->  | I43: =B4_Kalkulation!I64 ->  | J43: =B4_Kalkulation!J64 ->  | K43: =B4_Kalkulation!K64 -> 
B45: Die Richtigkeit der Angaben wird bestätigt:
B47: Mit Berücksichtigung der Inflationsausgleichsprämie ist für die nächste Vergütungsverhandlung die Nutzung eines pauschal vereinfachten Verhandlungsverfahrens grundsätzlich nicht möglich.
B48: Die Auszahlung der Inflationsausgleichsprämie an die Arbeitnehmer erfolgt bis zum 31.12.2024.
B51: handelnd für alle Kostenträger (Datum, Unterschrift)

Sheet Adressverzeichnis
A1: Adressverzeichnis der Parteien der Pflegesatzvereinbarung gem. § 85 Abs. 2 SGB XI sowie von Vergütungen nach § 75 SGB XII
A5: AOK PLUS - Die Gesundheitskasse für Sachsen und Thüringen
A6: Bereich Pflegepartner
A7: Fachbereich Vertragsmanagement Pflege / HKP
A8: Team Verhandlung Pflege / HKP
A9: Müllerstraße 41 | E9: pflegesatzverhandlungen_sachsen@plus.aok.de
A10: 09113 Chemnitz
A12: IKK classic
A13: Postfach 10 02 51
A14: 01072 Dresden
A16: Knappschaft
A17: Regionaldirektion Chemnitz
A18: Jagdschänkenstraße 50
A19: 09117 Chemnitz
A21: Kommunaler Sozialverband Sachsen | G21: vereinbarungen-pflege@ksv-sachsen.de
A22: Humboldtstraße 18
A23: 04105 Leipzig
A25: Arbeitsgemeinschaft Betriebskrankenkassen
A27: BKK-Landesverband Mitte
A28: Landesrepräsentanz Sachsen
A29: Dr.-Külz-Ring 12
A30: 01219 Dresden
A32: Arbeitsgemeinschaft Ersatzkassen | G32: Mitglieder
A34: vdek - Landesvertretung Sachsen | G34: Techniker Krankenkasse (TK)
A35: Glacisstr. 4 | G35: Barmer
A36: 01099 Dresden | G36: DAK-Gesundheit
G37: Kaufmännische Krankenkasse - KKH
G38: Handelskrankenkasse (hkk)
G39: HEK - Hanseatische Krankenkasse
A42: Verband der Privaten Kranken-
A43: versicherung e.V.
A44: Heidestraße 40
A45: 10557 Berlin

Sheet B4_Versionsinfo (hidden)
A2: Erläuterung der Änderungen gegenüber der Vorversion (Änderungshistorie zu B2) nach 30.11.2023
A5: Datum der Änderung | B5: Tabellenblatt | C5: Zeile/Spalte | D5: Erläuterung der Änderung | E5: Hinweise für die Anwender
B6: Nutzung als B4 Antrag | C6: => dr. § 113c SGB XI => bisheriges pauschal vereinfachtes Verfahren nicht mehr umsetzbar
A7: 2023-11-30 | B7: B4_Kalkulation | C7: M28 | D7: benutzerdefiniert - Datenüberprüfung - max 10% = M28< 10,0001%
C8: M29 | D8: benutzerdefiniert - Datenüberprüfung - max 10% = M29 < 10,0001%
C9: M30 | D9: benutzerdefiniert - Datenüberprüfung - max 10% = M30 < 10,0001%
C10: M31 | D10: benutzerdefiniert - Datenüberprüfung - max 10% = M31 < 10,0001%
B11: B4_Personalkostenübersicht | C11: G7 | D11: ja - für unmittelbare Tarifbindung
C12: G8:I8 | D12: Dropdown-Feld gelöscht - kein Erfassungsfeld mehr, bedingte Formatierung belassen, denn wenn G7=ja, dann rosa Farbe | E12: Frage nach maßgeblichen TV o. reg. En. entbehrlich
A13: 2023-12-05 | B13: B4_Personalkostenaufstellung | C13: O13:T13 | D13: Format Datum
B14: B4_Kalkulation | C14: B7 | D14: Belegungstage - letzte ( anstelle Belegungstage - letzten)
A15: 2023-12-12 | B15: B4_Kalkulation | C15: M32 | D15: Steigerung max. bis 5% auf geeint analog tarifungebundene Einrichtungen
B16: B4_Personalkostenübersicht | C16: O13:T14 | D16: Format anpassen
C17: J370:L370 | D17: Erfassungsmöglichkeit - kein Zellschutz
B18: B4_Ergebnis | C18: C3 | D18: kein Bezug zu B4_Personalkostenübersicht sondern neu: Text: unmittelbare Bindung Tarif/AVR

Sheet KAT (hidden)
A1: Einrichtungsart | B1: Kreuz | C1: Tage/Monat | D1: Öffnungstage | E1: Auslastung | F1: Ja/Nein | I1: Plausi für TAB 113c in TAB B2_Personalkostenübersicht - Anzeige nur wenn vst. + LZ ab 01.07.2023
A2: teilstationäre Pflege | B2: x | C2: 30.42 | D2: 365 | E2: 100% | F2: ja | I2: 1. Bedingung | J2: 2. Bedingung | K2: Ergebnis | L2: Erläuterung
A3: Kurzzeitpflege | C3: 26 | D3: 312 | E3: 99% | F3: nein | I3: =IF('B4_Allgemeine Angaben'!D7<>"vst",1,2) -> 1 | L3: 2 = vst
A4: vollstationäre Pflege | C4: 20.83 | D4: 250 | E4: 98% | J4: =IF('B4_Allgemeine Angaben'!H52<DATEVALUE("01.07.2023"),1,2) -> 1 | L4: 2 = wenn LZ aktuell ab 01.07.2023
A5: Wachkoma | E5: 97% | K5: =IF(AND(I3=2,J4=2),2,1) -> 1 | L5: wenn 1. + 2. Bedingung =2 dann wird Tbl. für § 113c im TAB Personalkostenübersicht eingeblendet
A6: 4. Generation | E6: 96% | I6: Personalbemessungswerte gemäß § 113 c Abs. 1 SGB XI - MAX
E7: 95% | I7: OHNE § 43 b Mitarbeiter und ohne zusätzliche PFK (§ 8 Abs. 6 SGB XI) und ohne zusätzliche PHK (§ 84 Abs. 9 SGB XI)
E8: 94% | I8: Richtwerte | J8: PFK/BFK | K8: PK/BK | L8: PK/BK o. | M8: Belegung | N8: PFK/BFK | O8: PK/BK | P8: PK/BK o.
E9: 93% | I9: PG 1 | J9: 0.077 | K9: 0.0564 | L9: 0.0872 | M9: =B4_Kalkulation!H14 -> 0 | N9: =M9*J9 -> 0 | O9: =M9*K9 -> 0 | P9: =M9*L9 -> 0
A10: solitär | E10: 92% | I10: PG 2 | J10: 0.1037 | K10: 0.0675 | L10: 0.1202 | M10: =B4_Kalkulation!I14 -> 0 | N10: =M10*J10 -> 0 | O10: =M10*K10 -> 0 | P10: =M10*L10 -> 0
A11: angebunden | E11: 91% | I11: PG 3 | J11: 0.1551 | K11: 0.1074 | L11: 0.1448 | M11: =B4_Kalkulation!J14 -> 0 | N11: 0 | O11: 0 | P11: 0
E12: 90% | I12: PG 4 | J12: 0.2463 | K12: 0.1413 | L12: 0.1627 | M12: =B4_Kalkulation!K14 -> 0 | N12: 0 | O12: 0 | P12: 0
E13: 89% | I13: PG 5 | J13: 0.3842 | K13: 0.1102 | L13: 0.1758 | M13: =B4_Kalkulation!L14 -> 0 | N13: 0 | O13: 0 | P13: 0
E14: 88% | I14: Summe: | J14: =SUM(J9:J13) -> 0.9663 | K14: =SUM(K9:K13) -> 0.4828 | L14: =SUM(L9:L13) -> 0.6907 | M14: =SUM(M9:M13) -> 0 | N14: =SUM(N9:N13) -> 0 | O14: 0 | P14: 0
E15: 87%
E16: 86% | I16: Zusatzpersonal aus § 8 (6) + § 84 (9) SGB XI | N16: =SUM(B4_Personalkostenübersicht!AH111:AH122) -> 0.00 | O16: =SUM(B4_Personalkostenübersicht!AI224:AI243) -> 0.00 | P16: =SUM(B4_Personalkostenübersicht!AJ224:AJ243) -> 0.00
E17: 85% | I17: § 113 Abs. 1 XI ohne PDL lt. RV + ZV-Personal § 8 (6) + § 84 (9) SGB XI | N17: =N14+N16 -> 0.00 | O17: =O14+O16 -> 0.00 | P17: 0.00
I18: Hilfstabelle - bedingte Formatierung Zusatzpersonal auf TAB Personalausstattung
I19: =IF(OR('B4_Allgemeine Angaben'!D7="kzp",'B4_Allgemeine Angaben'!D7="vst"),1,2) -> 1 | K19: 1 bei KZP o vst. , ansonsten 2 - nur bei 1 werden Zeilen für Zusatzpersonal sichtbar auf Personalausstattung
A20: 07.08.2017 - Ableitung der Psätze für tst. PE und KZP bei Nullbelegungen
A22: PG | B22: check/Psatz | J22: Abstimmung vom 07.08.2017 mit folgender Entscheidung:
A23: 1 | B23: =IF(B4_Kalkulation!H14<>0,B4_Gesamtkalkulation!H47,0) -> 0 | J23: - die Herleitung der Psätze für tst + KZP analog der Herleitung der PR bei Nichtbelegung
A24: 2 | B24: =IF(B4_Kalkulation!I14<>0,B4_Gesamtkalkulation!J47,0) -> 0 | J24: führt in einzelnen Fällen nicht zu den gewünschten Ergebnissen (siehe Testergebnisse vom 05.08.2017)
A25: 3 | B25: =IF(B4_Kalkulation!J14<>0,B4_Gesamtkalkulation!L47,0) -> 0 | D25: Kennzeichen Einrichtungsart: | F25: =IF('B4_Allgemeine Angaben'!D7="tst","tst",IF('B4_Allgemeine Angaben'!D7="kzp","KZP","")) -> KZP | J25: => desh. ist bei KzP und tst. PE der PG 2 bis 4 zwindend zu belegen
A26: 4 | B26: =IF(B4_Kalkulation!K14<>0,B4_Gesamtkalkulation!N47,0) -> 0 | D26: "2" = tst, "1" = vst,WK, 4. Generation , "3" = KZP
A27: 5 | B27: =IF(B4_Kalkulation!L14<>0,B4_Gesamtkalkulation!P47,0) -> 0
L28: Erläuterung zur Verformelung:
A29: Hochrechnung der Pflegesätze bei Nullbelegung fürTP+KZP | E29: Rechnung mit Äquvalenzen (Rothgang bei vst und KZP, Faktor bei tst) | L29: 1. Check - a) bilde den Psatz für PG 2 - 4 ab, falls Belegung "0" dann LEER
B30: a | C30: b | D30: f = "tst" | E30: f = "KZP" | G30: g | H30: h | J30: e | L30: b)bilde den Psatz PG 1 und PG 5 ab, sofern belegt
D31: =IF(B23=0,B24*B55/C55,0) -> 0 | E31: =IF(B23=0,B24*B48/C48,0) -> 0 | G31: =IF(F25="tst",D31,E31) -> 0 | H31: =IF(B23=0,G31,B23) -> 0 | J31: PG 1 | L31: c) ist der PG 1 bzw. PG 5 nicht belegt, dann "0"
H32: =IF(B24=0,G32,B24) -> 0 | J32: PG 2 | L32: 2. (Spalte f "tst" und f "kzp")
H33: =IF(B25=0,G33,B25) -> 0 | J33: PG 3 | L33: gilt 1 b) dann wird der kalkulierte Psatz abgebildet
H34: =IF(B26=0,G34,B26) -> 0 | J34: PG 4 | L34: gilt 1 c) dann wird anhand der jeweiligen Faktoren "tst" und "kzp"
D35: =IF(B27=0,B26/E55*F55,0) -> 0 | E35: =IF(B27=0,B26*F48/E48,0) -> 0 | G35: =IF(F25="tst",D35,E35) -> 0 | H35: =IF(B27=0,G35,B27) -> 0 | J35: PG 5 | L35: der Psatz für PG 1 vom Psatz PG 2 hochgerechnet
L36: der Psatz für PG 5 vom Psatz PG 4 hochgerechnet
L37: 3. (Spalte g)
A38: Überlegung: | L38: bilde die Psätze PG 1 und PG 5 entsprechend des Einrichtungstyp "tst" o.
A39: vst. PE mit Nullbelegung => Psätze Ermittlung dr. EEE + Leistungsbetrag, Psatz für PG 1 = 0,78 von Psatz PG 2 | L39: "KZP" ab
L40: 4. (Spalte h)
L41: bilde alle Psätze entspr. für den einrichtungstyp "tst" oder "Kzp" ab
B44: Äquivalenzen
B46: PG 1 | C46: PG 2 | D46: PG 3 | E46: PG 4 | F46: PG 5
A48: Faktor KZP | B48: 0.78 | C48: 1 | D48: 1.36 | E48: 1.74 | F48: 1.91
C49: =C48/B48-1 -> 28.21% | D49: =D48/C48-1 -> 36.00% | E49: =E48/D48-1 -> 27.94% | F49: =F48/E48-1 -> 9.77%
A51: Leistungbetrag vst | B51: 125 € | C51: 770 € | D51: 1,262 € | E51: 1,775 € | F51: 2,005 €
C52: 1 | D52: =D51/C51 -> 1.64 | E52: =E51/C51 -> 2.31 | F52: =F51/C51 -> 2.60
D53: =D51/C51-1 -> 63.90% | E53: =E51/D51-1 -> 40.65% | F53: 12.96%
A55: Faktor tst | B55: 0.78 | C55: 1 | D55: 1.2 | E55: 1.4 | F55: 1.5
C56: =C55/B55-1 -> 28.21% | D56: =D55/C55-1 -> 20.00% | E56: =E55/D55-1 -> 16.67% | F56: =F55/E55-1 -> 7.14%
A59: VK-Umfang für der PDL/stellv. PDL entsprechend RVT | J59: TAB Berechnung VK-Umfang PDL/stellv. PDL eingefügt = Ergebnis mit TAB Kat verknüpft
A61: Plätze von | B61: Plätze bis | C61: VK | D61: VK PDL für PE
A62: 1 | B62: 40 | C62: 0.750 VK | D62: =IF('B4_Allgemeine Angaben'!L47<A63,C62,IF('B4_Allgemeine Angaben'!L47<A64,C63,IF('B4_Allgemeine Angaben'!L47<A65,C64,C65))) -> 0.750 VK
A63: 41 | B63: 80 | C63: 1.000 VK
A64: 81 | B64: 150 | C64: 1.250 VK
A65: 151 | B65: < 151 | C65: 2.000 VK
B68: Belegung | C68: PR | D68: VK nach PR | E68: % Ansatz für Verteilung Pkosten Pflege | F68: PK-Pflege
A69: Pflegegrad 1 | B69: =B4_Kalkulation!H14 -> 0 | C69: =B4_Kalkulation!I20 -> 0.00 | D69: =B69/C69 ->  | E69: =D69/$D$74 ->  | F69: =E69*$F$76 -> 
A70: Pflegegrad 2 | B70: =B4_Kalkulation!I14 -> 0 | C70: =B4_Kalkulation!I21 -> 0.00 | D70: =B70/C70 ->  | E70: =D70/$D$74 ->  | F70: =E70*$F$76 -> 
A71: Pflegegrad 3 | B71: =B4_Kalkulation!J14 -> 0 | C71: =B4_Kalkulation!I22 -> 0.00
A72: Pflegegrad 4 | B72: =B4_Kalkulation!K14 -> 0 | C72: =B4_Kalkulation!I23 -> 0.00
A73: Pflegegrad 5 | B73: =B4_Kalkulation!L14 -> 0 | C73: =B4_Kalkulation!I24 -> 0.00
A74: Summe: | B74: =SUM(B69:B73) -> 0 | D74: =SUM(D69:D73) ->  | E74: 100% | F74: =SUM(F69:F73) -> 
A75: PDL lt. TAB Personalaufw. | D75: =D62 -> 0.750 VK
A76: Gesamt VK Pflege inkl PDL/stellv. | D76: =SUM(D74:D75) ->  | F76: =D76*B4_Kalkulation!L26 -> 
A78: Umrechnung der Personalrelation Pflege vst. exkl. PDL/stellv. PDL für die angebundene KZP Relation Pflege inklusive PDL/stellv. PDL
B79: vollstationäre Pflegeeinrichtung | F79: angebundene Kurzzeitpflege | H79: Probe
B80: Belegung | C80: Relation ohne PDL/stellv. PDL | D80: Personalumfang | E80: proz. Verteilung Personalumfang nach Relation | F80: Personalumfang | G80: Relation inklusive PDL/stellv. PDL
A81: Pflegegrad 1 | B81: =B4_Kalkulation!H14 -> 0 | C81: =B4_Kalkulation!I20 -> 1 : 0.00 | D81: =IFERROR(B81/C81,0) -> 0.000 VK | E81: =IFERROR(D81/$D$86,0) -> 0.00% | F81: =IFERROR($D$88*E81,0) -> 0.000 VK | G81: =IF(F81=0,C81,B81/F81) -> 1 : 0.00 | H81: =ROUND(B81/G81,3) -> 
A82: Pflegegrad 2 | B82: =B4_Kalkulation!I14 -> 0 | C82: =B4_Kalkulation!I21 -> 1 : 0.00 | D82: =IFERROR(B82/C82,0) -> 0.000 VK | E82: =IFERROR(D82/$D$86,0) -> 0.00% | F82: =IFERROR($D$88*E82,0) -> 0.000 VK | G82: =IFERROR(B82/F82,0) -> 1 : 0.00 | H82: =ROUND(B82/G82,3) -> 
A83: Pflegegrad 3 | B83: =B4_Kalkulation!J14 -> 0 | C83: =B4_Kalkulation!I22 -> 1 : 0.00 | D83: 0.000 VK | E83: 0.00% | F83: 0.000 VK | G83: =IFERROR(B83/F83,0) -> 1 : 0.00
A84: Pflegegrad 4 | B84: =B4_Kalkulation!K14 -> 0 | C84: =B4_Kalkulation!I23 -> 1 : 0.00 | D84: 0.000 VK | E84: 0.00% | F84: 0.000 VK | G84: 1 : 0.00
A85: Pflegegrad 5 | B85: =B4_Kalkulation!L14 -> 0 | C85: =B4_Kalkulation!I24 -> 1 : 0.00 | D85: 0.000 VK | E85: 0.00% | F85: 0.000 VK | G85: =IF(F85=0,C85,B85/F85) -> 1 : 0.00
A86: Summe: | D86: =SUM(D81:D85) -> 0.000 VK | E86: =SUM(E81:E85) -> 0.00%
B87: PDL/stellv. PDL: | D87: =B4_Kalkulation!J25 -> 
A88: Gesamt: | B88: =SUM(B81:B85) -> 0 | D88: =SUM(D86:D87) -> 0.000 VK | F88: =SUM(F81:F87) -> 0.000 VK | H88: =SUM(H81:H87) -> 
A90: Beschäftigungsgruppen nach § 3 Abs. 3 RL § 72 SGB XI
A92: PDL
A93: stellv. PDL
A94: PFK/BFK
A95: PK/BK
A96: PK/BK o.
A102: SV-Beiträge | B102: 2024 (Prognose) - PSK 02.11.2024 | E102: geringfügig Beschäftigte | G102: 2023 - unverändert | I102: Steigerungsraten | M102: Ergebnis AG VM 08.06.2022
A103: (in%) | B103: Gesamt | C103: AG | D103: AN | G103: AG | I103: Leitung/Veraltung | K103: max. bis | L103: 5.00%
A104: KV | B104: =C104*2 -> 16.400 | C104: 8.200 | D104: =B104/2 -> 8.20 | E104: KV pauschal | G104: 13.00 | I104: Hauswirtschaft | K104: max. bis | L104: 5.00%
A105: RV | B105: =C105*2 -> 18.600 | C105: 9.300 | D105: =B105/2 -> 9.300 | E105: RV pauschal | G105: 15.000 | I105: Küche | K105: max. bis | L105: 5.00%
A106: AV | B106: =C106*2 -> 2.600 | C106: 1.300 | D106: =B106/2 -> 1.300 | I106: Haustechnik | K106: max. bis | L106: 5.00%
A107: PV* mit Kd. | B107: 3.400 | C107: 1.200 | D107: 2.200 | I107: sonstige Stellen | K107: max. bis | L107: 5.00%
A108: Gesamt * | C108: =(C107+C106+C105+C104) -> 20.000 | E108: Gesamt * | G108: =SUM(G104:G107) -> 28.000 | I108: Beförderung | K108: max. bis | L108: 17.90 € | M108: PSK 02.11.2023
A109: U2 | B109: 100% Erstatt. | C109: 0.790 | E109: U2 | G109: 0.290 | I109: Sachkosten | K109: max. bis | L109: 7.50% | M109: Ergebnis PSK 21.06.2022
A110: U1 | B110: 50% Erstatt. | C110: 2.150 | E110: U1 | G110: 0.900 | I110: Fremdleistung | K110: max. bis | L110: 9.10% | M110: Ergebnis PSK 01.12.2022
A111: Insolvenzgeld | C111: 0.060 | E111: Insolvenzgeld | G111: 0.060
A112: Gesamt *+U2+Insolvenzgeld | C112: =(C108+C109+C111) -> 20.850 | E112: Gesamt *+U2+Insolvenzgeld | G112: =(G108+G109+G111) -> 28.350
A113: Gesamt *+U1+U2+Insolvenzgeld | C113: =C112+C110 -> 23.000 | E113: Gesamt *+U1+U2+Insolvenzgeld | G113: =G112+G110 -> 29.250
A116: *Berechnungsgrundlagen Mindestlohn für LAUFZEIT für Arbeitnehmer, die nicht in der Grundpflege tätig sind, LEITUNG/VERWALTUNG | D116: kein Veto in AG VM 08.06.2022 | I116: sv-freie Zuschläge | L116: kein Veto in AG VM 08.06.2022
A117: Stundenlohn: | B117: 12.41 € | I117: Funtkionsbereich | J117: vst./KZP | K117: TP
A118: Jahresbruttostunden | B118: =40*52 -> 2,080 | C118: 40 Std./Wo | I118: LuV | J118: 2.00% | K118: 2.00%
A119: Jahresbruttolohn: | B119: =B118*B117 -> 25,812.80 € | I119: HW | J119: 5.00% | K119: 3.00%
A120: Arbeitgeberanteile: | B120: =B119*C120 -> 0.00 € | C120: 0.000% | I120: Kü | J120: 5.00% | K120: 3.00%
A121: Zwischensumme: | B121: =B119+B120 -> 25,812.80 € | C121: sofern keine Zuschläge | I121: HAT | J121: 4.00% | K121: 2.00%
A122: Zuschläge: | B122: =B119*C122 -> 516.26 € | C122: 2.00% | I122: mittel_ | J122: =AVERAGE(J118:J121) -> 4.00% | K122: =AVERAGE(K118:K121) -> 2.50%
A123: Zwischensumme: | B123: =B119+B120+B122 -> 26,329.06 € | C123: sofern keine fest vereinbarten Sonderzahlungen
A124: 13. Monatsgehalt**: | B124: =B123/12 -> 2,194.09 €
A125: Zwischensumme: | B125: =B123+B124 -> 28,523.14 €
A126: inkl. 2% PNK + 2% UR: | B126: =B125*102%*102% -> 29,675.48 € | C126: =ROUND(B126,-2) -> rund 29,700.00 € | D126: < | E126: =C126+0.009 -> 29,700.01 €
A130: Nebenrechnung für Herleitung PK in HW_Kü
A131: Grundsatz:
A132: Wenn die Einrichtung = TP oder KZP o. 4. Gen. ist und die bisher geeinten PK größer 0 € sind und PK in der PKL größer 0 € sind, dann gilt für die Prognose der Wert aus der PKL
A133: Wenn in der PKL der Wert 0 € ist, erfolgt die Herleitung der prognostischen PK immer auf Basis der geeinten PK nach folgenden Prüfschema (siehe Erläuterung TAB Kalkualtion).
B135: Berechnung auf Basis geeinte PK: | D135: progn. Wert | E135: Zwischenergebnis, da Formel in TAB Kalkulation zu lang wäre
B136: Hauswirtschaft: | D136: =IF(B4_Kalkulation!F29=0,0,IF(B4_Kalkulation!F29<KAT!E149,KAT!C149*B4_Kalkulation!M29+KAT!C149,IF(B4_Kalkulation!F29>KAT!C149,B4_Kalkulation!F29*B4_Kalkulation!M29+B4_Kalkulation!F29))) -> 0
B137: Küche: | D137: =IF(B4_Kalkulation!F30=0,0,IF(B4_Kalkulation!F30<KAT!E161,KAT!C161*B4_Kalkulation!M30+KAT!C161,IF(B4_Kalkulation!F30>KAT!C161,B4_Kalkulation!F30*B4_Kalkulation!M30+B4_Kalkulation!F30))) -> 0
A139: *Berechnungsgrundlagen Mindestlohn für LAUFZEIT für Arbeitnehmer, die nicht in der Grundpflege tätig sind, HAUSWIRTSCHAFT | D139: kein Veto in AG VM 08.06.2022 | H139: Mindestlohn ohne Pflege
A140: Stundenlohn: | B140: 12.41 € | H140: 12.41 | I140: 2024-01-01
A141: Jahresbruttostunden | B141: =40*52 -> 2,080 | C141: 40 Std./Wo | H141: 12.82 | I141: 2025-01-01
A142: Jahresbruttolohn: | B142: =B141*B140 -> 25,812.80 €
A143: Arbeitgeberanteile: | B143: =B142*C143 -> 0.00 € | C143: 0.000%
A144: Zwischensumme: | B144: =B142+B143 -> 25,812.80 € | C144: sofern keine Zuschläge
A145: Zuschläge: | B145: =B142*C145 -> 1,290.64 € | C145: 5.00%
A146: Zwischensumme: | B146: =B142+B143+B145 -> 27,103.44 € | C146: sofern keine fest vereinbarten Sonderzahlungen
A147: 13. Monatsgehalt**: | B147: =B146/12 -> 2,258.62 €
A148: Zwischensumme: | B148: =B146+B147 -> 29,362.06 €
A149: inkl. 2% PNK + 2% UR: | B149: =B148*102%*102% -> 30,548.29 € | C149: =ROUND(B149,-2) -> rund 30,500.00 € | D149: < | E149: =C149+0.009 -> 30,500.01 €
A151: *Berechnungsgrundlagen Mindestlohn für LAUFZEIT für Arbeitnehmer, die nicht in der Grundpflege tätig sind, KÜCHE | D151: kein Veto in AG VM 08.06.2022
A152: Stundenlohn: | B152: 12.41 €
A153: Jahresbruttostunden | B153: =40*52 -> 2,080 | C153: 40 Std./Wo
A154: Jahresbruttolohn: | B154: =B153*B152 -> 25,812.80 €
A155: Arbeitgeberanteile: | B155: =B154*C155 -> 0.00 € | C155: 0.000%
A156: Zwischensumme: | B156: =B154+B155 -> 25,812.80 € | C156: sofern keine Zuschläge
A157: Zuschläge: | B157: =B154*C157 -> 1,290.64 € | C157: 5.00%
A158: Zwischensumme: | B158: =B154+B155+B157 -> 27,103.44 € | C158: sofern keine fest vereinbarten Sonderzahlungen
A159: 13. Monatsgehalt**: | B159: =B158/12 -> 2,258.62 €
A160: Zwischensumme: | B160: =B158+B159 -> 29,362.06 €
A161: inkl. 2% PNK + 2% UR: | B161: =B160*102%*102% -> 30,548.29 € | C161: =ROUND(B161,-2) -> rund 30,500.00 € | D161: < | E161: =C161+0.009 -> 30,500.01 €
A163: *Berechnungsgrundlagen Mindestlohn für LAUFZEIT für Arbeitnehmer, die nicht in der Grundpflege tätig sind, HAT | D163: kein Veto in AG VM 08.06.2022
A164: Stundenlohn: | B164: 12.41 €
A165: Jahresbruttostunden | B165: =40*52 -> 2,080 | C165: 40 Std./Wo
A166: Jahresbruttolohn: | B166: =B165*B164 -> 25,812.80 €
A167: Arbeitgeberanteile: | B167: =B166*C167 -> 0.00 € | C167: 0.000%
A168: Zwischensumme: | B168: =B166+B167 -> 25,812.80 € | C168: sofern keine Zuschläge
A169: Zuschläge: | B169: =B166*C169 -> 1,032.51 € | C169: 4.00%
A170: Zwischensumme: | B170: =B166+B167+B169 -> 26,845.31 € | C170: sofern keine fest vereinbarten Sonderzahlungen
A171: 13. Monatsgehalt**: | B171: =B170/12 -> 2,237.11 €
A172: Zwischensumme: | B172: =B170+B171 -> 29,082.42 €
A173: inkl. 2% PNK + 2% UR: | B173: =B172*102%*102% -> 30,257.35 € | C173: =ROUND(B173,-2) -> rund 30,300.00 € | D173: < | E173: =C173+0.009 -> 30,300.01 €

Sheet B2_Archiv (hidden)
A1: SV-Beiträge | B1: 2022 | E1: geringfügig Beschäftigte | G1: 2022 | H1: SV-Beiträge | I1: 2023 (ab 01.07.2023) | L1: geringfügig Beschäftigte | N1: 2023
A2: (in%) | B2: Gesamt | C2: AG | D2: AN | G2: AG | H2: (in%) | I2: Gesamt | J2: AG | K2: AN | N2: AG
A3: KV | B3: 15.800 | C3: =B3/2 -> 7.900 | D3: 8.05 | E3: KV pauschal | G3: 13.00 | H3: KV | I3: 16.100 | J3: =I3/2 -> 8.050 | K3: =I3/2 -> 8.05 | L3: KV pauschal | N3: 13.00
A4: RV | B4: 18.600 | C4: =B4/2 -> 9.300 | D4: 9.300 | E4: RV pauschal | G4: 15.000 | H4: RV | I4: 18.600 | J4: =I4/2 -> 9.300 | K4: =I4/2 -> 9.300 | L4: RV pauschal | N4: 15.000
A5: AV | B5: 2.400 | C5: 1.200 | D5: 1.300 | H5: AV | I5: 2.600 | J5: =I5/2 -> 1.300 | K5: =I5/2 -> 1.300
A6: PV* mit Kd. | B6: 3.050 | C6: 1.025 | D6: 2.025 | H6: PV* mit Kd. | I6: 3.400 | J6: 1.200 | K6: 2.200
A7: Gesamt * | C7: =SUM(C3:C6) -> 19.425 | E7: Gesamt * | G7: 28.000 | H7: Gesamt * | J7: =(J6+J5+J4+J3) -> 19.850 | L7: Gesamt * | N7: =SUM(N3:N6) -> 28.000
A8: U2 | B8: 100% Erstatt. | C8: 0.840 | E8: U2 | G8: 0.290 | H8: U2 | I8: 100% Erstatt. | J8: 0.790 | L8: U2 | N8: 0.290
A9: U1 | B9: 50% Erstatt. | C9: 1.750 | E9: U1 | G9: 0.900 | H9: U1 | I9: 50% Erstatt. | J9: 2.150 | L9: U1 | N9: 0.900
A10: Insolvenzgeld | C10: 0.090 | E10: Insolvenzgeld | G10: 0.090 | H10: Insolvenzgeld | J10: 0.060 | L10: Insolvenzgeld | N10: 0.060
A11: Gesamt *+U2+Insolvenzgeld | C11: =C7+C8+C10 -> 20.355 | E11: Gesamt *+U2+Insolvenzgeld | G11: 28.380 | H11: Gesamt *+U2+Insolvenzgeld | J11: =(J7+J8+J10) -> 20.700 | L11: Gesamt *+U2+Insolvenzgeld | N11: =(N7+N8+N10) -> 28.350
A12: Gesamt *+U1+U2+Insolvenzgeld | C12: =C11+C9 -> 22.105 | E12: Gesamt *+U1+U2+Insolvenzgeld | G12: 29.280 | H12: Gesamt *+U1+U2+Insolvenzgeld | J12: =J11+J9 -> 22.850 | L12: Gesamt *+U1+U2+Insolvenzgeld | N12: =N11+N9 -> 29.250
A14: reg. En. | B14: 2022 | C14: 2023 | D14: 2024
A15: PFK/BFK | B15: 20.59 € | C15: 21.87 | D15: 22.76
A16: PK/BK | B16: 17.08 € | C16: 17.41 | D16: 18.44
A17: PK/BK o. | B17: 15.59 € | C17: 16.48 | D17: 17.28
A18: reg. En. | B18: 18.25 € | C18: 19.43 | D18: 20.14
A20: Mindestlohn ohne Pflege
A21: 2022-10-01 | B21: 2024-01-01 | C21: 2025-01-01
A22: 12.00 € | B22: 12.41 € | C22: 12.82 €
